{"text_format":"1","workbook":"xlsx","n_sheets":2,"sheets":["Ficha Predial","Formulario"],"not_rendered":{"charts":0,"images":4,"macros":1,"external_links":0,"defined_names":34,"comments":0,"pivot_tables":0},"unopened":[],"bounds":{"document_bytes":16777216,"sheet_cells":100000,"rows_first":2000,"rows_last":500,"rows_between":2000,"halvings":0,"cell_chars":16384,"cell_head_chars":4096},"cells_cut":0,"cells_raw":0,"read":"whole","date_system":"1900"}

{"sheet":"Ficha Predial","index":0,"n_rows":147,"n_cols":203,"rows_kept":147,"cut":false,"hidden":false,"merged":[[108,187,108,191],[108,192,108,196],[108,197,108,201],[108,202,108,206],[108,110,108,156],[108,157,108,161],[108,162,108,166],[108,167,108,171],[108,172,108,176],[108,177,108,181],[108,182,108,186],[97,187,97,191],[97,192,97,196],[97,197,97,201],[97,202,97,206],[97,110,97,156],[97,157,97,161],[97,162,97,166],[97,167,97,171],[97,172,97,176],[97,177,97,181],[97,182,97,186],[100,187,100,191],[100,192,100,196],[100,197,100,201],[100,202,100,206],[98,104,100,156],[98,157,100,161],[98,162,99,181],[98,182,100,186],[98,187,99,206],[100,162,100,166],[100,167,100,171],[95,187,95,191],[95,192,95,196],[95,197,95,201],[95,202,95,206],[95,110,95,156],[95,157,95,161],[95,162,95,166],[95,167,95,171],[95,172,95,176],[95,177,95,181],[95,182,95,186],[96,187,96,191],[96,192,96,196],[96,197,96,201],[96,202,96,206],[96,110,96,156],[96,157,96,161],[96,162,96,166],[96,167,96,171],[96,172,96,176],[96,177,96,181],[96,182,96,186],[93,187,93,191],[93,192,93,196],[93,197,93,201],[93,202,93,206],[93,110,93,156],[93,157,93,161],[93,162,93,166],[93,167,93,171],[93,172,93,176],[93,177,93,181],[93,182,93,186],[94,187,94,191],[94,192,94,196],[94,197,94,201],[94,202,94,206],[94,110,94,156],[94,157,94,161],[94,162,94,166],[94,167,94,171],[94,172,94,176],[94,177,94,181],[94,182,94,186],[104,83,104,87],[104,88,104,92],[106,83,106,87],[106,88,106,92],[104,6,104,52],[104,53,104,57],[104,58,104,62],[104,63,104,67],[104,68,104,72],[104,73,104,77],[104,78,104,82],[98,6,98,52],[98,53,98,57],[99,0,100,52],[99,53,100,57],[101,0,105,5],[101,6,101,52],[101,53,101,57],[102,83,102,87],[102,88,102,92],[102,6,102,52],[102,53,102,57],[102,58,102,62],[102,63,102,67],[102,68,102,72],[102,73,102,77],[102,78,102,82],[103,83,103,87],[103,88,103,92],[103,6,103,52],[103,53,103,57],[103,58,103,62],[103,63,103,67],[103,68,103,72],[103,73,103,77],[103,78,103,82],[95,58,95,62],[95,63,95,67],[96,6,96,52],[96,53,96,57],[96,58,96,62],[96,63,96,67],[97,6,97,52],[97,53,97,57],[97,58,97,62],[97,63,97,67],[93,6,93,52],[93,53,93,57],[93,58,93,62],[93,63,93,67],[95,0,98,5],[95,6,95,52],[95,53,95,57],[103,187,103,191],[103,192,103,196],[103,197,103,201],[103,202,103,206],[103,110,103,156],[103,157,103,161],[103,162,103,166],[103,167,103,171],[103,172,103,176],[103,177,103,181],[103,182,103,186],[104,187,104,191],[104,192,104,196],[104,197,104,201],[104,202,104,206],[104,110,104,156],[104,157,104,161],[104,162,104,166],[104,167,104,171],[104,172,104,176],[104,177,104,181],[104,182,104,186],[101,177,101,181],[101,182,101,186],[101,187,101,191],[101,192,101,196],[101,197,101,201],[101,202,101,206],[100,172,100,176],[100,177,100,181],[101,110,101,156],[101,157,101,161],[101,162,101,166],[101,167,101,171],[101,172,101,176],[102,187,102,191],[102,192,102,196],[102,197,102,201],[102,202,102,206],[102,110,102,156],[102,157,102,161],[102,162,102,166],[102,167,102,171],[102,172,102,176],[102,177,102,181],[102,182,102,186],[83,182,83,186],[84,187,84,191],[84,192,84,196],[84,197,84,201],[84,202,84,206],[84,110,84,156],[84,157,84,161],[84,162,84,166],[84,167,84,171],[84,172,84,176],[84,177,84,181],[84,182,84,186],[85,187,85,191],[85,192,85,196],[85,197,85,201],[85,202,85,206],[85,110,85,156],[85,157,85,161],[85,162,85,166],[85,167,85,171],[85,172,85,176],[85,177,85,181],[85,182,85,186],[91,187,91,191],[91,192,91,196],[91,197,91,201],[91,202,91,206],[91,110,91,156],[91,157,91,161],[91,162,91,166],[91,167,91,171],[91,172,91,176],[91,177,91,181],[91,182,91,186],[92,187,92,191],[92,192,92,196],[92,197,92,201],[92,202,92,206],[92,110,92,156],[92,157,92,161],[92,162,92,166],[92,167,92,171],[92,172,92,176],[92,177,92,181],[92,182,92,186],[89,187,89,191],[89,192,89,196],[89,197,89,201],[89,202,89,206],[89,110,89,156],[89,157,89,161],[89,162,89,166],[89,167,89,171],[89,172,89,176],[89,177,89,181],[89,182,89,186],[90,187,90,191],[90,192,90,196],[90,197,90,201],[90,202,90,206],[90,110,90,156],[90,157,90,161],[90,162,90,166],[90,167,90,171],[90,172,90,176],[90,177,90,181],[90,182,90,186],[87,187,87,191],[87,192,87,196],[87,197,87,201],[87,202,87,206],[87,110,87,156],[87,157,87,161],[87,162,87,166],[87,167,87,171],[87,172,87,176],[87,177,87,181],[87,182,87,186],[88,187,88,191],[88,192,88,196],[88,197,88,201],[88,202,88,206],[88,110,88,156],[88,157,88,161],[88,162,88,166],[88,167,88,171],[88,172,88,176],[88,177,88,181],[88,182,88,186],[82,187,82,191],[82,192,82,196],[82,197,82,201],[82,202,82,206],[82,110,82,156],[82,157,82,161],[82,162,82,166],[82,167,82,171],[82,172,82,176],[82,177,82,181],[82,182,82,186],[86,187,86,191],[86,192,86,196],[86,197,86,201],[86,202,86,206],[86,110,86,156],[86,157,86,161],[86,162,86,166],[86,167,86,171],[86,172,86,176],[86,177,86,181],[86,182,86,186],[83,187,83,191],[83,192,83,196],[83,197,83,201],[83,202,83,206],[83,110,83,156],[83,157,83,161],[83,162,83,166],[83,167,83,171],[83,172,83,176],[83,177,83,181],[80,192,80,196],[80,197,80,201],[80,202,80,206],[80,110,80,156],[80,157,80,161],[80,162,80,166],[80,167,80,171],[80,172,80,176],[80,177,80,181],[80,182,80,186],[81,187,81,191],[81,192,81,196],[81,197,81,201],[81,202,81,206],[81,110,81,156],[81,157,81,161],[81,162,81,166],[81,167,81,171],[81,172,81,176],[81,177,81,181],[81,182,81,186],[70,123,70,128],[70,129,70,134],[70,135,70,140],[70,141,70,142],[67,60,68,71],[67,72,68,75],[70,0,70,40],[70,43,70,51],[70,53,70,59],[70,64,70,71],[70,75,70,82],[79,177,79,181],[79,182,79,186],[79,187,79,191],[79,192,79,196],[79,197,79,201],[79,202,79,206],[79,78,79,82],[79,83,79,87],[79,88,79,92],[79,93,79,97],[79,98,79,102],[79,104,82,109],[80,78,80,82],[77,157,78,161],[77,162,77,181],[79,110,79,156],[79,157,79,161],[79,162,79,166],[79,167,79,171],[79,172,79,176],[80,187,80,191],[78,167,78,171],[78,172,78,176],[78,177,78,181],[72,0,72,206],[73,0,75,206],[76,0,76,206],[77,0,78,52],[77,53,78,57],[77,58,77,77],[77,78,78,82],[57,0,57,206],[58,0,58,206],[59,0,59,206],[60,0,60,206],[61,0,61,206],[62,0,62,206],[63,0,63,206],[65,105,66,206],[67,105,67,154],[67,157,67,206],[68,105,68,154],[68,157,68,206],[64,0,64,103],[64,105,64,206],[65,0,66,103],[67,0,68,43],[67,44,68,55],[67,56,68,59],[67,76,68,99],[70,105,70,110],[70,111,70,116],[70,117,70,122],[53,0,53,206],[54,0,54,206],[55,0,55,206],[56,0,56,206],[70,187,70,192],[70,193,70,194],[70,195,70,200],[70,201,70,206],[70,143,70,148],[70,149,70,154],[70,157,70,162],[70,163,70,168],[70,169,70,174],[70,175,70,180],[70,181,70,186],[77,83,77,102],[77,104,78,156],[78,83,78,87],[78,88,78,92],[78,93,78,97],[78,98,78,102],[77,182,78,186],[77,187,77,206],[78,187,78,191],[78,192,78,196],[78,197,78,201],[78,202,78,206],[78,58,78,62],[78,63,78,67],[78,68,78,72],[78,73,78,77],[78,162,78,166],[47,172,47,177],[47,178,47,183],[47,184,47,189],[47,190,47,195],[47,4,47,9],[50,2,51,13],[46,0,46,3],[46,4,46,30],[47,0,47,3],[47,10,47,15],[47,16,47,21],[47,22,47,27],[49,2,49,44],[50,14,51,44],[49,52,49,94],[50,52,51,94],[50,102,51,205],[47,28,47,33],[47,34,47,39],[47,40,47,45],[47,46,47,51],[47,52,47,57],[47,58,47,63],[47,64,47,69],[47,112,47,117],[47,118,47,123],[47,124,47,129],[47,130,47,135],[47,136,47,141],[47,142,47,147],[47,148,47,153],[47,154,47,159],[47,160,47,165],[47,166,47,171],[44,121,45,125],[44,126,45,130],[44,131,45,135],[44,136,45,140],[44,141,45,145],[44,146,45,150],[44,186,45,190],[44,191,45,195],[44,196,45,200],[44,201,45,205],[44,151,45,155],[44,156,45,160],[44,161,45,165],[44,166,45,170],[44,171,45,175],[44,176,45,180],[44,181,45,185],[35,0,35,3],[35,4,35,8],[35,9,35,11],[35,12,35,16],[35,17,35,20],[35,21,35,25],[35,27,35,31],[37,0,37,3],[37,4,37,8],[37,9,37,11],[37,12,37,16],[37,17,37,20],[37,21,37,25],[37,27,37,31],[44,39,45,44],[44,45,45,50],[44,51,45,56],[42,0,42,3],[42,4,42,46],[43,0,43,3],[43,4,43,24],[44,4,44,25],[44,27,45,32],[44,33,45,38],[43,31,43,91],[41,0,41,206],[43,96,43,205],[39,32,39,34],[39,35,39,39],[39,40,39,44],[39,45,39,49],[39,50,39,54],[39,55,39,59],[39,60,39,61],[47,196,47,201],[48,0,48,206],[49,102,49,205],[47,70,47,75],[47,76,47,81],[47,82,47,87],[47,88,47,93],[47,94,47,99],[47,100,47,105],[47,106,47,111],[44,57,45,62],[44,63,45,68],[44,69,45,74],[44,75,45,80],[44,81,45,86],[44,87,45,92],[44,93,45,95],[44,96,45,100],[44,101,45,105],[44,106,45,110],[44,111,45,115],[44,116,45,120],[33,112,33,116],[33,122,34,206],[35,122,36,206],[37,62,37,66],[37,67,37,71],[37,122,38,206],[37,32,37,34],[37,35,37,39],[37,40,37,44],[37,45,37,49],[37,50,37,54],[37,55,37,59],[37,60,37,61],[39,62,39,66],[39,67,39,71],[42,67,42,91],[42,94,42,105],[26,207,26,213],[27,0,27,3],[27,158,27,163],[27,164,27,169],[29,118,29,159],[29,165,29,170],[29,171,29,176],[29,177,29,182],[31,0,31,206],[27,4,27,38],[27,40,27,43],[29,0,29,3],[29,4,29,38],[32,3,32,9],[32,11,32,19],[32,21,32,31],[27,52,27,57],[27,58,27,63],[27,64,27,66],[27,67,27,69],[27,70,27,75],[27,76,27,77],[27,78,27,83],[27,84,27,89],[29,40,29,89],[27,170,27,175],[27,176,27,181],[32,35,32,71],[32,74,32,84],[32,88,32,100],[32,106,32,116],[32,122,32,206],[27,44,27,45],[27,46,27,51],[27,182,27,187],[27,188,27,189],[27,190,27,195],[27,196,27,201],[1,135,1,171],[2,135,2,171],[5,0,5,39],[5,41,5,52],[0,0,3,28],[0,29,1,134],[2,29,3,134],[0,172,3,206],[0,135,0,171],[3,135,3,171],[27,113,27,148],[27,152,27,157],[21,0,21,3],[21,4,23,45],[21,46,23,205],[23,0,23,3],[25,0,25,206],[5,54,5,66],[5,68,5,84],[13,4,13,45],[13,46,13,205],[6,0,6,206],[7,0,7,206],[9,4,9,202],[10,0,10,206],[11,0,11,206],[12,0,12,206],[13,0,13,3],[19,4,19,45],[19,46,19,205],[15,0,15,3],[15,4,15,45],[15,46,15,205],[17,0,17,3],[17,4,17,45],[17,46,17,205],[19,0,19,3],[37,72,37,73],[37,74,37,78],[37,80,37,84],[37,85,37,87],[37,88,37,100],[37,101,37,105],[37,106,37,110],[37,112,37,116],[39,72,39,73],[39,74,39,78],[39,80,39,84],[39,85,39,87],[39,88,39,100],[39,101,39,105],[39,106,39,110],[39,112,39,116],[39,0,39,3],[39,4,39,8],[39,9,39,11],[39,12,39,16],[39,17,39,20],[39,21,39,25],[39,27,39,31],[35,32,35,34],[35,35,35,39],[35,40,35,44],[35,45,35,49],[35,50,35,54],[35,55,35,59],[35,60,35,61],[35,101,35,105],[35,106,35,110],[35,112,35,116],[35,62,35,66],[35,67,35,71],[35,72,35,73],[35,74,35,78],[35,80,35,84],[35,85,35,87],[35,88,35,100],[33,0,33,3],[33,4,33,8],[33,9,33,11],[33,12,33,16],[33,17,33,20],[33,21,33,25],[33,27,33,31],[33,72,33,73],[33,74,33,78],[33,80,33,84],[33,85,33,87],[33,88,33,100],[33,101,33,105],[33,106,33,110],[33,62,33,66],[33,67,33,71],[33,32,33,34],[33,35,33,39],[33,40,33,44],[33,45,33,49],[33,50,33,54],[33,55,33,59],[33,60,33,61],[114,187,114,191],[114,192,114,196],[114,197,114,201],[114,202,114,206],[114,110,114,156],[114,157,114,161],[114,162,114,166],[114,167,114,171],[114,172,114,176],[114,177,114,181],[114,182,114,186],[115,187,115,191],[115,192,115,196],[115,197,115,201],[115,202,115,206],[115,110,115,156],[115,157,115,161],[115,162,115,166],[115,167,115,171],[115,172,115,176],[115,177,115,181],[115,182,115,186],[112,187,112,191],[112,192,112,196],[112,197,112,201],[112,202,112,206],[112,110,112,156],[112,157,112,161],[112,162,112,166],[112,167,112,171],[112,172,112,176],[112,177,112,181],[112,182,112,186],[113,187,113,191],[113,192,113,196],[113,197,113,201],[113,202,113,206],[113,110,113,156],[113,157,113,161],[113,162,113,166],[113,167,113,171],[113,172,113,176],[113,177,113,181],[113,182,113,186],[110,202,110,206],[110,110,110,156],[110,157,110,161],[110,162,110,166],[110,167,110,171],[110,172,110,176],[110,177,110,181],[110,182,110,186],[111,187,111,191],[111,192,111,196],[111,197,111,201],[111,202,111,206],[111,110,111,156],[111,157,111,161],[111,162,111,166],[111,167,111,171],[111,172,111,176],[111,177,111,181],[111,182,111,186],[143,0,143,206],[144,0,145,206],[146,0,148,206],[135,0,135,103],[135,104,135,107],[135,108,135,205],[136,0,136,206],[137,0,137,86],[137,87,137,206],[138,87,138,206],[123,182,123,186],[123,187,123,191],[123,192,123,196],[123,197,123,201],[122,110,122,181],[122,182,122,186],[122,187,122,191],[122,192,122,196],[122,197,122,201],[122,202,122,206],[123,202,123,206],[123,110,123,181],[124,110,124,181],[124,182,124,186],[124,187,124,191],[124,192,124,196],[124,197,124,201],[124,202,124,206],[126,182,126,186],[126,187,126,191],[127,182,133,186],[126,192,126,196],[131,162,131,166],[131,177,131,181],[131,110,131,161],[132,110,132,161],[132,162,132,166],[132,167,132,171],[132,172,132,176],[132,177,132,181],[134,0,134,206],[138,0,138,86],[139,0,139,90],[140,0,140,90],[141,0,141,27],[139,91,139,206],[140,91,140,206],[141,28,141,206],[142,0,142,206],[131,187,131,206],[132,187,133,206],[131,167,131,171],[131,172,131,176],[133,110,133,161],[133,162,133,166],[133,167,133,171],[133,172,133,176],[133,177,133,181],[125,110,125,181],[125,182,125,186],[125,187,125,191],[125,192,125,196],[125,197,125,201],[125,202,125,206],[126,202,126,206],[126,110,126,181],[127,104,129,161],[127,162,128,181],[129,162,129,166],[129,167,129,171],[129,172,129,176],[129,177,129,181],[130,110,130,161],[130,162,130,166],[130,167,130,171],[130,172,130,176],[130,177,130,181],[126,197,126,201],[127,187,128,206],[129,187,130,206],[107,187,107,191],[107,192,107,196],[107,197,107,201],[107,202,107,206],[107,110,107,156],[107,157,107,161],[107,162,107,166],[107,167,107,171],[107,172,107,176],[107,177,107,181],[107,182,107,186],[120,104,121,181],[120,182,121,186],[120,187,120,206],[121,187,121,191],[121,192,121,196],[121,197,121,201],[121,202,121,206],[109,187,109,191],[109,192,109,196],[109,197,109,201],[109,202,109,206],[109,110,109,156],[109,157,109,161],[109,162,109,166],[109,167,109,171],[109,172,109,176],[109,177,109,181],[109,182,109,186],[110,187,110,191],[110,192,110,196],[110,197,110,201],[105,187,105,191],[105,192,105,196],[105,197,105,201],[105,202,105,206],[105,110,105,156],[105,157,105,161],[105,162,105,166],[105,167,105,171],[105,172,105,176],[105,177,105,181],[105,182,105,186],[106,187,106,191],[106,192,106,196],[106,197,106,201],[106,202,106,206],[106,110,106,156],[106,157,106,161],[106,162,106,166],[106,167,106,171],[106,172,106,176],[106,177,106,181],[106,182,106,186],[118,187,118,191],[118,192,118,196],[118,197,118,201],[118,202,118,206],[118,110,118,156],[118,157,118,161],[118,162,118,166],[118,167,118,171],[118,172,118,176],[118,177,118,181],[118,182,118,186],[119,187,119,191],[119,192,119,196],[119,197,119,201],[119,202,119,206],[119,110,119,156],[119,157,119,161],[119,162,119,166],[119,167,119,171],[119,172,119,176],[119,177,119,181],[119,182,119,186],[116,63,116,67],[116,68,116,72],[116,73,116,77],[116,78,116,82],[116,187,116,191],[116,192,116,196],[116,197,116,201],[116,202,116,206],[116,110,116,156],[116,157,116,161],[116,162,116,166],[116,167,116,171],[116,172,116,176],[116,177,116,181],[116,182,116,186],[117,187,117,191],[117,192,117,196],[117,197,117,201],[117,202,117,206],[117,110,117,156],[117,157,117,161],[117,162,117,166],[117,167,117,171],[117,172,117,176],[117,177,117,181],[117,182,117,186],[105,83,105,87],[105,88,105,92],[105,93,105,97],[105,98,105,102],[105,6,105,52],[105,53,105,57],[105,58,105,62],[105,63,105,67],[105,68,105,72],[105,73,105,77],[105,78,105,82],[106,6,106,52],[107,6,107,52],[107,53,107,57],[107,58,107,62],[107,63,107,67],[107,68,107,72],[107,73,107,77],[107,78,107,82],[107,83,107,87],[107,88,107,92],[100,83,100,87],[100,88,100,92],[100,93,100,97],[100,98,100,102],[98,63,98,67],[98,68,98,72],[98,73,98,77],[98,83,98,87],[98,88,98,92],[99,58,99,77],[99,83,99,102],[101,78,101,82],[101,83,101,87],[101,88,101,92],[101,93,101,97],[101,98,101,102],[98,58,98,62],[100,58,100,62],[100,63,100,67],[100,68,100,72],[100,73,100,77],[101,68,101,72],[101,73,101,77],[101,58,101,62],[101,63,101,67],[89,0,94,5],[96,78,96,82],[96,83,96,87],[95,68,95,72],[95,73,95,77],[95,78,95,82],[95,83,95,87],[95,88,95,92],[96,68,96,72],[96,73,96,77],[96,88,96,92],[87,6,87,52],[87,53,87,57],[87,58,87,62],[87,63,87,67],[88,6,88,52],[88,53,88,57],[88,58,88,62],[88,63,88,67],[89,53,89,57],[90,6,90,52],[90,53,90,57],[90,58,90,62],[90,63,90,67],[91,6,91,52],[91,53,91,57],[91,58,91,62],[91,63,91,67],[92,6,92,52],[92,53,92,57],[92,58,92,62],[92,63,92,67],[118,78,118,82]],"merged_total":1341,"flags":["merged_cut"]}
[null,null,null,null,null,null,null,null,null,null,null,null,null,null,null,null,null,null,null,null,null,null,null,null,null,null,null,null,null,"PROCESO: PLANEACIÓN ESTRATÉGICA Y TERRITORIAL",null,null,null,null,null,null,null,null,null,null,null,null,null,null,null,null,null,null,null,null,null,null,null,null,null,null,null,null,null,null,null,null,null,null,null,null,null,null,null,null,null,null,null,null,null,null,null,null,null,null,null,null,null,null,null,null,null,null,null,null,null,null,null,null,null,null,null,null,null,null,null,null,null,null,null,null,null,null,null,null,null,null,null,null,null,null,null,null,null,null,null,null,null,null,null,null,null,null,null,null,null,null,null,null,null,"Código: FOR-27-PRO-PET-01"]
[null,null,null,null,null,null,null,null,null,null,null,null,null,null,null,null,null,null,null,null,null,null,null,null,null,null,null,null,null,null,null,null,null,null,null,null,null,null,null,null,null,null,null,null,null,null,null,null,null,null,null,null,null,null,null,null,null,null,null,null,null,null,null,null,null,null,null,null,null,null,null,null,null,null,null,null,null,null,null,null,null,null,null,null,null,null,null,null,null,null,null,null,null,null,null,null,null,null,null,null,null,null,null,null,null,null,null,null,null,null,null,null,null,null,null,null,null,null,null,null,null,null,null,null,null,null,null,null,null,null,null,null,null,null,null,"Versión: 01"]
[null,null,null,null,null,null,null,null,null,null,null,null,null,null,null,null,null,null,null,null,null,null,null,null,null,null,null,null,null,"FORMATO: FICHA PREDIAL CATASTRAL",null,null,null,null,null,null,null,null,null,null,null,null,null,null,null,null,null,null,null,null,null,null,null,null,null,null,null,null,null,null,null,null,null,null,null,null,null,null,null,null,null,null,null,null,null,null,null,null,null,null,null,null,null,null,null,null,null,null,null,null,null,null,null,null,null,null,null,null,null,null,null,null,null,null,null,null,null,null,null,null,null,null,null,null,null,null,null,null,null,null,null,null,null,null,null,null,null,null,null,null,null,null,null,null,null,"Fecha: 28/01/2022"]
[null,null,null,null,null,null,null,null,null,null,null,null,null,null,null,null,null,null,null,null,null,null,null,null,null,null,null,null,null,null,null,null,null,null,null,null,null,null,null,null,null,null,null,null,null,null,null,null,null,null,null,null,null,null,null,null,null,null,null,null,null,null,null,null,null,null,null,null,null,null,null,null,null,null,null,null,null,null,null,null,null,null,null,null,null,null,null,null,null,null,null,null,null,null,null,null,null,null,null,null,null,null,null,null,null,null,null,null,null,null,null,null,null,null,null,null,null,null,null,null,null,null,null,null,null,null,null,null,null,null,null,null,null,null,null,"Página: 1 de 1"]
[]
["FECHA DE VISITA:",null,null,null,null,null,null,null,null,null,null,null,null,null,null,null,null,null,null,null,null,null,null,null,null,null,null,null,null,null,null,null,null,null,null,null,null,null,null,null,null,{"$f":"+Formulario!AR2","v":""},null,null,null,null,null,null,null,null,null,null,null,null,{"$f":"+Formulario!AS2","v":""},null,null,null,null,null,null,null,null,null,null,null,null,null,{"$f":"+Formulario!AT2","v":""}]
[]
["A . TRÁMITE"]
[]
[null,null,null,null,{"$f":"+IF(Formulario!E4=\"\",\"\",Formulario!E4)","v":""}]
[{"$f":"IF(Formulario!#REF!<>\"\",Formulario!#REF!,\"\")","v":{"$error":"#REF!"}}]
["B. DATOS BÁSICOS SOLICITUD"]
[]
[null,null,null,null,"RADICACIÓN No.",null,null,null,null,null,null,null,null,null,null,null,null,null,null,null,null,null,null,null,null,null,null,null,null,null,null,null,null,null,null,null,null,null,null,null,null,null,null,null,null,null,{"$f":"Formulario!E5","v":" "}]
[]
[null,null,null,null,"MATRÍCULA INMOBILIARIA",null,null,null,null,null,null,null,null,null,null,null,null,null,null,null,null,null,null,null,null,null,null,null,null,null,null,null,null,null,null,null,null,null,null,null,null,null,null,null,null,null,{"$f":"Formulario!E8","v":" "}]
[]
[null,null,null,null,"NÚMERO PREDIAL NACIONAL ANT.",null,null,null,null,null,null,null,null,null,null,null,null,null,null,null,null,null,null,null,null,null,null,null,null,null,null,null,null,null,null,null,null,null,null,null,null,null,null,null,null,null,{"$f":"Formulario!E6","v":" "}]
[]
[null,null,null,null,"NÚMERO PREDIAL NACIONAL NUEVO",null,null,null,null,null,null,null,null,null,null,null,null,null,null,null,null,null,null,null,null,null,null,null,null,null,null,null,null,null,null,null,null,null,null,null,null,null,null,null,null,null,{"$f":"Formulario!E7","v":" "}]
[]
[null,null,null,null,"CORREGIMIENTO / VEREDA / DIRECCIÓN",null,null,null,null,null,null,null,null,null,null,null,null,null,null,null,null,null,null,null,null,null,null,null,null,null,null,null,null,null,null,null,null,null,null,null,null,null,null,null,null,null,{"$f":"Formulario!E9","v":" "}]
[]
[]
[]
["C. INFORMACIÓN FÍSICA DEL INMUEBLE"]
[]
[null,null,null,null,"AREA DE TERRENO (M²)",null,null,null,null,null,null,null,null,null,null,null,null,null,null,null,null,null,null,null,null,null,null,null,null,null,null,null,null,null,null,null,null,null,null,null,null,null,null,null,null,null,{"$f":"+Formulario!AR10","v":""},null,null,null,null,null,{"$f":"+Formulario!AS10","v":""},null,null,null,null,null,{"$f":"+Formulario!AT10","v":""},null,null,null,null,null,{"$f":"+Formulario!AU10","v":""},null,null,{"$f":"+Formulario!AV10","v":""},null,null,{"$f":"+Formulario!AW10","v":""},null,null,null,null,null,",",null,{"$f":"+Formulario!AY10","v":""},null,null,null,null,null,{"$f":"+Formulario!AZ10","v":""},null,null,null,null,null,null,null,null,null,null,null,null,null,null,null,null,null,null,null,null,null,null,null,null,null,null,null,null,"AREA CONSTRUIDA  (M2)",null,null,null,null,null,null,null,null,null,null,null,null,null,null,null,null,null,null,null,null,null,null,null,null,null,null,null,null,null,null,null,null,null,null,null,null,null,null,{"$f":"+Formulario!AR11","v":""},null,null,null,null,null,{"$f":"+Formulario!AS11","v":""},null,null,null,null,null,{"$f":"+Formulario!AT11","v":""},null,null,null,null,null,{"$f":"+Formulario!AU11","v":""},null,null,null,null,null,{"$f":"+Formulario!AV11","v":""},null,null,null,null,null,{"$f":"+Formulario!AW11","v":""},null,null,null,null,null,",",null,{"$f":"+Formulario!AY11","v":""},null,null,null,null,null,{"$f":"+Formulario!AZ11","v":""}]
[]
[null,null,null,null,"TIPO PREDIO",null,null,null,null,null,null,null,null,null,null,null,null,null,null,null,null,null,null,null,null,null,null,null,null,null,null,null,null,null,null,null,null,null,null,null,null,null,null,null,null,null,null,null,null,null,null,null,null,null,null,null,null,null,null,null,null,null,null,null,null,null,null,null,null,null,null,null,null,null,null,null,null,null,null,null,null,null,null,null,null,null,null,null,null,null,null,null,null,null,null,null,null,null,null,null,null,null,null,null,null,null,null,null,null,null,null,null,null,null,null,null,null,null,"OBSERVACIONES SOBRE ZHFG",null,null,null,null,null,null,null,null,null,null,null,null,null,null,null,null,null,null,null,null,null,null,null,null,null,null,null,null,null,null,null,null,null,null,null,null,null,null,null,null,null,null,null,null,null,null,{"$f":"+Formulario!AR13","v":""},null,null,null,null,null,null,null,null,null,null,null,{"$f":"+Formulario!AS13","v":""}]
[]
["D. INFORMACIÓN ADICIONAL"]
[null,null,null,"TIPO",null,null,null,null,null,null,null,"UNIDAD",null,null,null,null,null,null,null,null,null,"USO",null,null,null,null,null,null,null,null,null,null,null,null,null,"AREAS POR USO",null,null,null,null,null,null,null,null,null,null,null,null,null,null,null,null,null,null,null,null,null,null,null,null,null,null,null,null,null,null,null,null,null,null,null,null,null,null,"PUNTAJE",null,null,null,null,null,null,null,null,null,null,null,null,null,"VETUSTEZ",null,null,null,null,null,null,null,null,null,null,null,null,null,null,null,null,null,"AVANCE",null,null,null,null,null,null,null,null,null,null,null,null,null,null,null,"OTRAS OBSERVACIONES:"]
[null,null,null,null,{"$f":"+Formulario!AR14","v":""},null,null,null,null,null,null,null,{"$f":"+Formulario!AS14","v":""},null,null,null,null,null,null,null,null,{"$f":"+Formulario!AT14","v":""},null,null,null,null,null,{"$f":"+Formulario!AU14","v":""},null,null,null,null,null,null,null,{"$f":"+Formulario!AR15","v":""},null,null,null,null,{"$f":"+Formulario!AS15","v":""},null,null,null,null,{"$f":"+Formulario!AT15","v":""},null,null,null,null,{"$f":"+Formulario!AU15","v":""},null,null,null,null,{"$f":"+Formulario!AV15","v":""},null,null,null,null,".",null,{"$f":"+Formulario!AX15","v":""},null,null,null,null,{"$f":"+Formulario!AY15","v":""},null,null,null,null,null,null,{"$f":"+Formulario!AR16","v":""},null,null,null,null,null,{"$f":"+Formulario!AS16","v":""},null,null,null,null,null,null,null,{"$f":"+IF(Formulario!E16=\"\",\"\",Formulario!E16)","v":""},null,null,null,null,null,null,null,null,null,null,null,null,null,null,null,null,null,{"$f":"+IF(DI34<>\"\",\"0\",\"\")","v":""},null,null,null,null,null,{"$f":"+Formulario!AR18","v":""},null,null,null,null,null,null,null,null,null,{"$f":"+IF(Formulario!C45=\"\",\"\",Formulario!C45)","v":""}]
[]
[null,null,null,null,{"$f":"+Formulario!AR19","v":""},null,null,null,null,null,null,null,{"$f":"+Formulario!AS19","v":""},null,null,null,null,null,null,null,null,{"$f":"+Formulario!AT19","v":""},null,null,null,null,null,{"$f":"+Formulario!AU19","v":""},null,null,null,null,null,null,null,{"$f":"+Formulario!AR20","v":""},null,null,null,null,{"$f":"+Formulario!AS20","v":""},null,null,null,null,{"$f":"+Formulario!AT20","v":""},null,null,null,null,{"$f":"+Formulario!AU20","v":""},null,null,null,null,{"$f":"+Formulario!AV20","v":""},null,null,null,null,".",null,{"$f":"+Formulario!AX20","v":""},null,null,null,null,{"$f":"+Formulario!AY20","v":""},null,null,null,null,null,null,{"$f":"+Formulario!AR21","v":""},null,null,null,null,null,{"$f":"+Formulario!AS21","v":""},null,null,null,null,null,null,null,{"$f":"+IF(Formulario!E20=\"\",\"\",Formulario!E20)","v":""},null,null,null,null,null,null,null,null,null,null,null,null,null,null,null,null,null,{"$f":"+IF(DI36<>\"\",\"0\",\"\")","v":""},null,null,null,null,null,{"$f":"+Formulario!AR23","v":""},null,null,null,null,null,null,null,null,null,{"$f":"+IF(Formulario!C46=\"\",\"\",Formulario!C46)","v":""}]
[]
[null,null,null,null,{"$f":"+Formulario!AR24","v":""},null,null,null,null,null,null,null,{"$f":"+Formulario!AS24","v":""},null,null,null,null,null,null,null,null,{"$f":"+Formulario!AT24","v":""},null,null,null,null,null,{"$f":"+Formulario!AU24","v":""},null,null,null,null,null,null,null,{"$f":"+Formulario!AR25","v":""},null,null,null,null,{"$f":"+Formulario!AS25","v":""},null,null,null,null,{"$f":"+Formulario!AT25","v":""},null,null,null,null,{"$f":"+Formulario!AU25","v":""},null,null,null,null,{"$f":"+Formulario!AV25","v":""},null,null,null,null,".",null,{"$f":"+Formulario!AX25","v":""},null,null,null,null,{"$f":"+Formulario!AY25","v":""},null,null,null,null,null,null,{"$f":"+Formulario!AR26","v":""},null,null,null,null,null,{"$f":"+Formulario!AS26","v":""},null,null,null,null,null,null,null,{"$f":"+IF(Formulario!E24=\"\",\"\",Formulario!E24)","v":""},null,null,null,null,null,null,null,null,null,null,null,null,null,null,null,null,null,{"$f":"+IF(DI38<>\"\",\"0\",\"\")","v":""},null,null,null,null,null,{"$f":"+Formulario!AR28","v":""},null,null,null,null,null,null,null,null,null,{"$f":"+IF(Formulario!C47=\"\",\"\",Formulario!C47)","v":""}]
[]
[null,null,null,null,{"$f":"+Formulario!AR29","v":""},null,null,null,null,null,null,null,{"$f":"+Formulario!AS29","v":""},null,null,null,null,null,null,null,null,{"$f":"+Formulario!AT29","v":""},null,null,null,null,null,{"$f":"+Formulario!AU29","v":""},null,null,null,null,null,null,null,{"$f":"+Formulario!AR30","v":""},null,null,null,null,{"$f":"+Formulario!AS30","v":""},null,null,null,null,{"$f":"+Formulario!AT30","v":""},null,null,null,null,{"$f":"+Formulario!AU30","v":""},null,null,null,null,{"$f":"+Formulario!AV30","v":""},null,null,null,null,".",null,{"$f":"+Formulario!AX30","v":""},null,null,null,null,{"$f":"+Formulario!AY30","v":""},null,null,null,null,null,null,{"$f":"+Formulario!AR31","v":""},null,null,null,null,null,{"$f":"+Formulario!AS31","v":""},null,null,null,null,null,null,null,{"$f":"+IF(Formulario!E28=\"\",\"\",Formulario!E28)","v":""},null,null,null,null,null,null,null,null,null,null,null,null,null,null,null,null,null,{"$f":"+IF(DI40<>\"\",\"0\",\"\")","v":""},null,null,null,null,null,{"$f":"+Formulario!AR33","v":""}]
[]
["E. INFORMACIÓN ASPECTO JURÍDICO "]
[null,null,null,null,"PROPIETARIO O POSEEDOR:",null,null,null,null,null,null,null,null,null,null,null,null,null,null,null,null,null,null,null,null,null,null,null,null,null,null,null,null,null,null,null,null,null,null,null,null,null,null,null,null,null,null,null,null,null,null,null,null,null,null,null,null,null,null,null,null,null,null,null,null,null,null,"CANTIDAD:",null,null,null,null,null,null,null,null,null,null,null,null,null,null,null,null,null,null,null,null,null,null,null,null,null,null,{"$f":"+IF(Formulario!E30=\"\",\"\",Formulario!E30)","v":""}]
[null,null,null,null,"TIPO ID.",null,null,null,null,null,null,null,null,null,null,null,null,null,null,null,null,null,null,null,null,null,null,null,null,null,null,"NÚMERO",null,null,null,null,null,null,null,null,null,null,null,null,null,null,null,null,null,null,null,null,null,null,null,null,null,null,null,null,null,null,null,null,null,null,null,null,null,null,null,null,null,null,null,null,null,null,null,null,null,null,null,null,null,null,null,null,null,null,null,null,null,null,null,null,"APELLIDOS"]
[null,null,null,null,{"$f":"+IF(Formulario!E31=\"\",\"\",Formulario!E31)","v":""},null,null,null,null,null,null,null,null,null,null,null,null,null,null,null,null,null,null,null,null,null,null,{"$f":"+Formulario!AR35","v":""},null,null,null,null,null,{"$f":"+Formulario!AS35","v":""},null,null,null,null,null,{"$f":"+Formulario!AT35","v":""},null,null,null,null,null,{"$f":"+Formulario!AU35","v":""},null,null,null,null,null,{"$f":"+Formulario!AV35","v":""},null,null,null,null,null,{"$f":"+Formulario!AW35","v":""},null,null,null,null,null,{"$f":"+Formulario!AX35","v":""},null,null,null,null,null,{"$f":"+Formulario!AY35","v":""},null,null,null,null,null,{"$f":"+Formulario!AZ35","v":""},null,null,null,null,null,{"$f":"+Formulario!BA35","v":""},null,null,null,null,null,{"$f":"+Formulario!BB35","v":""},null,null,null,null,null,null,null,null,{"$f":"+Formulario!AR36","v":""},null,null,null,null,{"$f":"+Formulario!AS36","v":""},null,null,null,null,{"$f":"+Formulario!AT36","v":""},null,null,null,null,{"$f":"+Formulario!AU36","v":""},null,null,null,null,{"$f":"+Formulario!AV36","v":""},null,null,null,null,{"$f":"+Formulario!AW36","v":""},null,null,null,null,{"$f":"+Formulario!AX36","v":""},null,null,null,null,{"$f":"+Formulario!AY36","v":""},null,null,null,null,{"$f":"+Formulario!AZ36","v":""},null,null,null,null,{"$f":"+Formulario!BA36","v":""},null,null,null,null,{"$f":"+Formulario!BB36","v":""},null,null,null,null,{"$f":"+Formulario!BC36","v":""},null,null,null,null,{"$f":"+Formulario!BD36","v":""},null,null,null,null,{"$f":"+Formulario!BE36","v":""},null,null,null,null,{"$f":"+Formulario!BF36","v":""},null,null,null,null,{"$f":"+Formulario!BG36","v":""},null,null,null,null,{"$f":"+Formulario!BH36","v":""},null,null,null,null,{"$f":"+Formulario!BI36","v":""},null,null,null,null,{"$f":"+Formulario!BJ36","v":""},null,null,null,null,{"$f":"+Formulario!BK36","v":""},null,null,null,null,{"$f":"+Formulario!BL36","v":""},null,null,null,null,{"$f":"+Formulario!BM36","v":""}]
[]
[null,null,null,null,"NOMBRES"]
[null,null,null,null,{"$f":"+Formulario!AR37","v":""},null,null,null,null,null,{"$f":"+Formulario!AS37","v":""},null,null,null,null,null,{"$f":"+Formulario!AT37","v":""},null,null,null,null,null,{"$f":"+Formulario!AU37","v":""},null,null,null,null,null,{"$f":"+Formulario!AV37","v":""},null,null,null,null,null,{"$f":"+Formulario!AW37","v":""},null,null,null,null,null,{"$f":"+Formulario!AX37","v":""},null,null,null,null,null,{"$f":"+Formulario!AY37","v":""},null,null,null,null,null,{"$f":"+Formulario!AZ37","v":""},null,null,null,null,null,{"$f":"+Formulario!BA37","v":""},null,null,null,null,null,{"$f":"+Formulario!BB37","v":""},null,null,null,null,null,{"$f":"+Formulario!BC37","v":""},null,null,null,null,null,{"$f":"+Formulario!BD37","v":""},null,null,null,null,null,{"$f":"+Formulario!BE37","v":""},null,null,null,null,null,{"$f":"+Formulario!BF37","v":""},null,null,null,null,null,{"$f":"+Formulario!BG37","v":""},null,null,null,null,null,{"$f":"+Formulario!BH37","v":""},null,null,null,null,null,{"$f":"+Formulario!BI37","v":""},null,null,null,null,null,{"$f":"+Formulario!BJ37","v":""},null,null,null,null,null,{"$f":"+Formulario!BK37","v":""},null,null,null,null,null,{"$f":"+Formulario!BL37","v":""},null,null,null,null,null,{"$f":"+Formulario!BM37","v":""},null,null,null,null,null,{"$f":"+Formulario!BN37","v":""},null,null,null,null,null,{"$f":"+Formulario!BO37","v":""},null,null,null,null,null,{"$f":"+Formulario!BP37","v":""},null,null,null,null,null,{"$f":"+Formulario!BQ37","v":""},null,null,null,null,null,{"$f":"+Formulario!BR37","v":""},null,null,null,null,null,{"$f":"+Formulario!BS37","v":""},null,null,null,null,null,{"$f":"+Formulario!BT37","v":""},null,null,null,null,null,{"$f":"+Formulario!BU37","v":""},null,null,null,null,null,{"$f":"+Formulario!BV37","v":""}]
["F. JUSTIFICACIÓN DEL DERECHO DE PROPIEDAD O DE POSESIÓN DEL PREDIO"]
[null,null,"MODO DE ADQUISICIÓN",null,null,null,null,null,null,null,null,null,null,null,null,null,null,null,null,null,null,null,null,null,null,null,null,null,null,null,null,null,null,null,null,null,null,null,null,null,null,null,null,null,null,null,null,null,null,null,null,null,"VALOR DE COMPRA",null,null,null,null,null,null,null,null,null,null,null,null,null,null,null,null,null,null,null,null,null,null,null,null,null,null,null,null,null,null,null,null,null,null,null,null,null,null,null,null,null,null,null,null,null,null,null,null,null,"PROPIETARIOS ANTERIORES"]
[null,null,{"$f":"Formulario!K27","v":""},null,null,null,null,null,null,null,null,null,null,null,{"$f":"Formulario!I27","v":0},null,null,null,null,null,null,null,null,null,null,null,null,null,null,null,null,null,null,null,null,null,null,null,null,null,null,null,null,null,null,null,null,null,null,null,null,null,{"$f":"Formulario!I30","v":0},null,null,null,null,null,null,null,null,null,null,null,null,null,null,null,null,null,null,null,null,null,null,null,null,null,null,null,null,null,null,null,null,null,null,null,null,null,null,null,null,null,null,null,null,null,null,null,null,null,{"$f":"Formulario!M27","v":" "}]
[]
[]
["G. OBSERVACIONES VISITA TÉCNICA"]
[{"$f":"IF(Formulario!C36<>\"\",Formulario!C36,\"\")","v":"   "}]
[{"$f":"IF(Formulario!C37<>\"\",Formulario!C37,\"\")","v":""}]
[{"$f":"IF(Formulario!C38<>\"\",Formulario!C38,\"\")","v":""}]
[{"$f":"IF(Formulario!C39<>\"\",Formulario!C39,\"\")","v":""}]
[{"$f":"IF(Formulario!C40<>\"\",Formulario!C40,\"\")","v":""}]
[{"$f":"IF(Formulario!C41<>\"\",Formulario!C41,\"\")","v":""}]
[{"$f":"IF(Formulario!C42<>\"\",Formulario!C42,\"\")","v":""}]
[{"$f":"IF(Formulario!C43<>\"\",Formulario!C43,\"\")","v":""}]
[{"$f":"IF(Formulario!C44<>\"\",Formulario!C44,\"\")","v":""}]
["H. INFORMACIÓN CARTOGRÁFICA"]
["NOMBRE Y APELLIDO RESPONSABLE ACTUALIZACION CARTOGRÁFICA",null,null,null,null,null,null,null,null,null,null,null,null,null,null,null,null,null,null,null,null,null,null,null,null,null,null,null,null,null,null,null,null,null,null,null,null,null,null,null,null,null,null,null,null,null,null,null,null,null,null,null,null,null,null,null,null,null,null,null,null,null,null,null,null,null,null,null,null,null,null,null,null,null,null,null,null,null,null,null,null,null,null,null,null,null,null,null,null,null,null,null,null,null,null,null,null,null,null,null,null,null,null,null,null,"NOMBRE Y APELLIDO RESPONSABLE C. CALIDAD CARTOGRÁFICA"]
[null,null,null,null,null,null,null,null,null,null,null,null,null,null,null,null,null,null,null,null,null,null,null,null,null,null,null,null,null,null,null,null,null,null,null,null,null,null,null,null,null,null,null,null,null,null,null,null,null,null,null,null,null,null,null,null,null,null,null,null,null,null,null,null,null,null,null,null,null,null,null,null,null,null,null,null,null,null,null,null,null,null,null,null,null,null,null,null,null,null,null,null,null,null,null,null,null,null,null,null,null,null,null,null,1]
[]
["FECHA DE REVISIÓN",null,null,null,null,null,null,null,null,null,null,null,null,null,null,null,null,null,null,null,null,null,null,null,null,null,null,null,null,null,null,null,null,null,null,null,null,null,null,null,null,null,null,null,null,null,null,null,null,null,null,null,null,null,null,null,"/",null,null,null,null,null,null,null,null,null,null,null,null,null,null,null,"/",null,null,null,null,null,null,null,null,null,null,null,null,null,null,null,null,null,null,null,null,null,null,null,null,null,null,null,null,null,null,null,null,"ÁREA DE TERRENO (M2)",null,null,null,null,null,null,null,null,null,null,null,null,null,null,null,null,null,null,null,null,null,null,null,null,null,null,null,null,null,null,null,null,null,null,null,null,null,null,null,null,null,null,null,null,null,null,null,null,null,null,null,"ÁREA CONSTRUIDA (M2)"]
[null,null,null,null,null,null,null,null,null,null,null,null,null,null,null,null,null,null,null,null,null,null,null,null,null,null,null,null,null,null,null,null,null,null,null,null,null,null,null,null,null,null,null,null,null,null,null,null,null,null,null,null,null,null,null,null,null,null,null,null,null,null,null,null,null,null,null,null,null,null,null,null,null,null,null,null,null,null,null,null,null,null,null,null,null,null,null,null,null,null,null,null,null,null,null,null,null,null,null,null,null,null,null,null,null,"ACT. CARTOGRÁFICA",null,null,null,null,null,null,null,null,null,null,null,null,null,null,null,null,null,null,null,null,null,null,null,null,null,null,null,null,null,null,null,null,null,null,null,null,null,null,null,null,null,null,null,null,null,null,null,null,null,null,null,"ACT. CARTOGRÁFICA"]
[]
["SE ANEXA PLANO?",null,null,null,null,null,null,null,null,null,null,null,null,null,null,null,null,null,null,null,null,null,null,null,null,null,null,null,null,null,null,null,null,null,null,null,null,null,null,null,null,null,null,"SI",null,null,null,null,null,null,null,null,null,{"$f":"+IF(Formulario!C35=\"\",\"\",IF(Formulario!C35=\"SI\",\"X\",\"\"))","v":""},null,null,null,null,null,null,null,null,null,null,"NO",null,null,null,null,null,null,null,null,null,null,{"$f":"+IF(Formulario!C35=\"\",\"\",IF(Formulario!C35=\"NO\",\"X\",\"\"))","v":""},null,null,null,null,null,null,null,null,null,null,null,null,null,null,null,null,null,null,null,null,null,null,null,null,null,null,null,null,null,null,null,null,null,null,null,{"$f":"+Formulario!AR55","v":""},null,null,null,null,null,{"$f":"+Formulario!AS55","v":""},null,null,null,null,null,{"$f":"+Formulario!AT55","v":""},null,null,null,null,null,{"$f":"+Formulario!AU55","v":""},null,null,null,null,null,{"$f":"+Formulario!AV55","v":""},null,null,null,null,null,".",null,{"$f":"+Formulario!AX55","v":""},null,null,null,null,null,{"$f":"+Formulario!AY55","v":""},null,null,null,null,null,null,null,null,null,null,null,null,null,null,null,null,null,null,null,null,null,null,null,null,null,null,null,null,null,null,null,null,null,null,null,null,null,null,null,null,null,null,null,"."]
[]
["OBSERVACIONES CARTOGRAFÍA:"]
[{"$f":"Formulario!I33","v":" "}]
[]
[]
["CALIFICACIÓN DE CONSTRUCCIÓN"]
["1. ESTRUCTURA",null,null,null,null,null,null,null,null,null,null,null,null,null,null,null,null,null,null,null,null,null,null,null,null,null,null,null,null,null,null,null,null,null,null,null,null,null,null,null,null,null,null,null,null,null,null,null,null,null,null,null,null,"PUNTOS",null,null,null,null,"RESIDENCIAL",null,null,null,null,null,null,null,null,null,null,null,null,null,null,null,null,null,null,null,"PUNTOS",null,null,null,null,"INDUSTRIAL  O\nCOMERCIAL",null,null,null,null,null,null,null,null,null,null,null,null,null,null,null,null,null,null,null,null,"3. BAÑO",null,null,null,null,null,null,null,null,null,null,null,null,null,null,null,null,null,null,null,null,null,null,null,null,null,null,null,null,null,null,null,null,null,null,null,null,null,null,null,null,null,null,null,null,null,null,null,null,null,null,null,null,"PUNTOS",null,null,null,null,"RESIDENCIAL",null,null,null,null,null,null,null,null,null,null,null,null,null,null,null,null,null,null,null,"PUNTOS",null,null,null,null,"INDUSTRIAL  O\nCOMERCIAL"]
[null,null,null,null,null,null,null,null,null,null,null,null,null,null,null,null,null,null,null,null,null,null,null,null,null,null,null,null,null,null,null,null,null,null,null,null,null,null,null,null,null,null,null,null,null,null,null,null,null,null,null,null,null,null,null,null,null,null,{"$f":"+Formulario!K3","v":"A"},null,null,null,null,{"$f":"+Formulario!M3","v":"B"},null,null,null,null,{"$f":"+Formulario!O3","v":"C"},null,null,null,null,{"$f":"+Formulario!Q3","v":"D"},null,null,null,null,null,null,null,null,null,{"$f":"+Formulario!V3","v":"A"},null,null,null,null,{"$f":"+Formulario!X3","v":"B"},null,null,null,null,{"$f":"+Formulario!Z3","v":"C"},null,null,null,null,{"$f":"+Formulario!AB3","v":"D"},null,null,null,null,null,null,null,null,null,null,null,null,null,null,null,null,null,null,null,null,null,null,null,null,null,null,null,null,null,null,null,null,null,null,null,null,null,null,null,null,null,null,null,null,null,null,null,null,null,null,null,null,null,null,null,null,null,null,null,null,null,null,null,{"$f":"+Formulario!K3","v":"A"},null,null,null,null,{"$f":"+Formulario!M3","v":"B"},null,null,null,null,{"$f":"+Formulario!O3","v":"C"},null,null,null,null,{"$f":"+Formulario!Q3","v":"D"},null,null,null,null,null,null,null,null,null,{"$f":"+Formulario!V3","v":"A"},null,null,null,null,{"$f":"+Formulario!X3","v":"B"},null,null,null,null,{"$f":"+Formulario!Z3","v":"C"},null,null,null,null,{"$f":"+Formulario!AB3","v":"D"}]
["ARMAZÓN",null,null,null,null,null,"MADERA",null,null,null,null,null,null,null,null,null,null,null,null,null,null,null,null,null,null,null,null,null,null,null,null,null,null,null,null,null,null,null,null,null,null,null,null,null,null,null,null,null,null,null,null,null,null,0,null,null,null,null,{"$f":"+IF(Formulario!$J$4=\"\",\"\",IF(Formulario!$J$4=$BB80,$BB80,\"\"))","v":""},null,null,null,null,{"$f":"+IF(Formulario!$L$4=\"\",\"\",IF(Formulario!$L$4=$BB80,$BB80,\"\"))","v":""},null,null,null,null,{"$f":"+IF(Formulario!$N$4=\"\",\"\",IF(Formulario!$N$4=$BB80,$BB80,\"\"))","v":""},null,null,null,null,{"$f":"+IF(Formulario!$P$4=\"\",\"\",IF(Formulario!$P$4=$BB80,$BB80,\"\"))","v":""},null,null,null,null,4,null,null,null,null,{"$f":"+IF(Formulario!$AR$52=\"\",\"\",IF(Formulario!$AR$52=4,4,\"\"))","v":""},null,null,null,null,{"$f":"+IF(Formulario!$AR$53=\"\",\"\",IF(Formulario!$AR$53=4,4,\"\"))","v":""},null,null,null,null,{"$f":"+IF(Formulario!$AR$54=\"\",\"\",IF(Formulario!$AR$54=4,4,\"\"))","v":""},null,null,null,null,{"$f":"+IF(Formulario!$AR$55=\"\",\"\",IF(Formulario!$AR$55=4,4,\"\"))","v":""},null,null,null,null,null,"TAMAÑO",null,null,null,null,null,"SIN BAÑO",null,null,null,null,null,null,null,null,null,null,null,null,null,null,null,null,null,null,null,null,null,null,null,null,null,null,null,null,null,null,null,null,null,null,null,null,null,null,null,null,null,null,null,null,null,null,0,null,null,null,null,{"$f":"+IF(Formulario!$J$12=\"\",\"\",IF(Formulario!$J$12=FB80,FB80,\"\"))","v":""},null,null,null,null,{"$f":"+IF(Formulario!$AZ$49=\"\",\"\",IF(Formulario!$AZ$49=0,0,\"\"))","v":""},null,null,null,null,{"$f":"+IF(Formulario!$AZ$50=\"\",\"\",IF(Formulario!$AZ$50=0,0,\"\"))","v":""},null,null,null,null,{"$f":"+IF(Formulario!$AZ$51=\"\",\"\",IF(Formulario!$AZ$51=0,0,\"\"))","v":""}]
[null,null,null,null,null,null,"PREFABRICADO",null,null,null,null,null,null,null,null,null,null,null,null,null,null,null,null,null,null,null,null,null,null,null,null,null,null,null,null,null,null,null,null,null,null,null,null,null,null,null,null,null,null,null,null,null,null,1,null,null,null,null,{"$f":"+IF(Formulario!$J$4=\"\",\"\",IF(Formulario!$J$4=$BB81,$BB81,\"\"))","v":""},null,null,null,null,{"$f":"+IF(Formulario!$L$4=\"\",\"\",IF(Formulario!$L$4=$BB81,$BB81,\"\"))","v":""},null,null,null,null,{"$f":"+IF(Formulario!$N$4=\"\",\"\",IF(Formulario!$N$4=$BB81,$BB81,\"\"))","v":""},null,null,null,null,{"$f":"+IF(Formulario!$P$4=\"\",\"\",IF(Formulario!$P$4=$BB81,$BB81,\"\"))","v":""},null,null,null,null,8,null,null,null,null,{"$f":"+IF(Formulario!$AR$52=\"\",\"\",IF(Formulario!$AR$52=8,8,\"\"))","v":""},null,null,null,null,{"$f":"+IF(Formulario!$AR$53=\"\",\"\",IF(Formulario!$AR$53=7,7,\"\"))","v":""},null,null,null,null,{"$f":"+IF(Formulario!$AR$54=\"\",\"\",IF(Formulario!$AR$54=7,7,\"\"))","v":""},null,null,null,null,{"$f":"+IF(Formulario!$AR$55=\"\",\"\",IF(Formulario!$AR$55=7,7,\"\"))","v":""},null,null,null,null,null,null,null,null,null,null,null,"PEQUEÑO (0-4 M2)",null,null,null,null,null,null,null,null,null,null,null,null,null,null,null,null,null,null,null,null,null,null,null,null,null,null,null,null,null,null,null,null,null,null,null,null,null,null,null,null,null,null,null,null,null,null,1,null,null,null,null,{"$f":"+IF(Formulario!$J$12=\"\",\"\",IF(Formulario!$J$12=FB81,FB81,\"\"))","v":""},null,null,null,null,{"$f":"+IF(Formulario!$AZ$49=\"\",\"\",IF(Formulario!$AZ$49=1,1,\"\"))","v":""},null,null,null,null,{"$f":"+IF(Formulario!$AZ$50=\"\",\"\",IF(Formulario!$AZ$50=1,1,\"\"))","v":""},null,null,null,null,{"$f":"+IF(Formulario!$AZ$51=\"\",\"\",IF(Formulario!$AZ$51=1,1,\"\"))","v":""}]
[null,null,null,null,null,null,"LADRILLO, BLOQUE",null,null,null,null,null,null,null,null,null,null,null,null,null,null,null,null,null,null,null,null,null,null,null,null,null,null,null,null,null,null,null,null,null,null,null,null,null,null,null,null,null,null,null,null,null,null,2,null,null,null,null,{"$f":"+IF(Formulario!$J$4=\"\",\"\",IF(Formulario!$J$4=$BB82,$BB82,\"\"))","v":""},null,null,null,null,{"$f":"+IF(Formulario!$L$4=\"\",\"\",IF(Formulario!$L$4=$BB82,$BB82,\"\"))","v":""},null,null,null,null,{"$f":"+IF(Formulario!$N$4=\"\",\"\",IF(Formulario!$N$4=$BB82,$BB82,\"\"))","v":""},null,null,null,null,{"$f":"+IF(Formulario!$P$4=\"\",\"\",IF(Formulario!$P$4=$BB82,$BB82,\"\"))","v":""},null,null,null,null,12,null,null,null,null,{"$f":"+IF(Formulario!$AR$52=\"\",\"\",IF(Formulario!$AR$52=12,12,\"\"))","v":""},null,null,null,null,{"$f":"+IF(Formulario!$AR$53=\"\",\"\",IF(Formulario!$AR$53=12,12,\"\"))","v":""},null,null,null,null,{"$f":"+IF(Formulario!$AR$54=\"\",\"\",IF(Formulario!$AR$54=12,12,\"\"))","v":""},null,null,null,null,{"$f":"+IF(Formulario!$AR$55=\"\",\"\",IF(Formulario!$AR$55=12,12,\"\"))","v":""},null,null,null,null,null,null,null,null,null,null,null,"MEDIANO (4-6 M2)",null,null,null,null,null,null,null,null,null,null,null,null,null,null,null,null,null,null,null,null,null,null,null,null,null,null,null,null,null,null,null,null,null,null,null,null,null,null,null,null,null,null,null,null,null,null,2,null,null,null,null,{"$f":"+IF(Formulario!$J$12=\"\",\"\",IF(Formulario!$J$12=FB82,FB82,\"\"))","v":""},null,null,null,null,{"$f":"+IF(Formulario!$AZ$49=\"\",\"\",IF(Formulario!$AZ$49=2,2,\"\"))","v":""},null,null,null,null,{"$f":"+IF(Formulario!$AZ$50=\"\",\"\",IF(Formulario!$AZ$50=2,2,\"\"))","v":""},null,null,null,null,{"$f":"+IF(Formulario!$AZ$51=\"\",\"\",IF(Formulario!$AZ$51=2,2,\"\"))","v":""}]
[null,null,null,null,null,null,"CONCRETO HASTA TRES PISOS",null,null,null,null,null,null,null,null,null,null,null,null,null,null,null,null,null,null,null,null,null,null,null,null,null,null,null,null,null,null,null,null,null,null,null,null,null,null,null,null,null,null,null,null,null,null,4,null,null,null,null,{"$f":"+IF(Formulario!$J$4=\"\",\"\",IF(Formulario!$J$4=($BB83+1),$BB83,\"\"))","v":""},null,null,null,null,{"$f":"+IF(Formulario!$L$4=\"\",\"\",IF(Formulario!$L$4=($BB83+1),$BB83,\"\"))","v":""},null,null,null,null,{"$f":"+IF(Formulario!$N$4=\"\",\"\",IF(Formulario!$N$4=($BB83+1),$BB83,\"\"))","v":""},null,null,null,null,{"$f":"+IF(Formulario!$P$4=\"\",\"\",IF(Formulario!$P$4=($BB83+1),$BB83,\"\"))","v":""},null,null,null,null,22,null,null,null,null,{"$f":"+IF(Formulario!$AR$52=\"\",\"\",IF(Formulario!$AR$52=22,22,\"\"))","v":""},null,null,null,null,{"$f":"+IF(Formulario!$AR$53=\"\",\"\",IF(Formulario!$AR$53=22,22,\"\"))","v":""},null,null,null,null,{"$f":"+IF(Formulario!$AR$54=\"\",\"\",IF(Formulario!$AR$54=22,22,\"\"))","v":""},null,null,null,null,{"$f":"+IF(Formulario!$AR$55=\"\",\"\",IF(Formulario!$AR$55=22,22,\"\"))","v":""},null,null,null,null,null,null,null,null,null,null,null,"GRANDE >6 M2",null,null,null,null,null,null,null,null,null,null,null,null,null,null,null,null,null,null,null,null,null,null,null,null,null,null,null,null,null,null,null,null,null,null,null,null,null,null,null,null,null,null,null,null,null,null,3,null,null,null,null,{"$f":"+IF(Formulario!$J$12=\"\",\"\",IF(Formulario!$J$12=FB83,FB83,\"\"))","v":""},null,null,null,null,{"$f":"+IF(Formulario!$AZ$49=\"\",\"\",IF(Formulario!$AZ$49=3,3,\"\"))","v":""},null,null,null,null,{"$f":"+IF(Formulario!$AZ$50=\"\",\"\",IF(Formulario!$AZ$50=3,3,\"\"))","v":""},null,null,null,null,{"$f":"+IF(Formulario!$AZ$51=\"\",\"\",IF(Formulario!$AZ$51=3,3,\"\"))","v":""}]
[null,null,null,null,null,null,"CONCRETO CUATRO O MÁS PISOS",null,null,null,null,null,null,null,null,null,null,null,null,null,null,null,null,null,null,null,null,null,null,null,null,null,null,null,null,null,null,null,null,null,null,null,null,null,null,null,null,null,null,null,null,null,null,6,null,null,null,null,{"$f":"+IF(Formulario!$J$4=\"\",\"\",IF(Formulario!$J$4=$BB84,$BB84,\"\"))","v":""},null,null,null,null,{"$f":"+IF(Formulario!$L$4=\"\",\"\",IF(Formulario!$L$4=$BB84,$BB84,\"\"))","v":""},null,null,null,null,{"$f":"+IF(Formulario!$N$4=\"\",\"\",IF(Formulario!$N$4=$BB84,$BB84,\"\"))","v":""},null,null,null,null,{"$f":"+IF(Formulario!$P$4=\"\",\"\",IF(Formulario!$P$4=$BB84,$BB84,\"\"))","v":""},null,null,null,null,22,null,null,null,null,{"$f":"+IF(Formulario!$AR$52=\"\",\"\",IF(Formulario!$AR$52=23,22,\"\"))","v":""},null,null,null,null,{"$f":"+IF(Formulario!$AR$53=\"\",\"\",IF(Formulario!$AR$53=23,22,\"\"))","v":""},null,null,null,null,{"$f":"+IF(Formulario!$AR$54=\"\",\"\",IF(Formulario!$AR$54=23,22,\"\"))","v":""},null,null,null,null,{"$f":"+IF(Formulario!$AR$55=\"\",\"\",IF(Formulario!$AR$55=23,22,\"\"))","v":""},null,null,null,null,null,"ENCHAPES",null,null,null,null,null,"SIN CUBRIMIENTO",null,null,null,null,null,null,null,null,null,null,null,null,null,null,null,null,null,null,null,null,null,null,null,null,null,null,null,null,null,null,null,null,null,null,null,null,null,null,null,null,null,null,null,null,null,null,0,null,null,null,null,{"$f":"+IF(Formulario!$J$13=\"\",\"\",IF(Formulario!$J$13=FB84,FB84,\"\"))","v":""},null,null,null,null,{"$f":"+IF(Formulario!$BA$49=\"\",\"\",IF(Formulario!$BA$49=0,0,\"\"))","v":""},null,null,null,null,{"$f":"+IF(Formulario!$BA$50=\"\",\"\",IF(Formulario!$BA$50=0,0,\"\"))","v":""},null,null,null,null,{"$f":"+IF(Formulario!$BA$51=\"\",\"\",IF(Formulario!$BA$51=0,0,\"\"))","v":""}]
["MUROS",null,null,null,null,null,"MATERIALES DE DESHECHO, ESTERILLA",null,null,null,null,null,null,null,null,null,null,null,null,null,null,null,null,null,null,null,null,null,null,null,null,null,null,null,null,null,null,null,null,null,null,null,null,null,null,null,null,null,null,null,null,null,null,0,null,null,null,null,{"$f":"+IF(Formulario!$J$5=\"\",\"\",IF(Formulario!$J$5=$BB85,$BB85,\"\"))","v":""},null,null,null,null,{"$f":"+IF(Formulario!$L$5=\"\",\"\",IF(Formulario!$L$5=$BB85,$BB85,\"\"))","v":""},null,null,null,null,{"$f":"+IF(Formulario!$N$5=\"\",\"\",IF(Formulario!$N$5=$BB85,$BB85,\"\"))","v":""},null,null,null,null,{"$f":"+IF(Formulario!$P$5=\"\",\"\",IF(Formulario!$P$5=$BB85,$BB85,\"\"))","v":""},null,null,null,null,0,null,null,null,null,{"$f":"+IF(Formulario!$AS$52=\"\",\"\",IF(Formulario!$AS$52=0,0,\"\"))","v":""},null,null,null,null,{"$f":"+IF(Formulario!$AS$53=\"\",\"\",IF(Formulario!$AS$53=0,0,\"\"))","v":""},null,null,null,null,{"$f":"+IF(Formulario!$AS$54=\"\",\"\",IF(Formulario!$AS$54=0,0,\"\"))","v":""},null,null,null,null,{"$f":"+IF(Formulario!$AS$55=\"\",\"\",IF(Formulario!$AS$55=0,0,\"\"))","v":""},null,null,null,null,null,null,null,null,null,null,null,"PAÑETE BALDOSA COMÚN DE CEMENTO",null,null,null,null,null,null,null,null,null,null,null,null,null,null,null,null,null,null,null,null,null,null,null,null,null,null,null,null,null,null,null,null,null,null,null,null,null,null,null,null,null,null,null,null,null,null,1,null,null,null,null,{"$f":"+IF(Formulario!$J$13=\"\",\"\",IF(Formulario!$J$13=FB85,FB85,\"\"))","v":""},null,null,null,null,{"$f":"+IF(Formulario!$BA$49=\"\",\"\",IF(Formulario!$BA$49=1,1,\"\"))","v":""},null,null,null,null,{"$f":"+IF(Formulario!$BA$50=\"\",\"\",IF(Formulario!$BA$50=1,1,\"\"))","v":""},null,null,null,null,{"$f":"+IF(Formulario!$BA$51=\"\",\"\",IF(Formulario!$BA$51=1,1,\"\"))","v":""}]
[null,null,null,null,null,null,"BAHAREQUE ADOBE, TAPIA",null,null,null,null,null,null,null,null,null,null,null,null,null,null,null,null,null,null,null,null,null,null,null,null,null,null,null,null,null,null,null,null,null,null,null,null,null,null,null,null,null,null,null,null,null,null,1,null,null,null,null,{"$f":"+IF(Formulario!$J$5=\"\",\"\",IF(Formulario!$J$5=$BB86,$BB86,\"\"))","v":""},null,null,null,null,{"$f":"+IF(Formulario!$L$5=\"\",\"\",IF(Formulario!$L$5=$BB86,$BB86,\"\"))","v":""},null,null,null,null,{"$f":"+IF(Formulario!$N$5=\"\",\"\",IF(Formulario!$N$5=$BB86,$BB86,\"\"))","v":""},null,null,null,null,{"$f":"+IF(Formulario!$P$5=\"\",\"\",IF(Formulario!$P$5=$BB86,$BB86,\"\"))","v":""},null,null,null,null,1,null,null,null,null,{"$f":"+IF(Formulario!$AS$52=\"\",\"\",IF(Formulario!$AS$52=1,1,\"\"))","v":""},null,null,null,null,{"$f":"+IF(Formulario!$AS$53=\"\",\"\",IF(Formulario!$AS$53=1,1,\"\"))","v":""},null,null,null,null,{"$f":"+IF(Formulario!$AS$54=\"\",\"\",IF(Formulario!$AS$54=1,1,\"\"))","v":""},null,null,null,null,{"$f":"+IF(Formulario!$AS$55=\"\",\"\",IF(Formulario!$AS$55=1,1,\"\"))","v":""},null,null,null,null,null,null,null,null,null,null,null,"BALDOSÍN UNICOLOR, PAPEL COMÚN",null,null,null,null,null,null,null,null,null,null,null,null,null,null,null,null,null,null,null,null,null,null,null,null,null,null,null,null,null,null,null,null,null,null,null,null,null,null,null,null,null,null,null,null,null,null,2,null,null,null,null,{"$f":"+IF(Formulario!$J$13=\"\",\"\",IF(Formulario!$J$13=FB86,FB86,\"\"))","v":""},null,null,null,null,{"$f":"+IF(Formulario!$BA$49=\"\",\"\",IF(Formulario!$BA$49=3,3,\"\"))","v":""},null,null,null,null,{"$f":"+IF(Formulario!$BA$50=\"\",\"\",IF(Formulario!$BA$50=3,3,\"\"))","v":""},null,null,null,null,{"$f":"+IF(Formulario!$BA$51=\"\",\"\",IF(Formulario!$BA$51=3,3,\"\"))","v":""}]
[null,null,null,null,null,null,"MADERA",null,null,null,null,null,null,null,null,null,null,null,null,null,null,null,null,null,null,null,null,null,null,null,null,null,null,null,null,null,null,null,null,null,null,null,null,null,null,null,null,null,null,null,null,null,null,2,null,null,null,null,{"$f":"+IF(Formulario!$J$5=\"\",\"\",IF(Formulario!$J$5=$BB87,$BB87,\"\"))","v":""},null,null,null,null,{"$f":"+IF(Formulario!$L$5=\"\",\"\",IF(Formulario!$L$5=$BB87,$BB87,\"\"))","v":""},null,null,null,null,{"$f":"+IF(Formulario!$N$5=\"\",\"\",IF(Formulario!$N$5=$BB87,$BB87,\"\"))","v":""},null,null,null,null,{"$f":"+IF(Formulario!$P$5=\"\",\"\",IF(Formulario!$P$5=$BB87,$BB87,\"\"))","v":""},null,null,null,null,2,null,null,null,null,{"$f":"+IF(Formulario!AS52=\"\",\"\",IF(Formulario!$AS$52=2,2,\"\"))","v":""},null,null,null,null,{"$f":"+IF(Formulario!AX53=\"\",\"\",IF(Formulario!$AS$53=2,2,\"\"))","v":""},null,null,null,null,{"$f":"+IF(Formulario!BC54=\"\",\"\",IF(Formulario!$AS$54=2,2,\"\"))","v":""},null,null,null,null,{"$f":"+IF(Formulario!BH55=\"\",\"\",IF(Formulario!$AS$55=2,2,\"\"))","v":""},null,null,null,null,null,null,null,null,null,null,null,"BALDOSÍN DECORADO, PAPEL FINO",null,null,null,null,null,null,null,null,null,null,null,null,null,null,null,null,null,null,null,null,null,null,null,null,null,null,null,null,null,null,null,null,null,null,null,null,null,null,null,null,null,null,null,null,null,null,3,null,null,null,null,{"$f":"+IF(Formulario!$J$13=\"\",\"\",IF(Formulario!$J$13=FB87,FB87,\"\"))","v":""},null,null,null,null,{"$f":"+IF(Formulario!$BA$49=\"\",\"\",IF(Formulario!$BA$49=4,4,\"\"))","v":""},null,null,null,null,{"$f":"+IF(Formulario!$BA$50=\"\",\"\",IF(Formulario!$BA$50=4,4,\"\"))","v":""},null,null,null,null,{"$f":"+IF(Formulario!$BA$51=\"\",\"\",IF(Formulario!$BA$51=4,4,\"\"))","v":""}]
[null,null,null,null,null,null,"CONCRETO PREFABRICADO",null,null,null,null,null,null,null,null,null,null,null,null,null,null,null,null,null,null,null,null,null,null,null,null,null,null,null,null,null,null,null,null,null,null,null,null,null,null,null,null,null,null,null,null,null,null,3,null,null,null,null,{"$f":"+IF(Formulario!$J$5=\"\",\"\",IF(Formulario!$J$5=$BB88,$BB88,\"\"))","v":""},null,null,null,null,{"$f":"+IF(Formulario!$L$5=\"\",\"\",IF(Formulario!$L$5=$BB88,$BB88,\"\"))","v":""},null,null,null,null,{"$f":"+IF(Formulario!$N$5=\"\",\"\",IF(Formulario!$N$5=$BB88,$BB88,\"\"))","v":""},null,null,null,null,{"$f":"+IF(Formulario!$P$5=\"\",\"\",IF(Formulario!$P$5=$BB88,$BB88,\"\"))","v":""},null,null,null,null,3,null,null,null,null,{"$f":"+IF(Formulario!$AS$52=\"\",\"\",IF(Formulario!$AS$52=3,3,\"\"))","v":""},null,null,null,null,{"$f":"+IF(Formulario!$AS$53=\"\",\"\",IF(Formulario!$AS$53=3,3,\"\"))","v":""},null,null,null,null,{"$f":"+IF(Formulario!$AS$54=\"\",\"\",IF(Formulario!$AS$54=3,3,\"\"))","v":""},null,null,null,null,{"$f":"+IF(Formulario!$AS$55=\"\",\"\",IF(Formulario!$AS$55=3,3,\"\"))","v":""},null,null,null,null,null,null,null,null,null,null,null,"BALDOSÍN DECORADO, PAPEL FINO",null,null,null,null,null,null,null,null,null,null,null,null,null,null,null,null,null,null,null,null,null,null,null,null,null,null,null,null,null,null,null,null,null,null,null,null,null,null,null,null,null,null,null,null,null,null,4,null,null,null,null,{"$f":"+IF(Formulario!$J$13=\"\",\"\",IF(Formulario!$J$13=FB88,FB88,\"\"))","v":""},null,null,null,null,{"$f":"+IF(Formulario!$BA$49=\"\",\"\",IF(Formulario!$BA$49=4,4,\"\"))","v":""},null,null,null,null,{"$f":"+IF(Formulario!$BA$50=\"\",\"\",IF(Formulario!$BA$50=4,4,\"\"))","v":""},null,null,null,null,{"$f":"+IF(Formulario!$BA$51=\"\",\"\",IF(Formulario!$BA$51=4,4,\"\"))","v":""}]
[null,null,null,null,null,null,"BLOQUE LADRILLO",null,null,null,null,null,null,null,null,null,null,null,null,null,null,null,null,null,null,null,null,null,null,null,null,null,null,null,null,null,null,null,null,null,null,null,null,null,null,null,null,null,null,null,null,null,null,4,null,null,null,null,{"$f":"+IF(Formulario!$J$5=\"\",\"\",IF(Formulario!$J$5=$BB89,$BB89,\"\"))","v":""},null,null,null,null,{"$f":"+IF(Formulario!$L$5=\"\",\"\",IF(Formulario!$L$5=$BB89,$BB89,\"\"))","v":""},null,null,null,null,{"$f":"+IF(Formulario!$N$5=\"\",\"\",IF(Formulario!$N$5=$BB89,$BB89,\"\"))","v":""},null,null,null,null,{"$f":"+IF(Formulario!$P$5=\"\",\"\",IF(Formulario!$P$5=$BB89,$BB89,\"\"))","v":""},null,null,null,null,4,null,null,null,null,{"$f":"+IF(Formulario!$AS$52=\"\",\"\",IF(Formulario!$AS$52=4,4,\"\"))","v":""},null,null,null,null,{"$f":"+IF(Formulario!$AS$53=\"\",\"\",IF(Formulario!$AS$53=4,4,\"\"))","v":""},null,null,null,null,{"$f":"+IF(Formulario!$AS$54=\"\",\"\",IF(Formulario!$AS$54=4,4,\"\"))","v":""},null,null,null,null,{"$f":"+IF(Formulario!$AS$55=\"\",\"\",IF(Formulario!$AS$55=4,4,\"\"))","v":""},null,null,null,null,null,null,null,null,null,null,null,"MARMOL, ENCHAPE LUJOSO",null,null,null,null,null,null,null,null,null,null,null,null,null,null,null,null,null,null,null,null,null,null,null,null,null,null,null,null,null,null,null,null,null,null,null,null,null,null,null,null,null,null,null,null,null,null,5,null,null,null,null,{"$f":"+IF(Formulario!$J$13=\"\",\"\",IF(Formulario!$J$13=FB89,FB89,\"\"))","v":""},null,null,null,null,{"$f":"+IF(Formulario!$BA$49=\"\",\"\",IF(Formulario!$BA$49=5,5,\"\"))","v":""},null,null,null,null,{"$f":"+IF(Formulario!$BA$50=\"\",\"\",IF(Formulario!$BA$50=5,5,\"\"))","v":""},null,null,null,null,{"$f":"+IF(Formulario!$BA$51=\"\",\"\",IF(Formulario!$BA$51=5,5,\"\"))","v":""}]
["CUBIERTA",null,null,null,null,null,"MATERIALES DE DESHECHO TELAS ASFÁLTICAS",null,null,null,null,null,null,null,null,null,null,null,null,null,null,null,null,null,null,null,null,null,null,null,null,null,null,null,null,null,null,null,null,null,null,null,null,null,null,null,null,null,null,null,null,null,null,1,null,null,null,null,{"$f":"+IF(Formulario!$J$6=\"\",\"\",IF(Formulario!$J$6=$BB90,$BB90,\"\"))","v":""},null,null,null,null,{"$f":"+IF(Formulario!$L$6=\"\",\"\",IF(Formulario!$L$6=$BB90,$BB90,\"\"))","v":""},null,null,null,null,{"$f":"+IF(Formulario!$N$6=\"\",\"\",IF(Formulario!$N$6=$BB90,$BB90,\"\"))","v":""},null,null,null,null,{"$f":"+IF(Formulario!$P$6=\"\",\"\",IF(Formulario!$P$6=$BB90,$BB90,\"\"))","v":""},null,null,null,null,1,null,null,null,null,{"$f":"+IF(Formulario!$AT$52=\"\",\"\",IF(Formulario!$AT$52=1,1,\"\"))","v":""},null,null,null,null,{"$f":"+IF(Formulario!$AT$53=\"\",\"\",IF(Formulario!$AT$53=1,1,\"\"))","v":""},null,null,null,null,{"$f":"+IF(Formulario!$AT$54=\"\",\"\",IF(Formulario!$AT$54=1,1,\"\"))","v":""},null,null,null,null,{"$f":"+IF(Formulario!$AT$55=\"\",\"\",IF(Formulario!$AT$55=1,1,\"\"))","v":""},null,null,null,null,null,"MOBILIARIO",null,null,null,null,null,"POBRE",null,null,null,null,null,null,null,null,null,null,null,null,null,null,null,null,null,null,null,null,null,null,null,null,null,null,null,null,null,null,null,null,null,null,null,null,null,null,null,null,null,null,null,null,null,null,0,null,null,null,null,{"$f":"+IF(Formulario!$J$14=\"\",\"\",IF(Formulario!$J$14=FB90,FB90,\"\"))","v":""},null,null,null,null,{"$f":"+IF(Formulario!$BB$49=\"\",\"\",IF(Formulario!$BB$49=0,0,\"\"))","v":""},null,null,null,null,{"$f":"+IF(Formulario!$BB$50=\"\",\"\",IF(Formulario!$BB$50=0,0,\"\"))","v":""},null,null,null,null,{"$f":"+IF(Formulario!$BB$51=\"\",\"\",IF(Formulario!$BB$51=0,0,\"\"))","v":""},null,null,null,null,0,null,null,null,null,{"$f":"+IF(Formulario!$BB$52=\"\",\"\",IF(Formulario!$BB$52=0,0,\"\"))","v":""},null,null,null,null,{"$f":"+IF(Formulario!$BB$53=\"\",\"\",IF(Formulario!$BB$53=0,0,\"\"))","v":""},null,null,null,null,{"$f":"+IF(Formulario!$BB$54=\"\",\"\",IF(Formulario!$BB$54=0,0,\"\"))","v":""},null,null,null,null,{"$f":"+IF(Formulario!$BB$55=\"\",\"\",IF(Formulario!$BB$55=0,0,\"\"))","v":""}]
[null,null,null,null,null,null,"ZINC TEJA DE BARRO ETERNIT RÚSTICO",null,null,null,null,null,null,null,null,null,null,null,null,null,null,null,null,null,null,null,null,null,null,null,null,null,null,null,null,null,null,null,null,null,null,null,null,null,null,null,null,null,null,null,null,null,null,3,null,null,null,null,{"$f":"+IF(Formulario!$J$6=\"\",\"\",IF(Formulario!$J$6=$BB91,$BB91,\"\"))","v":""},null,null,null,null,{"$f":"+IF(Formulario!$L$6=\"\",\"\",IF(Formulario!$L$6=$BB91,$BB91,\"\"))","v":""},null,null,null,null,{"$f":"+IF(Formulario!$N$6=\"\",\"\",IF(Formulario!$N$6=$BB91,$BB91,\"\"))","v":""},null,null,null,null,{"$f":"+IF(Formulario!$P$6=\"\",\"\",IF(Formulario!$P$6=$BB91,$BB91,\"\"))","v":""},null,null,null,null,3,null,null,null,null,{"$f":"+IF(Formulario!$AT$52=\"\",\"\",IF(Formulario!$AT$52=3,3,\"\"))","v":""},null,null,null,null,{"$f":"+IF(Formulario!$AT$53=\"\",\"\",IF(Formulario!$AT$53=3,3,\"\"))","v":""},null,null,null,null,{"$f":"+IF(Formulario!$AT$54=\"\",\"\",IF(Formulario!$AT$54=3,3,\"\"))","v":""},null,null,null,null,{"$f":"+IF(Formulario!$AT$55=\"\",\"\",IF(Formulario!$AT$55=3,3,\"\"))","v":""},null,null,null,null,null,null,null,null,null,null,null,"SENCILLO",null,null,null,null,null,null,null,null,null,null,null,null,null,null,null,null,null,null,null,null,null,null,null,null,null,null,null,null,null,null,null,null,null,null,null,null,null,null,null,null,null,null,null,null,null,null,3,null,null,null,null,{"$f":"+IF(Formulario!$J$14=\"\",\"\",IF(Formulario!$J$14=FB91,FB91,\"\"))","v":""},null,null,null,null,{"$f":"+IF(Formulario!$BB$49=\"\",\"\",IF(Formulario!$BB$49=3,3,\"\"))","v":""},null,null,null,null,{"$f":"+IF(Formulario!$BB$50=\"\",\"\",IF(Formulario!$BB$50=3,3,\"\"))","v":""},null,null,null,null,{"$f":"+IF(Formulario!$BB$51=\"\",\"\",IF(Formulario!$BB$51=3,3,\"\"))","v":""},null,null,null,null,3,null,null,null,null,{"$f":"+IF(Formulario!$BB$52=\"\",\"\",IF(Formulario!$BB$52=3,3,\"\"))","v":""},null,null,null,null,{"$f":"+IF(Formulario!$BB$53=\"\",\"\",IF(Formulario!$BB$53=3,3,\"\"))","v":""},null,null,null,null,{"$f":"+IF(Formulario!$BB$54=\"\",\"\",IF(Formulario!$BB$54=3,3,\"\"))","v":""},null,null,null,null,{"$f":"+IF(Formulario!$BB$55=\"\",\"\",IF(Formulario!$BB$55=3,3,\"\"))","v":""}]
[null,null,null,null,null,null,"ENTREPISO (CUBIERTA PROVISIONAL)",null,null,null,null,null,null,null,null,null,null,null,null,null,null,null,null,null,null,null,null,null,null,null,null,null,null,null,null,null,null,null,null,null,null,null,null,null,null,null,null,null,null,null,null,null,null,6,null,null,null,null,{"$f":"+IF(Formulario!$J$6=\"\",\"\",IF(Formulario!$J$6=$BB92,$BB92,\"\"))","v":""},null,null,null,null,{"$f":"+IF(Formulario!$L$6=\"\",\"\",IF(Formulario!$L$6=$BB92,$BB92,\"\"))","v":""},null,null,null,null,{"$f":"+IF(Formulario!$N$6=\"\",\"\",IF(Formulario!$N$6=$BB92,$BB92,\"\"))","v":""},null,null,null,null,{"$f":"+IF(Formulario!$P$6=\"\",\"\",IF(Formulario!$P$6=$BB92,$BB92,\"\"))","v":""},null,null,null,null,6,null,null,null,null,{"$f":"+IF(Formulario!$AT$52=\"\",\"\",IF(Formulario!$AT$52=6,6,\"\"))","v":""},null,null,null,null,{"$f":"+IF(Formulario!$AT$53=\"\",\"\",IF(Formulario!$AT$53=6,6,\"\"))","v":""},null,null,null,null,{"$f":"+IF(Formulario!$AT$54=\"\",\"\",IF(Formulario!$AT$54=6,6,\"\"))","v":""},null,null,null,null,{"$f":"+IF(Formulario!$AT$55=\"\",\"\",IF(Formulario!$AT$55=6,6,\"\"))","v":""},null,null,null,null,null,null,null,null,null,null,null,"REGULAR",null,null,null,null,null,null,null,null,null,null,null,null,null,null,null,null,null,null,null,null,null,null,null,null,null,null,null,null,null,null,null,null,null,null,null,null,null,null,null,null,null,null,null,null,null,null,6,null,null,null,null,{"$f":"+IF(Formulario!$J$14=\"\",\"\",IF(Formulario!$J$14=FB92,FB92,\"\"))","v":""},null,null,null,null,{"$f":"+IF(Formulario!$BB$49=\"\",\"\",IF(Formulario!$BB$49=6,6,\"\"))","v":""},null,null,null,null,{"$f":"+IF(Formulario!$BB$50=\"\",\"\",IF(Formulario!$BB$50=6,6,\"\"))","v":""},null,null,null,null,{"$f":"+IF(Formulario!$BB$51=\"\",\"\",IF(Formulario!$BB$51=6,6,\"\"))","v":""},null,null,null,null,6,null,null,null,null,{"$f":"+IF(Formulario!$BB$52=\"\",\"\",IF(Formulario!$BB$52=6,6,\"\"))","v":""},null,null,null,null,{"$f":"+IF(Formulario!$BB$53=\"\",\"\",IF(Formulario!$BB$53=6,6,\"\"))","v":""},null,null,null,null,{"$f":"+IF(Formulario!$BB$54=\"\",\"\",IF(Formulario!$BB$54=6,6,\"\"))","v":""},null,null,null,null,{"$f":"+IF(Formulario!$BB$55=\"\",\"\",IF(Formulario!$BB$55=6,6,\"\"))","v":""}]
[null,null,null,null,null,null,"ETERNIT O TEJA DE BARRO (CUB. SENCILLA)",null,null,null,null,null,null,null,null,null,null,null,null,null,null,null,null,null,null,null,null,null,null,null,null,null,null,null,null,null,null,null,null,null,null,null,null,null,null,null,null,null,null,null,null,null,null,9,null,null,null,null,{"$f":"+IF(Formulario!$J$6=\"\",\"\",IF(Formulario!$J$6=$BB93,$BB93,\"\"))","v":""},null,null,null,null,{"$f":"+IF(Formulario!$L$6=\"\",\"\",IF(Formulario!$L$6=$BB93,$BB93,\"\"))","v":""},null,null,null,null,{"$f":"+IF(Formulario!$N$6=\"\",\"\",IF(Formulario!$N$6=$BB93,$BB93,\"\"))","v":""},null,null,null,null,{"$f":"+IF(Formulario!$P$6=\"\",\"\",IF(Formulario!$P$6=$BB93,$BB93,\"\"))","v":""},null,null,null,null,9,null,null,null,null,{"$f":"+IF(Formulario!$AT$52=\"\",\"\",IF(Formulario!$AT$52=9,9,\"\"))","v":""},null,null,null,null,{"$f":"+IF(Formulario!$AT$53=\"\",\"\",IF(Formulario!$AT$53=9,9,\"\"))","v":""},null,null,null,null,{"$f":"+IF(Formulario!$AT$54=\"\",\"\",IF(Formulario!$AT$54=9,9,\"\"))","v":""},null,null,null,null,{"$f":"+IF(Formulario!$AT$55=\"\",\"\",IF(Formulario!$AT$55=9,9,\"\"))","v":""},null,null,null,null,null,null,null,null,null,null,null,"BUENO",null,null,null,null,null,null,null,null,null,null,null,null,null,null,null,null,null,null,null,null,null,null,null,null,null,null,null,null,null,null,null,null,null,null,null,null,null,null,null,null,null,null,null,null,null,null,9,null,null,null,null,{"$f":"+IF(Formulario!$J$14=\"\",\"\",IF(Formulario!$J$14=FB93,FB93,\"\"))","v":""},null,null,null,null,{"$f":"+IF(Formulario!$BB$49=\"\",\"\",IF(Formulario!$BB$49=9,9,\"\"))","v":""},null,null,null,null,{"$f":"+IF(Formulario!$BB$50=\"\",\"\",IF(Formulario!$BB$50=9,9,\"\"))","v":""},null,null,null,null,{"$f":"+IF(Formulario!$BB$51=\"\",\"\",IF(Formulario!$BB$51=9,9,\"\"))","v":""},null,null,null,null,9,null,null,null,null,{"$f":"+IF(Formulario!$BB$52=\"\",\"\",IF(Formulario!$BB$52=9,9,\"\"))","v":""},null,null,null,null,{"$f":"+IF(Formulario!$BB$53=\"\",\"\",IF(Formulario!$BB$53=9,9,\"\"))","v":""},null,null,null,null,{"$f":"+IF(Formulario!$BB$54=\"\",\"\",IF(Formulario!$BB$54=9,9,\"\"))","v":""},null,null,null,null,{"$f":"+IF(Formulario!$BB$55=\"\",\"\",IF(Formulario!$BB$55=9,9,\"\"))","v":""}]
[null,null,null,null,null,null,"AZOTEA ALUMINIO, PLACA SENCILLA",null,null,null,null,null,null,null,null,null,null,null,null,null,null,null,null,null,null,null,null,null,null,null,null,null,null,null,null,null,null,null,null,null,null,null,null,null,null,null,null,null,null,null,null,null,null,13,null,null,null,null,{"$f":"+IF(Formulario!$J$6=\"\",\"\",IF(Formulario!$J$6=$BB94,$BB94,\"\"))","v":""},null,null,null,null,{"$f":"+IF(Formulario!$L$6=\"\",\"\",IF(Formulario!$L$6=$BB94,$BB94,\"\"))","v":""},null,null,null,null,{"$f":"+IF(Formulario!$N$6=\"\",\"\",IF(Formulario!$N$6=$BB94,$BB94,\"\"))","v":""},null,null,null,null,{"$f":"+IF(Formulario!$P$6=\"\",\"\",IF(Formulario!$P$6=$BB94,$BB94,\"\"))","v":""},null,null,null,null,13,null,null,null,null,{"$f":"+IF(Formulario!$AT$52=\"\",\"\",IF(Formulario!$AT$52=13,13,\"\"))","v":""},null,null,null,null,{"$f":"+IF(Formulario!$AT$53=\"\",\"\",IF(Formulario!$AT$53=13,13,\"\"))","v":""},null,null,null,null,{"$f":"+IF(Formulario!$AT$54=\"\",\"\",IF(Formulario!$AT$54=13,13,\"\"))","v":""},null,null,null,null,{"$f":"+IF(Formulario!$AT$55=\"\",\"\",IF(Formulario!$AT$55=13,13,\"\"))","v":""},null,null,null,null,null,null,null,null,null,null,null,"LUJOSO",null,null,null,null,null,null,null,null,null,null,null,null,null,null,null,null,null,null,null,null,null,null,null,null,null,null,null,null,null,null,null,null,null,null,null,null,null,null,null,null,null,null,null,null,null,null,11,null,null,null,null,{"$f":"+IF(Formulario!$J$14=\"\",\"\",IF(Formulario!$J$14=FB94,FB94,\"\"))","v":""},null,null,null,null,{"$f":"+IF(Formulario!$BB$49=\"\",\"\",IF(Formulario!$BB$49=11,11,\"\"))","v":""},null,null,null,null,{"$f":"+IF(Formulario!$BB$50=\"\",\"\",IF(Formulario!$BB$50=11,11,\"\"))","v":""},null,null,null,null,{"$f":"+IF(Formulario!$BB$51=\"\",\"\",IF(Formulario!$BB$51=11,11,\"\"))","v":""},null,null,null,null,16,null,null,null,null,{"$f":"+IF(Formulario!$BB$52=\"\",\"\",IF(Formulario!$BB$52=16,16,\"\"))","v":""},null,null,null,null,{"$f":"+IF(Formulario!$BB$53=\"\",\"\",IF(Formulario!$BB$53=16,16,\"\"))","v":""},null,null,null,null,{"$f":"+IF(Formulario!$BB$54=\"\",\"\",IF(Formulario!$BB$54=16,16,\"\"))","v":""},null,null,null,null,{"$f":"+IF(Formulario!$BB$55=\"\",\"\",IF(Formulario!$BB$55=16,16,\"\"))","v":""}]
[null,null,null,null,null,null,"PLACA IMPERMEABILIZADA CUB. LUJOSA",null,null,null,null,null,null,null,null,null,null,null,null,null,null,null,null,null,null,null,null,null,null,null,null,null,null,null,null,null,null,null,null,null,null,null,null,null,null,null,null,null,null,null,null,null,null,16,null,null,null,null,{"$f":"+IF(Formulario!$J$6=\"\",\"\",IF(Formulario!$J$6=$BB95,$BB95,\"\"))","v":""},null,null,null,null,{"$f":"+IF(Formulario!$L$6=\"\",\"\",IF(Formulario!$L$6=$BB95,$BB95,\"\"))","v":""},null,null,null,null,{"$f":"+IF(Formulario!$N$6=\"\",\"\",IF(Formulario!$N$6=$BB95,$BB95,\"\"))","v":""},null,null,null,null,{"$f":"+IF(Formulario!$P$6=\"\",\"\",IF(Formulario!$P$6=$BB95,$BB95,\"\"))","v":""},null,null,null,null,16,null,null,null,null,{"$f":"+IF(Formulario!$AT$52=\"\",\"\",IF(Formulario!$AT$52=16,16,\"\"))","v":""},null,null,null,null,{"$f":"+IF(Formulario!$AT$53=\"\",\"\",IF(Formulario!$AT$53=16,16,\"\"))","v":""},null,null,null,null,{"$f":"+IF(Formulario!$AT$54=\"\",\"\",IF(Formulario!$AT$54=16,16,\"\"))","v":""},null,null,null,null,{"$f":"+IF(Formulario!$AT$55=\"\",\"\",IF(Formulario!$AT$55=16,16,\"\"))","v":""},null,null,null,null,null,"CONSERVACIÓN",null,null,null,null,null,"MALO",null,null,null,null,null,null,null,null,null,null,null,null,null,null,null,null,null,null,null,null,null,null,null,null,null,null,null,null,null,null,null,null,null,null,null,null,null,null,null,null,null,null,null,null,null,null,0,null,null,null,null,{"$f":"+IF(Formulario!$J$15=\"\",\"\",IF(Formulario!$J$15=FB95,FB95,\"\"))","v":""},null,null,null,null,{"$f":"+IF(Formulario!$BC$49=\"\",\"\",IF(Formulario!$BC$49=0,0,\"\"))","v":""},null,null,null,null,{"$f":"+IF(Formulario!$BC$50=\"\",\"\",IF(Formulario!$BC$50=0,0,\"\"))","v":""},null,null,null,null,{"$f":"+IF(Formulario!$BC$51=\"\",\"\",IF(Formulario!$BC$51=0,0,\"\"))","v":""}]
["CONSERVACIÓN",null,null,null,null,null,"MALO",null,null,null,null,null,null,null,null,null,null,null,null,null,null,null,null,null,null,null,null,null,null,null,null,null,null,null,null,null,null,null,null,null,null,null,null,null,null,null,null,null,null,null,null,null,null,0,null,null,null,null,{"$f":"+IF(Formulario!$J$7=\"\",\"\",IF(Formulario!$J$7=$BB96,$BB96,\"\"))","v":""},null,null,null,null,{"$f":"+IF(Formulario!$L$7=\"\",\"\",IF(Formulario!$L$7=$BB96,$BB96,\"\"))","v":""},null,null,null,null,{"$f":"+IF(Formulario!$N$7=\"\",\"\",IF(Formulario!$N$7=$BB96,$BB96,\"\"))","v":""},null,null,null,null,{"$f":"+IF(Formulario!$P$7=\"\",\"\",IF(Formulario!$P$7=$BB96,$BB96,\"\"))","v":""},null,null,null,null,0,null,null,null,null,{"$f":"+IF(Formulario!$AU$52=\"\",\"\",IF(Formulario!$AU$52=0,0,\"\"))","v":""},null,null,null,null,{"$f":"+IF(Formulario!$AU$53=\"\",\"\",IF(Formulario!$AU$53=0,0,\"\"))","v":""},null,null,null,null,{"$f":"+IF(Formulario!$AU$54=\"\",\"\",IF(Formulario!$AU$54=0,0,\"\"))","v":""},null,null,null,null,{"$f":"+IF(Formulario!$AU$55=\"\",\"\",IF(Formulario!$AU$55=0,0,\"\"))","v":""},null,null,null,null,null,null,null,null,null,null,null,"REGULAR",null,null,null,null,null,null,null,null,null,null,null,null,null,null,null,null,null,null,null,null,null,null,null,null,null,null,null,null,null,null,null,null,null,null,null,null,null,null,null,null,null,null,null,null,null,null,2,null,null,null,null,{"$f":"+IF(Formulario!$J$15=\"\",\"\",IF(Formulario!$J$15=FB96,FB96,\"\"))","v":""},null,null,null,null,{"$f":"+IF(Formulario!$BC$49=\"\",\"\",IF(Formulario!$BC$49=2,2,\"\"))","v":""},null,null,null,null,{"$f":"+IF(Formulario!$BC$50=\"\",\"\",IF(Formulario!$BC$50=2,2,\"\"))","v":""},null,null,null,null,{"$f":"+IF(Formulario!$BC$51=\"\",\"\",IF(Formulario!$BC$51=2,2,\"\"))","v":""}]
[null,null,null,null,null,null,"REGULAR",null,null,null,null,null,null,null,null,null,null,null,null,null,null,null,null,null,null,null,null,null,null,null,null,null,null,null,null,null,null,null,null,null,null,null,null,null,null,null,null,null,null,null,null,null,null,2,null,null,null,null,{"$f":"+IF(Formulario!$J$7=\"\",\"\",IF(Formulario!$J$7=$BB97,$BB97,\"\"))","v":""},null,null,null,null,{"$f":"+IF(Formulario!$L$7=\"\",\"\",IF(Formulario!$L$7=$BB97,$BB97,\"\"))","v":""},null,null,null,null,{"$f":"+IF(Formulario!$N$7=\"\",\"\",IF(Formulario!$N$7=$BB97,$BB97,\"\"))","v":""},null,null,null,null,{"$f":"+IF(Formulario!$P$7=\"\",\"\",IF(Formulario!$P$7=$BB97,$BB97,\"\"))","v":""},null,null,null,null,2,null,null,null,null,{"$f":"+IF(Formulario!$AU$52=\"\",\"\",IF(Formulario!$AU$52=2,2,\"\"))","v":""},null,null,null,null,{"$f":"+IF(Formulario!$AU$53=\"\",\"\",IF(Formulario!$AU$53=2,2,\"\"))","v":""},null,null,null,null,{"$f":"+IF(Formulario!$AU$54=\"\",\"\",IF(Formulario!$AU$54=2,2,\"\"))","v":""},null,null,null,null,{"$f":"+IF(Formulario!$AU$55=\"\",\"\",IF(Formulario!$AU$55=2,2,\"\"))","v":""},null,null,null,null,null,null,null,null,null,null,null,"BUENO",null,null,null,null,null,null,null,null,null,null,null,null,null,null,null,null,null,null,null,null,null,null,null,null,null,null,null,null,null,null,null,null,null,null,null,null,null,null,null,null,null,null,null,null,null,null,4,null,null,null,null,{"$f":"+IF(Formulario!$J$15=\"\",\"\",IF(Formulario!$J$15=FB97,FB97,\"\"))","v":""},null,null,null,null,{"$f":"+IF(Formulario!$BC$49=\"\",\"\",IF(Formulario!$BC$49=4,4,\"\"))","v":""},null,null,null,null,{"$f":"+IF(Formulario!$BC$50=\"\",\"\",IF(Formulario!$BC$50=4,4,\"\"))","v":""},null,null,null,null,{"$f":"+IF(Formulario!$BC$51=\"\",\"\",IF(Formulario!$BC$51=4,4,\"\"))","v":""}]
[null,null,null,null,null,null,"BUENO",null,null,null,null,null,null,null,null,null,null,null,null,null,null,null,null,null,null,null,null,null,null,null,null,null,null,null,null,null,null,null,null,null,null,null,null,null,null,null,null,null,null,null,null,null,null,4,null,null,null,null,{"$f":"+IF(Formulario!$J$7=\"\",\"\",IF(Formulario!$J$7=$BB98,$BB98,\"\"))","v":""},null,null,null,null,{"$f":"+IF(Formulario!$L$7=\"\",\"\",IF(Formulario!$L$7=$BB98,$BB98,\"\"))","v":""},null,null,null,null,{"$f":"+IF(Formulario!$N$7=\"\",\"\",IF(Formulario!$N$7=$BB98,$BB98,\"\"))","v":""},null,null,null,null,{"$f":"+IF(Formulario!$P$7=\"\",\"\",IF(Formulario!$P$7=$BB98,$BB98,\"\"))","v":""},null,null,null,null,4,null,null,null,null,{"$f":"+IF(Formulario!$AU$52=\"\",\"\",IF(Formulario!$AU$52=4,4,\"\"))","v":""},null,null,null,null,{"$f":"+IF(Formulario!$AU$53=\"\",\"\",IF(Formulario!$AU$53=4,4,\"\"))","v":""},null,null,null,null,{"$f":"+IF(Formulario!$AU$54=\"\",\"\",IF(Formulario!$AU$54=4,4,\"\"))","v":""},null,null,null,null,{"$f":"+IF(Formulario!$AU$55=\"\",\"\",IF(Formulario!$AU$55=4,4,\"\"))","v":""},null,null,null,null,null,null,null,null,null,null,null,"EXCELENTE",null,null,null,null,null,null,null,null,null,null,null,null,null,null,null,null,null,null,null,null,null,null,null,null,null,null,null,null,null,null,null,null,null,null,null,null,null,null,null,null,null,null,null,null,null,null,5,null,null,null,null,{"$f":"+IF(Formulario!$J$15=\"\",\"\",IF(Formulario!$J$15=FB98,FB98,\"\"))","v":""},null,null,null,null,{"$f":"+IF(Formulario!$BC$49=\"\",\"\",IF(Formulario!$BC$49=5,5,\"\"))","v":""},null,null,null,null,{"$f":"+IF(Formulario!$BC$50=\"\",\"\",IF(Formulario!$BC$50=5,5,\"\"))","v":""},null,null,null,null,{"$f":"+IF(Formulario!$BC$51=\"\",\"\",IF(Formulario!$BC$51=5,5,\"\"))","v":""}]
[null,null,null,null,null,null,"EXCELENTE",null,null,null,null,null,null,null,null,null,null,null,null,null,null,null,null,null,null,null,null,null,null,null,null,null,null,null,null,null,null,null,null,null,null,null,null,null,null,null,null,null,null,null,null,null,null,5,null,null,null,null,{"$f":"+IF(Formulario!$J$7=\"\",\"\",IF(Formulario!$J$7=$BB99,$BB99,\"\"))","v":""},null,null,null,null,{"$f":"+IF(Formulario!$L$7=\"\",\"\",IF(Formulario!$L$7=$BB99,$BB99,\"\"))","v":""},null,null,null,null,{"$f":"+IF(Formulario!$N$7=\"\",\"\",IF(Formulario!$N$7=$BB99,$BB99,\"\"))","v":""},null,null,null,null,{"$f":"+IF(Formulario!$P$7=\"\",\"\",IF(Formulario!$P$7=$BB99,$BB99,\"\"))","v":""},null,null,null,null,5,null,null,null,null,{"$f":"+IF(Formulario!$AU$52=\"\",\"\",IF(Formulario!$AU$52=5,5,\"\"))","v":""},null,null,null,null,{"$f":"+IF(Formulario!$AU$53=\"\",\"\",IF(Formulario!$AU$53=5,5,\"\"))","v":""},null,null,null,null,{"$f":"+IF(Formulario!$AU$54=\"\",\"\",IF(Formulario!$AU$54=5,5,\"\"))","v":""},null,null,null,null,{"$f":"+IF(Formulario!$AU$55=\"\",\"\",IF(Formulario!$AU$55=5,5,\"\"))","v":""},null,null,null,null,null,"4. COCINA",null,null,null,null,null,null,null,null,null,null,null,null,null,null,null,null,null,null,null,null,null,null,null,null,null,null,null,null,null,null,null,null,null,null,null,null,null,null,null,null,null,null,null,null,null,null,null,null,null,null,null,null,"PUNTOS",null,null,null,null,"RESIDENCIAL",null,null,null,null,null,null,null,null,null,null,null,null,null,null,null,null,null,null,null,"PUNTOS",null,null,null,null,"INDUSTRIAL  O\nCOMERCIAL"]
["2. ACABADOS PRINCIPALES",null,null,null,null,null,null,null,null,null,null,null,null,null,null,null,null,null,null,null,null,null,null,null,null,null,null,null,null,null,null,null,null,null,null,null,null,null,null,null,null,null,null,null,null,null,null,null,null,null,null,null,null,"PUNTOS",null,null,null,null,"RESIDENCIAL",null,null,null,null,null,null,null,null,null,null,null,null,null,null,null,null,null,null,null,"PUNTOS",null,null,null,null,"INDUSTRIAL  O\nCOMERCIAL"]
[null,null,null,null,null,null,null,null,null,null,null,null,null,null,null,null,null,null,null,null,null,null,null,null,null,null,null,null,null,null,null,null,null,null,null,null,null,null,null,null,null,null,null,null,null,null,null,null,null,null,null,null,null,null,null,null,null,null,"A",null,null,null,null,"B",null,null,null,null,"C",null,null,null,null,"D",null,null,null,null,null,null,null,null,null,"A",null,null,null,null,"B",null,null,null,null,"C",null,null,null,null,"D",null,null,null,null,null,null,null,null,null,null,null,null,null,null,null,null,null,null,null,null,null,null,null,null,null,null,null,null,null,null,null,null,null,null,null,null,null,null,null,null,null,null,null,null,null,null,null,null,null,null,null,null,null,null,null,null,null,null,null,null,null,null,null,"A",null,null,null,null,"B",null,null,null,null,"C",null,null,null,null,"D",null,null,null,null,null,null,null,null,null,"A",null,null,null,null,"B",null,null,null,null,"C",null,null,null,null,"D"]
["FACHADA",null,null,null,null,null,"POBRE",null,null,null,null,null,null,null,null,null,null,null,null,null,null,null,null,null,null,null,null,null,null,null,null,null,null,null,null,null,null,null,null,null,null,null,null,null,null,null,null,null,null,null,null,null,null,0,null,null,null,null,{"$f":"+IF(Formulario!$J$8=\"\",\"\",IF(Formulario!$J$8=BB102,BB102,\"\"))","v":""},null,null,null,null,{"$f":"+IF(Formulario!L8=\"\",\"\",IF(Formulario!$L$8='Ficha Predial'!BB102,'Ficha Predial'!BB102,\"\"))","v":""},null,null,null,null,{"$f":"+IF(Formulario!$N$8=\"\",\"\",IF(Formulario!$N$8=BB102,BB102,\"\"))","v":""},null,null,null,null,{"$f":"+IF(Formulario!$P$8=\"\",\"\",IF(Formulario!$P$8=BB102,BB102,\"\"))","v":""},null,null,null,null,2,null,null,null,null,{"$f":"+IF(Formulario!$AV$52=\"\",\"\",IF(Formulario!$AV$52=CA102,CA102,\"\"))","v":""},null,null,null,null,{"$f":"+IF(Formulario!$AV$53=\"\",\"\",IF(Formulario!$AV$53=CA102,CA102,\"\"))","v":""},null,null,null,null,{"$f":"+IF(Formulario!$AV$54=\"\",\"\",IF(Formulario!$AV$54=CA102,CA102,\"\"))","v":""},null,null,null,null,{"$f":"+IF(Formulario!$AV$55=\"\",\"\",IF(Formulario!$AV$55=CA102,CA102,\"\"))","v":""},null,null,null,null,null,"TAMAÑO",null,null,null,null,null,"SIN COCINA",null,null,null,null,null,null,null,null,null,null,null,null,null,null,null,null,null,null,null,null,null,null,null,null,null,null,null,null,null,null,null,null,null,null,null,null,null,null,null,null,null,null,null,null,null,null,0,null,null,null,null,{"$f":"+IF(Formulario!$J$16=\"\",\"\",IF(Formulario!$J$16=FB102,FB102,\"\"))","v":""},null,null,null,null,{"$f":"+IF(Formulario!$BD$49=\"\",\"\",IF(Formulario!$BD$49=0,0,\"\"))","v":""},null,null,null,null,{"$f":"+IF(Formulario!$BD$50=\"\",\"\",IF(Formulario!$BD$50=0,0,\"\"))","v":""},null,null,null,null,{"$f":"+IF(Formulario!$BD$51=\"\",\"\",IF(Formulario!$BD$51=0,0,\"\"))","v":""}]
[null,null,null,null,null,null,"SENCILLA",null,null,null,null,null,null,null,null,null,null,null,null,null,null,null,null,null,null,null,null,null,null,null,null,null,null,null,null,null,null,null,null,null,null,null,null,null,null,null,null,null,null,null,null,null,null,2,null,null,null,null,{"$f":"+IF(Formulario!$J$8=\"\",\"\",IF(Formulario!$J$8=BB103,BB103,\"\"))","v":""},null,null,null,null,{"$f":"+IF(Formulario!L8=\"\",\"\",IF(Formulario!$L$8='Ficha Predial'!BB103,'Ficha Predial'!BB103,\"\"))","v":""},null,null,null,null,{"$f":"+IF(Formulario!$N$8=\"\",\"\",IF(Formulario!$N$8=BB103,BB103,\"\"))","v":""},null,null,null,null,{"$f":"+IF(Formulario!$P$8=\"\",\"\",IF(Formulario!$P$8=BB103,BB103,\"\"))","v":""},null,null,null,null,4,null,null,null,null,{"$f":"+IF(Formulario!$AV$52=\"\",\"\",IF(Formulario!$AV$52=CA103,CA103,\"\"))","v":""},null,null,null,null,{"$f":"+IF(Formulario!$AV$53=\"\",\"\",IF(Formulario!$AV$53=CA103,CA103,\"\"))","v":""},null,null,null,null,{"$f":"+IF(Formulario!$AV$54=\"\",\"\",IF(Formulario!$AV$54=CA103,CA103,\"\"))","v":""},null,null,null,null,{"$f":"+IF(Formulario!$AV$55=\"\",\"\",IF(Formulario!$AV$55=CA103,CA103,\"\"))","v":""},null,null,null,null,null,null,null,null,null,null,null,"PEQUEÑO (0-4 M2)",null,null,null,null,null,null,null,null,null,null,null,null,null,null,null,null,null,null,null,null,null,null,null,null,null,null,null,null,null,null,null,null,null,null,null,null,null,null,null,null,null,null,null,null,null,null,1,null,null,null,null,{"$f":"+IF(Formulario!$J$16=\"\",\"\",IF(Formulario!$J$16=FB103,FB103,\"\"))","v":""},null,null,null,null,{"$f":"+IF(Formulario!$BD$49=\"\",\"\",IF(Formulario!$BD$49=1,1,\"\"))","v":""},null,null,null,null,{"$f":"+IF(Formulario!$BD$50=\"\",\"\",IF(Formulario!$BD$50=1,1,\"\"))","v":""},null,null,null,null,{"$f":"+IF(Formulario!$BD$51=\"\",\"\",IF(Formulario!$BD$51=1,1,\"\"))","v":""}]
[null,null,null,null,null,null,"REGULAR",null,null,null,null,null,null,null,null,null,null,null,null,null,null,null,null,null,null,null,null,null,null,null,null,null,null,null,null,null,null,null,null,null,null,null,null,null,null,null,null,null,null,null,null,null,null,4,null,null,null,null,{"$f":"+IF(Formulario!$J$8=\"\",\"\",IF(Formulario!$J$8=BB104,BB104,\"\"))","v":""},null,null,null,null,{"$f":"+IF(Formulario!L8=\"\",\"\",IF(Formulario!$L$8='Ficha Predial'!BB104,'Ficha Predial'!BB104,\"\"))","v":""},null,null,null,null,{"$f":"+IF(Formulario!$N$8=\"\",\"\",IF(Formulario!$N$8=BB104,BB104,\"\"))","v":""},null,null,null,null,{"$f":"+IF(Formulario!$P$8=\"\",\"\",IF(Formulario!$P$8=BB104,BB104,\"\"))","v":""},null,null,null,null,6,null,null,null,null,{"$f":"+IF(Formulario!$AV$52=\"\",\"\",IF(Formulario!$AV$52=CA104,CA104,\"\"))","v":""},null,null,null,null,{"$f":"+IF(Formulario!$AV$53=\"\",\"\",IF(Formulario!$AV$53=CA104,CA104,\"\"))","v":""},null,null,null,null,{"$f":"+IF(Formulario!$AV$54=\"\",\"\",IF(Formulario!$AV$54=CA104,CA104,\"\"))","v":""},null,null,null,null,{"$f":"+IF(Formulario!$AV$55=\"\",\"\",IF(Formulario!$AV$55=CA104,CA104,\"\"))","v":""},null,null,null,null,null,null,null,null,null,null,null,"MEDIANO (4-6 M2)",null,null,null,null,null,null,null,null,null,null,null,null,null,null,null,null,null,null,null,null,null,null,null,null,null,null,null,null,null,null,null,null,null,null,null,null,null,null,null,null,null,null,null,null,null,null,2,null,null,null,null,{"$f":"+IF(Formulario!$J$16=\"\",\"\",IF(Formulario!$J$16=FB104,FB104,\"\"))","v":""},null,null,null,null,{"$f":"+IF(Formulario!$BD$49=\"\",\"\",IF(Formulario!$BD$49=2,2,\"\"))","v":""},null,null,null,null,{"$f":"+IF(Formulario!$BD$50=\"\",\"\",IF(Formulario!$BD$50=2,2,\"\"))","v":""},null,null,null,null,{"$f":"+IF(Formulario!$BD$51=\"\",\"\",IF(Formulario!$BD$51=2,2,\"\"))","v":""}]
[null,null,null,null,null,null,"BUENA",null,null,null,null,null,null,null,null,null,null,null,null,null,null,null,null,null,null,null,null,null,null,null,null,null,null,null,null,null,null,null,null,null,null,null,null,null,null,null,null,null,null,null,null,null,null,6,null,null,null,null,{"$f":"+IF(Formulario!$J$8=\"\",\"\",IF(Formulario!$J$8=BB105,BB105,\"\"))","v":""},null,null,null,null,{"$f":"+IF(Formulario!L8=\"\",\"\",IF(Formulario!$L$8='Ficha Predial'!BB105,'Ficha Predial'!BB105,\"\"))","v":""},null,null,null,null,{"$f":"+IF(Formulario!$N$8=\"\",\"\",IF(Formulario!$N$8=BB105,BB105,\"\"))","v":""},null,null,null,null,{"$f":"+IF(Formulario!$P$8=\"\",\"\",IF(Formulario!$P$8=BB105,BB105,\"\"))","v":""},null,null,null,null,8,null,null,null,null,{"$f":"+IF(Formulario!$AV$52=\"\",\"\",IF(Formulario!$AV$52=CA105,CA105,\"\"))","v":""},null,null,null,null,{"$f":"+IF(Formulario!$AV$53=\"\",\"\",IF(Formulario!$AV$53=CA105,CA105,\"\"))","v":""},null,null,null,null,{"$f":"+IF(Formulario!$AV$54=\"\",\"\",IF(Formulario!$AV$54=CA105,CA105,\"\"))","v":""},null,null,null,null,{"$f":"+IF(Formulario!$AV$55=\"\",\"\",IF(Formulario!$AV$55=CA105,CA105,\"\"))","v":""},null,null,null,null,null,null,null,null,null,null,null,"GRANDE >6 M2",null,null,null,null,null,null,null,null,null,null,null,null,null,null,null,null,null,null,null,null,null,null,null,null,null,null,null,null,null,null,null,null,null,null,null,null,null,null,null,null,null,null,null,null,null,null,3,null,null,null,null,{"$f":"+IF(Formulario!$J$16=\"\",\"\",IF(Formulario!$J$16=FB105,FB105,\"\"))","v":""},null,null,null,null,{"$f":"+IF(Formulario!$BD$49=\"\",\"\",IF(Formulario!$BD$49=3,3,\"\"))","v":""},null,null,null,null,{"$f":"+IF(Formulario!$BD$50=\"\",\"\",IF(Formulario!$BD$50=3,3,\"\"))","v":""},null,null,null,null,{"$f":"+IF(Formulario!$BD$51=\"\",\"\",IF(Formulario!$BD$51=3,3,\"\"))","v":""}]
[null,null,null,null,null,null,"LUJOSA",null,null,null,null,null,null,null,null,null,null,null,null,null,null,null,null,null,null,null,null,null,null,null,null,null,null,null,null,null,null,null,null,null,null,null,null,null,null,null,null,null,null,null,null,null,null,8,null,null,null,null,{"$f":"+IF(Formulario!$J$8=\"\",\"\",IF(Formulario!$J$8=BB106,BB106,\"\"))","v":""},null,null,null,null,{"$f":"+IF(Formulario!L8=\"\",\"\",IF(Formulario!$L$8='Ficha Predial'!BB106,'Ficha Predial'!BB106,\"\"))","v":""},null,null,null,null,{"$f":"+IF(Formulario!$N$8=\"\",\"\",IF(Formulario!$N$8=BB106,BB106,\"\"))","v":""},null,null,null,null,{"$f":"+IF(Formulario!$P$8=\"\",\"\",IF(Formulario!$P$8=BB106,BB106,\"\"))","v":""},null,null,null,null,12,null,null,null,null,{"$f":"+IF(Formulario!$AV$52=\"\",\"\",IF(Formulario!$AV$52=CA106,CA106,\"\"))","v":""},null,null,null,null,{"$f":"+IF(Formulario!$AV$53=\"\",\"\",IF(Formulario!$AV$53=CA106,CA106,\"\"))","v":""},null,null,null,null,{"$f":"+IF(Formulario!$AV$54=\"\",\"\",IF(Formulario!$AV$54=CA106,CA106,\"\"))","v":""},null,null,null,null,{"$f":"+IF(Formulario!$AV$55=\"\",\"\",IF(Formulario!$AV$55=CA106,CA106,\"\"))","v":""},null,null,null,null,null,"ENCHAPES",null,null,null,null,null,"SIN CUBRIMIENTO",null,null,null,null,null,null,null,null,null,null,null,null,null,null,null,null,null,null,null,null,null,null,null,null,null,null,null,null,null,null,null,null,null,null,null,null,null,null,null,null,null,null,null,null,null,null,0,null,null,null,null,{"$f":"+IF(Formulario!$J$17=\"\",\"\",IF(Formulario!$J$17=FB106,FB106,\"\"))","v":""},null,null,null,null,{"$f":"+IF(Formulario!$BE$49=\"\",\"\",IF(Formulario!$BE$49=0,0,\"\"))","v":""},null,null,null,null,{"$f":"+IF(Formulario!$BE$50=\"\",\"\",IF(Formulario!$BE$50=0,0,\"\"))","v":""},null,null,null,null,{"$f":"+IF(Formulario!$BE$51=\"\",\"\",IF(Formulario!$BE$51=0,0,\"\"))","v":""}]
["CUBRIMIENTO MUROS",null,null,null,null,null,"SIN CUBRIMIENTO",null,null,null,null,null,null,null,null,null,null,null,null,null,null,null,null,null,null,null,null,null,null,null,null,null,null,null,null,null,null,null,null,null,null,null,null,null,null,null,null,null,null,null,null,null,null,0,null,null,null,null,{"$f":"+IF(Formulario!$J$9=\"\",\"\",IF(Formulario!$J$9=BB107,BB107,\"\"))","v":""},null,null,null,null,{"$f":"+IF(Formulario!L9=\"\",\"\",IF(Formulario!$L$9='Ficha Predial'!BB107,'Ficha Predial'!BB107,\"\"))","v":""},null,null,null,null,{"$f":"+IF(Formulario!$N$9=\"\",\"\",IF(Formulario!$N$9=BB107,BB107,\"\"))","v":""},null,null,null,null,{"$f":"+IF(Formulario!$P$9=\"\",\"\",IF(Formulario!$P$9=BB107,BB107,\"\"))","v":""},null,null,null,null,0,null,null,null,null,{"$f":"+IF(Formulario!$AW$52=\"\",\"\",IF(Formulario!$AW$52=CA107,CA107,\"\"))","v":""},null,null,null,null,{"$f":"+IF(Formulario!$AW$53=\"\",\"\",IF(Formulario!$AW$53=CA107,CA107,\"\"))","v":""},null,null,null,null,{"$f":"+IF(Formulario!$AW$54=\"\",\"\",IF(Formulario!$AW$54=CA107,CA107,\"\"))","v":""},null,null,null,null,{"$f":"+IF(Formulario!$AW$55=\"\",\"\",IF(Formulario!$AW$55=CA107,CA107,\"\"))","v":""},null,null,null,null,null,null,null,null,null,null,null,"PAÑETE BALDOSA COMÚN DE CEMENTO",null,null,null,null,null,null,null,null,null,null,null,null,null,null,null,null,null,null,null,null,null,null,null,null,null,null,null,null,null,null,null,null,null,null,null,null,null,null,null,null,null,null,null,null,null,null,1,null,null,null,null,{"$f":"+IF(Formulario!$J$17=\"\",\"\",IF(Formulario!$J$17=FB107,FB107,\"\"))","v":""},null,null,null,null,{"$f":"+IF(Formulario!$BE$49=\"\",\"\",IF(Formulario!$BE$49=1,1,\"\"))","v":""},null,null,null,null,{"$f":"+IF(Formulario!$BE$50=\"\",\"\",IF(Formulario!$BE$50=1,1,\"\"))","v":""},null,null,null,null,{"$f":"+IF(Formulario!$BE$51=\"\",\"\",IF(Formulario!$BE$51=1,1,\"\"))","v":""}]
[null,null,null,null,null,null,"PAÑETE, LADRILLO PRENSADO",null,null,null,null,null,null,null,null,null,null,null,null,null,null,null,null,null,null,null,null,null,null,null,null,null,null,null,null,null,null,null,null,null,null,null,null,null,null,null,null,null,null,null,null,null,null,1,null,null,null,null,{"$f":"+IF(Formulario!$J$9=\"\",\"\",IF(Formulario!$J$9=BB108,BB108,\"\"))","v":""},null,null,null,null,{"$f":"+IF(Formulario!L9=\"\",\"\",IF(Formulario!$L$9='Ficha Predial'!BB108,'Ficha Predial'!BB108,\"\"))","v":""},null,null,null,null,{"$f":"+IF(Formulario!$N$9=\"\",\"\",IF(Formulario!$N$9=BB108,BB108,\"\"))","v":""},null,null,null,null,{"$f":"+IF(Formulario!$P$9=\"\",\"\",IF(Formulario!$P$9=BB108,BB108,\"\"))","v":""},null,null,null,null,2,null,null,null,null,{"$f":"+IF(Formulario!$AW$52=\"\",\"\",IF(Formulario!$AW$52=CA108,CA108,\"\"))","v":""},null,null,null,null,{"$f":"+IF(Formulario!$AW$53=\"\",\"\",IF(Formulario!$AW$53=CA108,CA108,\"\"))","v":""},null,null,null,null,{"$f":"+IF(Formulario!$AW$54=\"\",\"\",IF(Formulario!$AW$54=CA108,CA108,\"\"))","v":""},null,null,null,null,{"$f":"+IF(Formulario!$AW$55=\"\",\"\",IF(Formulario!$AW$55=CA108,CA108,\"\"))","v":""},null,null,null,null,null,null,null,null,null,null,null,"BALDOSÍN UNICOLOR, PAPEL COMÚN",null,null,null,null,null,null,null,null,null,null,null,null,null,null,null,null,null,null,null,null,null,null,null,null,null,null,null,null,null,null,null,null,null,null,null,null,null,null,null,null,null,null,null,null,null,null,2,null,null,null,null,{"$f":"+IF(Formulario!$J$17=\"\",\"\",IF(Formulario!$J$17=FB108,FB108,\"\"))","v":""},null,null,null,null,{"$f":"+IF(Formulario!$BE$49=\"\",\"\",IF(Formulario!$BE$49=3,3,\"\"))","v":""},null,null,null,null,{"$f":"+IF(Formulario!$BE$50=\"\",\"\",IF(Formulario!$BE$50=3,3,\"\"))","v":""},null,null,null,null,{"$f":"+IF(Formulario!$BE$51=\"\",\"\",IF(Formulario!$BE$51=3,3,\"\"))","v":""}]
[null,null,null,null,null,null,"ESTUCO, CERÁMICA, PAPEL DE COLGADUR",null,null,null,null,null,null,null,null,null,null,null,null,null,null,null,null,null,null,null,null,null,null,null,null,null,null,null,null,null,null,null,null,null,null,null,null,null,null,null,null,null,null,null,null,null,null,2,null,null,null,null,{"$f":"+IF(Formulario!$J$9=\"\",\"\",IF(Formulario!$J$9=BB109,BB109,\"\"))","v":""},null,null,null,null,{"$f":"+IF(Formulario!L9=\"\",\"\",IF(Formulario!$L$9='Ficha Predial'!BB109,'Ficha Predial'!BB109,\"\"))","v":""},null,null,null,null,{"$f":"+IF(Formulario!$N$9=\"\",\"\",IF(Formulario!$N$9=BB109,BB109,\"\"))","v":""},null,null,null,null,{"$f":"+IF(Formulario!$P$9=\"\",\"\",IF(Formulario!$P$9=BB109,BB109,\"\"))","v":""},null,null,null,null,3,null,null,null,null,{"$f":"+IF(Formulario!$AW$52=\"\",\"\",IF(Formulario!$AW$52=CA109,CA109,\"\"))","v":""},null,null,null,null,{"$f":"+IF(Formulario!$AW$53=\"\",\"\",IF(Formulario!$AW$53=CA109,CA109,\"\"))","v":""},null,null,null,null,{"$f":"+IF(Formulario!$AW$54=\"\",\"\",IF(Formulario!$AW$54=CA109,CA109,\"\"))","v":""},null,null,null,null,{"$f":"+IF(Formulario!$AW$55=\"\",\"\",IF(Formulario!$AW$55=CA109,CA109,\"\"))","v":""},null,null,null,null,null,null,null,null,null,null,null,"BALDOSÍN DECORADO, PAPEL FINO",null,null,null,null,null,null,null,null,null,null,null,null,null,null,null,null,null,null,null,null,null,null,null,null,null,null,null,null,null,null,null,null,null,null,null,null,null,null,null,null,null,null,null,null,null,null,3,null,null,null,null,{"$f":"+IF(Formulario!$J$17=\"\",\"\",IF(Formulario!$J$17=FB109,FB109,\"\"))","v":""},null,null,null,null,{"$f":"+IF(Formulario!$BE$49=\"\",\"\",IF(Formulario!$BE$49=4,4,\"\"))","v":""},null,null,null,null,{"$f":"+IF(Formulario!$BE$50=\"\",\"\",IF(Formulario!$BE$50=4,4,\"\"))","v":""},null,null,null,null,{"$f":"+IF(Formulario!$BE$51=\"\",\"\",IF(Formulario!$BE$51=4,4,\"\"))","v":""}]
[null,null,null,null,null,null,"MADERA, PIEDRA ORNAMENTAL",null,null,null,null,null,null,null,null,null,null,null,null,null,null,null,null,null,null,null,null,null,null,null,null,null,null,null,null,null,null,null,null,null,null,null,null,null,null,null,null,null,null,null,null,null,null,3,null,null,null,null,{"$f":"+IF(Formulario!$J$9=\"\",\"\",IF(Formulario!$J$9=BB110,BB110,\"\"))","v":""},null,null,null,null,{"$f":"+IF(Formulario!L9=\"\",\"\",IF(Formulario!$L$9='Ficha Predial'!BB110,'Ficha Predial'!BB110,\"\"))","v":""},null,null,null,null,{"$f":"+IF(Formulario!$N$9=\"\",\"\",IF(Formulario!$N$9=BB110,BB110,\"\"))","v":""},null,null,null,null,{"$f":"+IF(Formulario!$P$9=\"\",\"\",IF(Formulario!$P$9=BB110,BB110,\"\"))","v":""},null,null,null,null,5,null,null,null,null,{"$f":"+IF(Formulario!$AW$52=\"\",\"\",IF(Formulario!$AW$52=CA110,CA110,\"\"))","v":""},null,null,null,null,{"$f":"+IF(Formulario!$AW$53=\"\",\"\",IF(Formulario!$AW$53=CA110,CA110,\"\"))","v":""},null,null,null,null,{"$f":"+IF(Formulario!$AW$54=\"\",\"\",IF(Formulario!$AW$54=CA110,CA110,\"\"))","v":""},null,null,null,null,{"$f":"+IF(Formulario!$AW$55=\"\",\"\",IF(Formulario!$AW$55=CA110,CA110,\"\"))","v":""},null,null,null,null,null,null,null,null,null,null,null,"BALDOSÍN DECORADO, PAPEL FINO",null,null,null,null,null,null,null,null,null,null,null,null,null,null,null,null,null,null,null,null,null,null,null,null,null,null,null,null,null,null,null,null,null,null,null,null,null,null,null,null,null,null,null,null,null,null,4,null,null,null,null,{"$f":"+IF(Formulario!$J$17=\"\",\"\",IF(Formulario!$J$17=FB110,FB110,\"\"))","v":""},null,null,null,null,{"$f":"+IF(Formulario!$BE$49=\"\",\"\",IF(Formulario!$BE$49=4,4,\"\"))","v":""},null,null,null,null,{"$f":"+IF(Formulario!$BE$50=\"\",\"\",IF(Formulario!$BE$50=4,4,\"\"))","v":""},null,null,null,null,{"$f":"+IF(Formulario!$BE$51=\"\",\"\",IF(Formulario!$BE$51=4,4,\"\"))","v":""}]
[null,null,null,null,null,null,"MARMOL LUJOS Y OTROS",null,null,null,null,null,null,null,null,null,null,null,null,null,null,null,null,null,null,null,null,null,null,null,null,null,null,null,null,null,null,null,null,null,null,null,null,null,null,null,null,null,null,null,null,null,null,4,null,null,null,null,{"$f":"+IF(Formulario!$J$9=\"\",\"\",IF(Formulario!$J$9=BB111,BB111,\"\"))","v":""},null,null,null,null,{"$f":"+IF(Formulario!L9=\"\",\"\",IF(Formulario!$L$9='Ficha Predial'!BB111,'Ficha Predial'!BB111,\"\"))","v":""},null,null,null,null,{"$f":"+IF(Formulario!$N$9=\"\",\"\",IF(Formulario!$N$9=BB111,BB111,\"\"))","v":""},null,null,null,null,{"$f":"+IF(Formulario!$P$9=\"\",\"\",IF(Formulario!$P$9=BB111,BB111,\"\"))","v":""},null,null,null,null,7,null,null,null,null,{"$f":"+IF(Formulario!$AW$52=\"\",\"\",IF(Formulario!$AW$52=CA111,CA111,\"\"))","v":""},null,null,null,null,{"$f":"+IF(Formulario!$AW$53=\"\",\"\",IF(Formulario!$AW$53=CA111,CA111,\"\"))","v":""},null,null,null,null,{"$f":"+IF(Formulario!$AW$54=\"\",\"\",IF(Formulario!$AW$54=CA111,CA111,\"\"))","v":""},null,null,null,null,{"$f":"+IF(Formulario!$AW$55=\"\",\"\",IF(Formulario!$AW$55=CA111,CA111,\"\"))","v":""},null,null,null,null,null,null,null,null,null,null,null,"MARMOL, ENCHAPE LUJOSO",null,null,null,null,null,null,null,null,null,null,null,null,null,null,null,null,null,null,null,null,null,null,null,null,null,null,null,null,null,null,null,null,null,null,null,null,null,null,null,null,null,null,null,null,null,null,5,null,null,null,null,{"$f":"+IF(Formulario!$J$17=\"\",\"\",IF(Formulario!$J$17=FB111,FB111,\"\"))","v":""},null,null,null,null,{"$f":"+IF(Formulario!$BE$49=\"\",\"\",IF(Formulario!$BE$49=5,5,\"\"))","v":""},null,null,null,null,{"$f":"+IF(Formulario!$BE$50=\"\",\"\",IF(Formulario!$BE$50=5,5,\"\"))","v":""},null,null,null,null,{"$f":"+IF(Formulario!$BE$51=\"\",\"\",IF(Formulario!$BE$51=5,5,\"\"))","v":""}]
["PISOS",null,null,null,null,null,"TIERRA PISADA",null,null,null,null,null,null,null,null,null,null,null,null,null,null,null,null,null,null,null,null,null,null,null,null,null,null,null,null,null,null,null,null,null,null,null,null,null,null,null,null,null,null,null,null,null,null,0,null,null,null,null,{"$f":"+IF(Formulario!$J$10=\"\",\"\",IF(Formulario!$J$10=BB112,BB112,\"\"))","v":""},null,null,null,null,{"$f":"+IF(Formulario!L10=\"\",\"\",IF(Formulario!$L$10='Ficha Predial'!BB112,'Ficha Predial'!BB112,\"\"))","v":""},null,null,null,null,{"$f":"+IF(Formulario!$N$10=\"\",\"\",IF(Formulario!$N$10=BB112,BB112,\"\"))","v":""},null,null,null,null,{"$f":"+IF(Formulario!$P$10=\"\",\"\",IF(Formulario!$P$10=BB112,BB112,\"\"))","v":""},null,null,null,null,0,null,null,null,null,{"$f":"+IF(Formulario!$AX$52=\"\",\"\",IF(Formulario!$AX$52=0,0,\"\"))","v":""},null,null,null,null,{"$f":"+IF(Formulario!$AX$53=\"\",\"\",IF(Formulario!$AX$53=0,0,\"\"))","v":""},null,null,null,null,{"$f":"+IF(Formulario!$AX$54=\"\",\"\",IF(Formulario!$AX$54=0,0,\"\"))","v":""},null,null,null,null,{"$f":"+IF(Formulario!$AX$55=\"\",\"\",IF(Formulario!$AX$55=0,0,\"\"))","v":""},null,null,null,null,null,"MOBILIARIO",null,null,null,null,null,"POBRE",null,null,null,null,null,null,null,null,null,null,null,null,null,null,null,null,null,null,null,null,null,null,null,null,null,null,null,null,null,null,null,null,null,null,null,null,null,null,null,null,null,null,null,null,null,null,0,null,null,null,null,{"$f":"+IF(Formulario!$J$18=\"\",\"\",IF(Formulario!$J$18=FB112,FB112,\"\"))","v":""},null,null,null,null,{"$f":"+IF(Formulario!$BF$49=\"\",\"\",IF(Formulario!$BF$49=0,0,\"\"))","v":""},null,null,null,null,{"$f":"+IF(Formulario!$BF$50=\"\",\"\",IF(Formulario!$BF$50=0,0,\"\"))","v":""},null,null,null,null,{"$f":"+IF(Formulario!$BF$51=\"\",\"\",IF(Formulario!$BF$51=0,0,\"\"))","v":""},null,null,null,null,0,null,null,null,null,{"$f":"+IF(Formulario!$BF$52=\"\",\"\",IF(Formulario!$BF$52=GA112,GA112,\"\"))","v":""},null,null,null,null,{"$f":"+IF(Formulario!$BF$53=\"\",\"\",IF(Formulario!$BF$53=GA112,GA112,\"\"))","v":""},null,null,null,null,{"$f":"+IF(Formulario!$BF$54=\"\",\"\",IF(Formulario!$BF$54=GA112,GA112,\"\"))","v":""},null,null,null,null,{"$f":"+IF(Formulario!$BF$55=\"\",\"\",IF(Formulario!$BF$55=GA112,GA112,\"\"))","v":""}]
[null,null,null,null,null,null,"CEMENTO, MADERA BURDA",null,null,null,null,null,null,null,null,null,null,null,null,null,null,null,null,null,null,null,null,null,null,null,null,null,null,null,null,null,null,null,null,null,null,null,null,null,null,null,null,null,null,null,null,null,null,2,null,null,null,null,{"$f":"+IF(Formulario!$J$10=\"\",\"\",IF(Formulario!$J$10=BB113,BB113,\"\"))","v":""},null,null,null,null,{"$f":"+IF(Formulario!L10=\"\",\"\",IF(Formulario!$L$10='Ficha Predial'!BB113,'Ficha Predial'!BB113,\"\"))","v":""},null,null,null,null,{"$f":"+IF(Formulario!$N$10=\"\",\"\",IF(Formulario!$N$10=BB113,BB113,\"\"))","v":""},null,null,null,null,{"$f":"+IF(Formulario!$P$10=\"\",\"\",IF(Formulario!$P$10=BB113,BB113,\"\"))","v":""},null,null,null,null,3,null,null,null,null,{"$f":"+IF(Formulario!$AX$52=\"\",\"\",IF(Formulario!$AX$52=3,3,\"\"))","v":""},null,null,null,null,{"$f":"+IF(Formulario!$AX$53=\"\",\"\",IF(Formulario!$AX$53=3,3,\"\"))","v":""},null,null,null,null,{"$f":"+IF(Formulario!$AX$54=\"\",\"\",IF(Formulario!$AX$54=3,3,\"\"))","v":""},null,null,null,null,{"$f":"+IF(Formulario!$AX$55=\"\",\"\",IF(Formulario!$AX$55=3,3,\"\"))","v":""},null,null,null,null,null,null,null,null,null,null,null,"SENCILLO",null,null,null,null,null,null,null,null,null,null,null,null,null,null,null,null,null,null,null,null,null,null,null,null,null,null,null,null,null,null,null,null,null,null,null,null,null,null,null,null,null,null,null,null,null,null,2,null,null,null,null,{"$f":"+IF(Formulario!$J$18=\"\",\"\",IF(Formulario!$J$18=FB113,FB113,\"\"))","v":""},null,null,null,null,{"$f":"+IF(Formulario!$BF$49=\"\",\"\",IF(Formulario!$BF$49=2,2,\"\"))","v":""},null,null,null,null,{"$f":"+IF(Formulario!$BF$50=\"\",\"\",IF(Formulario!$BF$50=2,2,\"\"))","v":""},null,null,null,null,{"$f":"+IF(Formulario!$BF$51=\"\",\"\",IF(Formulario!$BF$51=2,2,\"\"))","v":""},null,null,null,null,3,null,null,null,null,{"$f":"+IF(Formulario!$BF$52=\"\",\"\",IF(Formulario!$BF$52=GA113,GA113,\"\"))","v":""},null,null,null,null,{"$f":"+IF(Formulario!$BF$53=\"\",\"\",IF(Formulario!$BF$53=GA113,GA113,\"\"))","v":""},null,null,null,null,{"$f":"+IF(Formulario!$BF$54=\"\",\"\",IF(Formulario!$BF$54=GA113,GA113,\"\"))","v":""},null,null,null,null,{"$f":"+IF(Formulario!$BF$55=\"\",\"\",IF(Formulario!$BF$55=GA113,GA113,\"\"))","v":""}]
[null,null,null,null,null,null,"BALDOSA COMÚN CEMENTO, TABLÓN LAD",null,null,null,null,null,null,null,null,null,null,null,null,null,null,null,null,null,null,null,null,null,null,null,null,null,null,null,null,null,null,null,null,null,null,null,null,null,null,null,null,null,null,null,null,null,null,3,null,null,null,null,{"$f":"+IF(Formulario!$J$10=\"\",\"\",IF(Formulario!$J$10=BB114,BB114,\"\"))","v":""},null,null,null,null,{"$f":"+IF(Formulario!L10=\"\",\"\",IF(Formulario!$L$10='Ficha Predial'!BB114,'Ficha Predial'!BB114,\"\"))","v":""},null,null,null,null,{"$f":"+IF(Formulario!$N$10=\"\",\"\",IF(Formulario!$N$10=BB114,BB114,\"\"))","v":""},null,null,null,null,{"$f":"+IF(Formulario!$P$10=\"\",\"\",IF(Formulario!$P$10=BB114,BB114,\"\"))","v":""},null,null,null,null,5,null,null,null,null,{"$f":"+IF(Formulario!$AX$52=\"\",\"\",IF(Formulario!$AX$52=5,5,\"\"))","v":""},null,null,null,null,{"$f":"+IF(Formulario!$AX$53=\"\",\"\",IF(Formulario!$AX$53=5,5,\"\"))","v":""},null,null,null,null,{"$f":"+IF(Formulario!$AX$54=\"\",\"\",IF(Formulario!$AX$54=5,5,\"\"))","v":""},null,null,null,null,{"$f":"+IF(Formulario!$AX$55=\"\",\"\",IF(Formulario!$AX$55=5,5,\"\"))","v":""},null,null,null,null,null,null,null,null,null,null,null,"REGULAR",null,null,null,null,null,null,null,null,null,null,null,null,null,null,null,null,null,null,null,null,null,null,null,null,null,null,null,null,null,null,null,null,null,null,null,null,null,null,null,null,null,null,null,null,null,null,3,null,null,null,null,{"$f":"+IF(Formulario!$J$18=\"\",\"\",IF(Formulario!$J$18=FB114,FB114,\"\"))","v":""},null,null,null,null,{"$f":"+IF(Formulario!$BF$49=\"\",\"\",IF(Formulario!$BF$49=3,3,\"\"))","v":""},null,null,null,null,{"$f":"+IF(Formulario!$BF$50=\"\",\"\",IF(Formulario!$BF$50=3,3,\"\"))","v":""},null,null,null,null,{"$f":"+IF(Formulario!$BF$51=\"\",\"\",IF(Formulario!$BF$51=3,3,\"\"))","v":""},null,null,null,null,6,null,null,null,null,{"$f":"+IF(Formulario!$BF$52=\"\",\"\",IF(Formulario!$BF$52=GA114,GA114,\"\"))","v":""},null,null,null,null,{"$f":"+IF(Formulario!$BF$53=\"\",\"\",IF(Formulario!$BF$53=GA114,GA114,\"\"))","v":""},null,null,null,null,{"$f":"+IF(Formulario!$BF$54=\"\",\"\",IF(Formulario!$BF$54=GA114,GA114,\"\"))","v":""},null,null,null,null,{"$f":"+IF(Formulario!$BF$55=\"\",\"\",IF(Formulario!$BF$55=GA114,GA114,\"\"))","v":""}]
[null,null,null,null,null,null,"LISTÓN MACHIEMBRIADO.",null,null,null,null,null,null,null,null,null,null,null,null,null,null,null,null,null,null,null,null,null,null,null,null,null,null,null,null,null,null,null,null,null,null,null,null,null,null,null,null,null,null,null,null,null,null,4,null,null,null,null,{"$f":"+IF(Formulario!$J$10=\"\",\"\",IF(Formulario!$J$10=BB115,BB115,\"\"))","v":""},null,null,null,null,{"$f":"+IF(Formulario!L10=\"\",\"\",IF(Formulario!$L$10='Ficha Predial'!BB115,'Ficha Predial'!BB115,\"\"))","v":""},null,null,null,null,{"$f":"+IF(Formulario!$N$10=\"\",\"\",IF(Formulario!$N$10=BB115,BB115,\"\"))","v":""},null,null,null,null,{"$f":"+IF(Formulario!$P$10=\"\",\"\",IF(Formulario!$P$10=BB115,BB115,\"\"))","v":""},null,null,null,null,7,null,null,null,null,{"$f":"+IF(Formulario!$AX$52=\"\",\"\",IF(Formulario!$AX$52=7,7,\"\"))","v":""},null,null,null,null,{"$f":"+IF(Formulario!$AX$53=\"\",\"\",IF(Formulario!$AX$53=7,7,\"\"))","v":""},null,null,null,null,{"$f":"+IF(Formulario!$AX$54=\"\",\"\",IF(Formulario!$AX$54=7,7,\"\"))","v":""},null,null,null,null,{"$f":"+IF(Formulario!$AX$55=\"\",\"\",IF(Formulario!$AX$55=7,7,\"\"))","v":""},null,null,null,null,null,null,null,null,null,null,null,"BUENO",null,null,null,null,null,null,null,null,null,null,null,null,null,null,null,null,null,null,null,null,null,null,null,null,null,null,null,null,null,null,null,null,null,null,null,null,null,null,null,null,null,null,null,null,null,null,4,null,null,null,null,{"$f":"+IF(Formulario!$J$18=\"\",\"\",IF(Formulario!$J$18=FB115,FB115,\"\"))","v":""},null,null,null,null,{"$f":"+IF(Formulario!$BF$49=\"\",\"\",IF(Formulario!$BF$49=4,4,\"\"))","v":""},null,null,null,null,{"$f":"+IF(Formulario!$BF$50=\"\",\"\",IF(Formulario!$BF$50=4,4,\"\"))","v":""},null,null,null,null,{"$f":"+IF(Formulario!$BF$51=\"\",\"\",IF(Formulario!$BF$51=4,4,\"\"))","v":""},null,null,null,null,9,null,null,null,null,{"$f":"+IF(Formulario!$BF$52=\"\",\"\",IF(Formulario!$BF$52=GA115,GA115,\"\"))","v":""},null,null,null,null,{"$f":"+IF(Formulario!$BF$53=\"\",\"\",IF(Formulario!$BF$53=GA115,GA115,\"\"))","v":""},null,null,null,null,{"$f":"+IF(Formulario!$BF$54=\"\",\"\",IF(Formulario!$BF$54=GA115,GA115,\"\"))","v":""},null,null,null,null,{"$f":"+IF(Formulario!$BF$55=\"\",\"\",IF(Formulario!$BF$55=GA115,GA115,\"\"))","v":""}]
[null,null,null,null,null,null,"TABLETA, CAUCHO, ACRÍLICO, GRANITO, BALDOSA FINA",null,null,null,null,null,null,null,null,null,null,null,null,null,null,null,null,null,null,null,null,null,null,null,null,null,null,null,null,null,null,null,null,null,null,null,null,null,null,null,null,null,null,null,null,null,null,6,null,null,null,null,{"$f":"+IF(Formulario!$J$10=\"\",\"\",IF(Formulario!$J$10=BB116,BB116,\"\"))","v":""},null,null,null,null,{"$f":"+IF(Formulario!L10=\"\",\"\",IF(Formulario!$L$10='Ficha Predial'!BB116,'Ficha Predial'!BB116,\"\"))","v":""},null,null,null,null,{"$f":"+IF(Formulario!$N$10=\"\",\"\",IF(Formulario!$N$10=BB116,BB116,\"\"))","v":""},null,null,null,null,{"$f":"+IF(Formulario!$P$10=\"\",\"\",IF(Formulario!$P$10=BB116,BB116,\"\"))","v":""},null,null,null,null,9,null,null,null,null,{"$f":"+IF(Formulario!$AX$52=\"\",\"\",IF(Formulario!$AX$52=9,9,\"\"))","v":""},null,null,null,null,{"$f":"+IF(Formulario!$AX$53=\"\",\"\",IF(Formulario!$AX$53=9,9,\"\"))","v":""},null,null,null,null,{"$f":"+IF(Formulario!$AX$54=\"\",\"\",IF(Formulario!$AX$54=9,9,\"\"))","v":""},null,null,null,null,{"$f":"+IF(Formulario!$AX$55=\"\",\"\",IF(Formulario!$AX$55=9,9,\"\"))","v":""},null,null,null,null,null,null,null,null,null,null,null,"LUJOSO",null,null,null,null,null,null,null,null,null,null,null,null,null,null,null,null,null,null,null,null,null,null,null,null,null,null,null,null,null,null,null,null,null,null,null,null,null,null,null,null,null,null,null,null,null,null,6,null,null,null,null,{"$f":"+IF(Formulario!$J$18=\"\",\"\",IF(Formulario!$J$18=FB116,FB116,\"\"))","v":""},null,null,null,null,{"$f":"+IF(Formulario!$BF$49=\"\",\"\",IF(Formulario!$BF$49=6,6,\"\"))","v":""},null,null,null,null,{"$f":"+IF(Formulario!$BF$50=\"\",\"\",IF(Formulario!$BF$50=6,6,\"\"))","v":""},null,null,null,null,{"$f":"+IF(Formulario!$BF$51=\"\",\"\",IF(Formulario!$BF$51=6,6,\"\"))","v":""},null,null,null,null,13,null,null,null,null,{"$f":"+IF(Formulario!$BF$52=\"\",\"\",IF(Formulario!$BF$52=GA116,GA116,\"\"))","v":""},null,null,null,null,{"$f":"+IF(Formulario!$BF$53=\"\",\"\",IF(Formulario!$BF$53=GA116,GA116,\"\"))","v":""},null,null,null,null,{"$f":"+IF(Formulario!$BF$54=\"\",\"\",IF(Formulario!$BF$54=GA116,GA116,\"\"))","v":""},null,null,null,null,{"$f":"+IF(Formulario!$BF$55=\"\",\"\",IF(Formulario!$BF$55=GA116,GA116,\"\"))","v":""}]
[null,null,null,null,null,null,"PARQUET, ALFOMBRA, RETAL DE MARMOL",null,null,null,null,null,null,null,null,null,null,null,null,null,null,null,null,null,null,null,null,null,null,null,null,null,null,null,null,null,null,null,null,null,null,null,null,null,null,null,null,null,null,null,null,null,null,8,null,null,null,null,{"$f":"+IF(Formulario!$J$10=\"\",\"\",IF(Formulario!$J$10=BB117,BB117,\"\"))","v":""},null,null,null,null,{"$f":"+IF(Formulario!L10=\"\",\"\",IF(Formulario!$L$10='Ficha Predial'!BB117,'Ficha Predial'!BB117,\"\"))","v":""},null,null,null,null,{"$f":"+IF(Formulario!$N$10=\"\",\"\",IF(Formulario!$N$10=BB117,BB117,\"\"))","v":""},null,null,null,null,{"$f":"+IF(Formulario!$P$10=\"\",\"\",IF(Formulario!$P$10=BB117,BB117,\"\"))","v":""},null,null,null,null,11,null,null,null,null,{"$f":"+IF(Formulario!$AX$52=\"\",\"\",IF(Formulario!$AX$52=11,11,\"\"))","v":""},null,null,null,null,{"$f":"+IF(Formulario!$AX$53=\"\",\"\",IF(Formulario!$AX$53=11,11,\"\"))","v":""},null,null,null,null,{"$f":"+IF(Formulario!$AX$54=\"\",\"\",IF(Formulario!$AX$54=11,11,\"\"))","v":""},null,null,null,null,{"$f":"+IF(Formulario!$AX$55=\"\",\"\",IF(Formulario!$AX$55=11,11,\"\"))","v":""},null,null,null,null,null,"CONSERVACIÓN",null,null,null,null,null,"MALO",null,null,null,null,null,null,null,null,null,null,null,null,null,null,null,null,null,null,null,null,null,null,null,null,null,null,null,null,null,null,null,null,null,null,null,null,null,null,null,null,null,null,null,null,null,null,0,null,null,null,null,{"$f":"+IF(Formulario!$J$19=\"\",\"\",IF(Formulario!$J$19=FB117,FB117,\"\"))","v":""},null,null,null,null,{"$f":"+IF(Formulario!$BG$49=\"\",\"\",IF(Formulario!$BG$49=0,0,\"\"))","v":""},null,null,null,null,{"$f":"+IF(Formulario!$BG$50=\"\",\"\",IF(Formulario!$BG$50=0,0,\"\"))","v":""},null,null,null,null,{"$f":"+IF(Formulario!$BG$51=\"\",\"\",IF(Formulario!$BG$51=0,0,\"\"))","v":""}]
[null,null,null,null,null,null,"RETAL DE MARMOL, MARMOL, OTROS LUJOS",null,null,null,null,null,null,null,null,null,null,null,null,null,null,null,null,null,null,null,null,null,null,null,null,null,null,null,null,null,null,null,null,null,null,null,null,null,null,null,null,null,null,null,null,null,null,9,null,null,null,null,{"$f":"+IF(Formulario!$J$10=\"\",\"\",IF(Formulario!$J$10=BB118,BB118,\"\"))","v":""},null,null,null,null,{"$f":"+IF(Formulario!L10=\"\",\"\",IF(Formulario!$L$10='Ficha Predial'!BB118,'Ficha Predial'!BB118,\"\"))","v":""},null,null,null,null,{"$f":"+IF(Formulario!$N$10=\"\",\"\",IF(Formulario!$N$10=BB118,BB118,\"\"))","v":""},null,null,null,null,{"$f":"+IF(Formulario!$P$10=\"\",\"\",IF(Formulario!$P$10=BB118,BB118,\"\"))","v":""},null,null,null,null,13,null,null,null,null,{"$f":"+IF(Formulario!$AX$52=\"\",\"\",IF(Formulario!$AX$52=13,13,\"\"))","v":""},null,null,null,null,{"$f":"+IF(Formulario!$AX$53=\"\",\"\",IF(Formulario!$AX$53=13,13,\"\"))","v":""},null,null,null,null,{"$f":"+IF(Formulario!$AX$54=\"\",\"\",IF(Formulario!$AX$54=13,13,\"\"))","v":""},null,null,null,null,{"$f":"+IF(Formulario!$AX$55=\"\",\"\",IF(Formulario!$AX$55=13,13,\"\"))","v":""},null,null,null,null,null,null,null,null,null,null,null,"REGULAR",null,null,null,null,null,null,null,null,null,null,null,null,null,null,null,null,null,null,null,null,null,null,null,null,null,null,null,null,null,null,null,null,null,null,null,null,null,null,null,null,null,null,null,null,null,null,2,null,null,null,null,{"$f":"+IF(Formulario!$J$19=\"\",\"\",IF(Formulario!$J$19=FB118,FB118,\"\"))","v":""},null,null,null,null,{"$f":"+IF(Formulario!$BG$49=\"\",\"\",IF(Formulario!$BG$49=2,2,\"\"))","v":""},null,null,null,null,{"$f":"+IF(Formulario!$BG$50=\"\",\"\",IF(Formulario!$BG$50=2,2,\"\"))","v":""},null,null,null,null,{"$f":"+IF(Formulario!$BG$51=\"\",\"\",IF(Formulario!$BG$51=2,2,\"\"))","v":""}]
["CONSERVACIÓN",null,null,null,null,null,"MALO",null,null,null,null,null,null,null,null,null,null,null,null,null,null,null,null,null,null,null,null,null,null,null,null,null,null,null,null,null,null,null,null,null,null,null,null,null,null,null,null,null,null,null,null,null,null,0,null,null,null,null,{"$f":"+IF(Formulario!$J$11=\"\",\"\",IF(Formulario!$J$11=BB119,BB119,\"\"))","v":""},null,null,null,null,{"$f":"+IF(Formulario!L11=\"\",\"\",IF(Formulario!$L$11='Ficha Predial'!BB119,'Ficha Predial'!BB119,\"\"))","v":""},null,null,null,null,{"$f":"+IF(Formulario!$N$11=\"\",\"\",IF(Formulario!$N$11=BB119,BB119,\"\"))","v":""},null,null,null,null,{"$f":"+IF(Formulario!$P$11=\"\",\"\",IF(Formulario!$P$11=BB119,BB119,\"\"))","v":""},null,null,null,null,0,null,null,null,null,{"$f":"+IF(Formulario!$AY$52=\"\",\"\",IF(Formulario!$AY$52=0,0,\"\"))","v":""},null,null,null,null,{"$f":"+IF(Formulario!$AY$53=\"\",\"\",IF(Formulario!$AY$53=0,0,\"\"))","v":""},null,null,null,null,{"$f":"+IF(Formulario!$AY$54=\"\",\"\",IF(Formulario!$AY$54=0,0,\"\"))","v":""},null,null,null,null,{"$f":"+IF(Formulario!$AY$55=\"\",\"\",IF(Formulario!$AY$55=0,0,\"\"))","v":""},null,null,null,null,null,null,null,null,null,null,null,"BUENO",null,null,null,null,null,null,null,null,null,null,null,null,null,null,null,null,null,null,null,null,null,null,null,null,null,null,null,null,null,null,null,null,null,null,null,null,null,null,null,null,null,null,null,null,null,null,4,null,null,null,null,{"$f":"+IF(Formulario!$J$19=\"\",\"\",IF(Formulario!$J$19=FB119,FB119,\"\"))","v":""},null,null,null,null,{"$f":"+IF(Formulario!$BG$49=\"\",\"\",IF(Formulario!$BG$49=4,4,\"\"))","v":""},null,null,null,null,{"$f":"+IF(Formulario!$BG$50=\"\",\"\",IF(Formulario!$BG$50=4,4,\"\"))","v":""},null,null,null,null,{"$f":"+IF(Formulario!$BG$51=\"\",\"\",IF(Formulario!$BG$51=4,4,\"\"))","v":""}]
[null,null,null,null,null,null,"REGULAR",null,null,null,null,null,null,null,null,null,null,null,null,null,null,null,null,null,null,null,null,null,null,null,null,null,null,null,null,null,null,null,null,null,null,null,null,null,null,null,null,null,null,null,null,null,null,2,null,null,null,null,{"$f":"+IF(Formulario!$J$11=\"\",\"\",IF(Formulario!$J$11=BB120,BB120,\"\"))","v":""},null,null,null,null,{"$f":"+IF(Formulario!L11=\"\",\"\",IF(Formulario!$L$11='Ficha Predial'!BB120,'Ficha Predial'!BB120,\"\"))","v":""},null,null,null,null,{"$f":"+IF(Formulario!$N$11=\"\",\"\",IF(Formulario!$N$11=BB120,BB120,\"\"))","v":""},null,null,null,null,{"$f":"+IF(Formulario!$P$11=\"\",\"\",IF(Formulario!$P$11=BB120,BB120,\"\"))","v":""},null,null,null,null,2,null,null,null,null,{"$f":"+IF(Formulario!$AY$52=\"\",\"\",IF(Formulario!$AY$52=2,2,\"\"))","v":""},null,null,null,null,{"$f":"+IF(Formulario!$AY$53=\"\",\"\",IF(Formulario!$AY$53=2,2,\"\"))","v":""},null,null,null,null,{"$f":"+IF(Formulario!$AY$54=\"\",\"\",IF(Formulario!$AY$54=2,2,\"\"))","v":""},null,null,null,null,{"$f":"+IF(Formulario!$AY$55=\"\",\"\",IF(Formulario!$AY$55=2,2,\"\"))","v":""},null,null,null,null,null,null,null,null,null,null,null,"EXCELENTE",null,null,null,null,null,null,null,null,null,null,null,null,null,null,null,null,null,null,null,null,null,null,null,null,null,null,null,null,null,null,null,null,null,null,null,null,null,null,null,null,null,null,null,null,null,null,5,null,null,null,null,{"$f":"+IF(Formulario!$J$19=\"\",\"\",IF(Formulario!$J$19=FB120,FB120,\"\"))","v":""},null,null,null,null,{"$f":"+IF(Formulario!$BG$49=\"\",\"\",IF(Formulario!$BG$49=5,5,\"\"))","v":""},null,null,null,null,{"$f":"+IF(Formulario!$BG$50=\"\",\"\",IF(Formulario!$BG$50=5,5,\"\"))","v":""},null,null,null,null,{"$f":"+IF(Formulario!$BG$51=\"\",\"\",IF(Formulario!$BG$51=5,5,\"\"))","v":""}]
[null,null,null,null,null,null,"BUENO",null,null,null,null,null,null,null,null,null,null,null,null,null,null,null,null,null,null,null,null,null,null,null,null,null,null,null,null,null,null,null,null,null,null,null,null,null,null,null,null,null,null,null,null,null,null,4,null,null,null,null,{"$f":"+IF(Formulario!$J$11=\"\",\"\",IF(Formulario!$J$11=BB121,BB121,\"\"))","v":""},null,null,null,null,{"$f":"+IF(Formulario!L11=\"\",\"\",IF(Formulario!$L$11='Ficha Predial'!BB121,'Ficha Predial'!BB121,\"\"))","v":""},null,null,null,null,{"$f":"+IF(Formulario!$N$11=\"\",\"\",IF(Formulario!$N$11=BB121,BB121,\"\"))","v":""},null,null,null,null,{"$f":"+IF(Formulario!$P$11=\"\",\"\",IF(Formulario!$P$11=BB121,BB121,\"\"))","v":""},null,null,null,null,4,null,null,null,null,{"$f":"+IF(Formulario!$AY$52=\"\",\"\",IF(Formulario!$AY$52=4,4,\"\"))","v":""},null,null,null,null,{"$f":"+IF(Formulario!$AY$53=\"\",\"\",IF(Formulario!$AY$53=4,4,\"\"))","v":""},null,null,null,null,{"$f":"+IF(Formulario!$AY$54=\"\",\"\",IF(Formulario!$AY$54=4,4,\"\"))","v":""},null,null,null,null,{"$f":"+IF(Formulario!$AY$55=\"\",\"\",IF(Formulario!$AY$55=4,4,\"\"))","v":""},null,null,null,null,null,"5. COMPLEMENTO INDUSTRIA",null,null,null,null,null,null,null,null,null,null,null,null,null,null,null,null,null,null,null,null,null,null,null,null,null,null,null,null,null,null,null,null,null,null,null,null,null,null,null,null,null,null,null,null,null,null,null,null,null,null,null,null,null,null,null,null,null,null,null,null,null,null,null,null,null,null,null,null,null,null,null,null,null,null,null,null,null,"PUNTOS",null,null,null,null,"INDUSTRIAL  O\nCOMERCIAL"]
[null,null,null,null,null,null,"EXCELENTE",null,null,null,null,null,null,null,null,null,null,null,null,null,null,null,null,null,null,null,null,null,null,null,null,null,null,null,null,null,null,null,null,null,null,null,null,null,null,null,null,null,null,null,null,null,null,5,null,null,null,null,{"$f":"+IF(Formulario!$J$11=\"\",\"\",IF(Formulario!$J$11=BB122,BB122,\"\"))","v":""},null,null,null,null,{"$f":"+IF(Formulario!L11=\"\",\"\",IF(Formulario!$L$11='Ficha Predial'!BB122,'Ficha Predial'!BB122,\"\"))","v":""},null,null,null,null,{"$f":"+IF(Formulario!$N$11=\"\",\"\",IF(Formulario!$N$11=BB122,BB122,\"\"))","v":""},null,null,null,null,{"$f":"+IF(Formulario!$P$11=\"\",\"\",IF(Formulario!$P$11=BB122,BB122,\"\"))","v":""},null,null,null,null,5,null,null,null,null,{"$f":"+IF(Formulario!$AY$52=\"\",\"\",IF(Formulario!$AY$52=5,5,\"\"))","v":""},null,null,null,null,{"$f":"+IF(Formulario!$AY$53=\"\",\"\",IF(Formulario!$AY$53=5,5,\"\"))","v":""},null,null,null,null,{"$f":"+IF(Formulario!$AY$54=\"\",\"\",IF(Formulario!$AY$54=5,5,\"\"))","v":""},null,null,null,null,{"$f":"+IF(Formulario!$AY$55=\"\",\"\",IF(Formulario!$AY$55=5,5,\"\"))","v":""},null,null,null,null,null,null,null,null,null,null,null,null,null,null,null,null,null,null,null,null,null,null,null,null,null,null,null,null,null,null,null,null,null,null,null,null,null,null,null,null,null,null,null,null,null,null,null,null,null,null,null,null,null,null,null,null,null,null,null,null,null,null,null,null,null,null,null,null,null,null,null,null,null,null,null,null,null,null,null,null,null,null,null,null,null,null,null,null,"A",null,null,null,null,"B",null,null,null,null,"C",null,null,null,null,"D"]
["OBSERVACIONES SOBRE CALIFICACION CONSTRUCCIÓN",null,null,null,null,null,null,null,null,null,null,null,null,null,null,null,null,null,null,null,null,null,null,null,null,null,null,null,null,null,null,null,null,null,null,null,null,null,null,null,null,null,null,null,null,null,null,null,null,null,null,null,null,null,null,null,null,null,null,null,null,null,null,null,null,null,null,null,null,null,null,null,null,null,null,null,null,null,null,null,null,null,null,null,null,null,null,null,null,null,null,null,null,null,null,null,null,null,null,null,null,null,null,null,"CERCHAS",null,null,null,null,null,"MADERA",null,null,null,null,null,null,null,null,null,null,null,null,null,null,null,null,null,null,null,null,null,null,null,null,null,null,null,null,null,null,null,null,null,null,null,null,null,null,null,null,null,null,null,null,null,null,null,null,null,null,null,null,null,null,null,null,null,null,null,null,null,null,null,null,null,null,null,null,null,null,null,6,null,null,null,null,{"$f":"+IF(Formulario!$BH$52=\"\",\"\",IF(Formulario!$BH$52=6,6,\"\"))","v":""},null,null,null,null,{"$f":"+IF(Formulario!$BH$53=\"\",\"\",IF(Formulario!$BH$53=6,6,\"\"))","v":""},null,null,null,null,{"$f":"+IF(Formulario!$BH$54=\"\",\"\",IF(Formulario!$BH$54=6,6,\"\"))","v":""},null,null,null,null,{"$f":"+IF(Formulario!$BH$55=\"\",\"\",IF(Formulario!$BH$55=6,6,\"\"))","v":""}]
[{"$f":"Formulario!B55","v":0},null,null,null,null,null,null,null,null,null,null,null,null,null,null,null,null,null,null,null,null,null,null,null,null,null,null,null,null,null,null,null,null,null,null,null,null,null,null,null,null,null,null,null,null,null,null,null,null,null,null,null,null,null,null,null,null,null,null,null,null,null,null,null,null,null,null,null,null,null,null,null,null,null,null,null,null,null,null,null,null,null,null,null,null,null,null,null,null,null,null,null,null,null,null,null,null,null,null,null,null,null,null,null,null,null,null,null,null,null,"METÁLICA LIVIANA",null,null,null,null,null,null,null,null,null,null,null,null,null,null,null,null,null,null,null,null,null,null,null,null,null,null,null,null,null,null,null,null,null,null,null,null,null,null,null,null,null,null,null,null,null,null,null,null,null,null,null,null,null,null,null,null,null,null,null,null,null,null,null,null,null,null,null,null,null,null,null,12,null,null,null,null,{"$f":"+IF(Formulario!$BH$52=\"\",\"\",IF(Formulario!$BH$52=12,12,\"\"))","v":""},null,null,null,null,{"$f":"+IF(Formulario!$BH$53=\"\",\"\",IF(Formulario!$BH$53=12,12,\"\"))","v":""},null,null,null,null,{"$f":"+IF(Formulario!$BH$54=\"\",\"\",IF(Formulario!$BH$54=12,12,\"\"))","v":""},null,null,null,null,{"$f":"+IF(Formulario!$BH$55=\"\",\"\",IF(Formulario!$BH$55=12,12,\"\"))","v":""}]
[null,null,null,null,null,null,null,null,null,null,null,null,null,null,null,null,null,null,null,null,null,null,null,null,null,null,null,null,null,null,null,null,null,null,null,null,null,null,null,null,null,null,null,null,null,null,null,null,null,null,null,null,null,null,null,null,null,null,null,null,null,null,null,null,null,null,null,null,null,null,null,null,null,null,null,null,null,null,null,null,null,null,null,null,null,null,null,null,null,null,null,null,null,null,null,null,null,null,null,null,null,null,null,null,null,null,null,null,null,null,"METÁLICA MEDIANA",null,null,null,null,null,null,null,null,null,null,null,null,null,null,null,null,null,null,null,null,null,null,null,null,null,null,null,null,null,null,null,null,null,null,null,null,null,null,null,null,null,null,null,null,null,null,null,null,null,null,null,null,null,null,null,null,null,null,null,null,null,null,null,null,null,null,null,null,null,null,null,22,null,null,null,null,{"$f":"+IF(Formulario!$BH$52=\"\",\"\",IF(Formulario!$BH$52=22,22,\"\"))","v":""},null,null,null,null,{"$f":"+IF(Formulario!$BH$53=\"\",\"\",IF(Formulario!$BH$53=22,22,\"\"))","v":""},null,null,null,null,{"$f":"+IF(Formulario!$BH$54=\"\",\"\",IF(Formulario!$BH$54=22,22,\"\"))","v":""},null,null,null,null,{"$f":"+IF(Formulario!$BH$55=\"\",\"\",IF(Formulario!$BH$55=22,22,\"\"))","v":""}]
[null,null,null,null,null,null,null,null,null,null,null,null,null,null,null,null,null,null,null,null,null,null,null,null,null,null,null,null,null,null,null,null,null,null,null,null,null,null,null,null,null,null,null,null,null,null,null,null,null,null,null,null,null,null,null,null,null,null,null,null,null,null,null,null,null,null,null,null,null,null,null,null,null,null,null,null,null,null,null,null,null,null,null,null,null,null,null,null,null,null,null,null,null,null,null,null,null,null,null,null,null,null,null,null,null,null,null,null,null,null,"METÁLICA PESADA",null,null,null,null,null,null,null,null,null,null,null,null,null,null,null,null,null,null,null,null,null,null,null,null,null,null,null,null,null,null,null,null,null,null,null,null,null,null,null,null,null,null,null,null,null,null,null,null,null,null,null,null,null,null,null,null,null,null,null,null,null,null,null,null,null,null,null,null,null,null,null,34,null,null,null,null,{"$f":"+IF(Formulario!$BH$52=\"\",\"\",IF(Formulario!$BH$52=34,34,\"\"))","v":""},null,null,null,null,{"$f":"+IF(Formulario!$BH$53=\"\",\"\",IF(Formulario!$BH$53=34,34,\"\"))","v":""},null,null,null,null,{"$f":"+IF(Formulario!$BH$54=\"\",\"\",IF(Formulario!$BH$54=34,34,\"\"))","v":""},null,null,null,null,{"$f":"+IF(Formulario!$BH$55=\"\",\"\",IF(Formulario!$BH$55=34,34,\"\"))","v":""}]
[null,null,null,null,null,null,null,null,null,null,null,null,null,null,null,null,null,null,null,null,null,null,null,null,null,null,null,null,null,null,null,null,null,null,null,null,null,null,null,null,null,null,null,null,null,null,null,null,null,null,null,null,null,null,null,null,null,null,null,null,null,null,null,null,null,null,null,null,null,null,null,null,null,null,null,null,null,null,null,null,null,null,null,null,null,null,null,null,null,null,null,null,null,null,null,null,null,null,null,null,null,null,null,null,null,null,null,null,null,null,"ALTURA MAYOR A 7 M EN COLUMNA - PUENT GRÚA",null,null,null,null,null,null,null,null,null,null,null,null,null,null,null,null,null,null,null,null,null,null,null,null,null,null,null,null,null,null,null,null,null,null,null,null,null,null,null,null,null,null,null,null,null,null,null,null,null,null,null,null,null,null,null,null,null,null,null,null,null,null,null,null,null,null,null,null,null,null,null,6,null,null,null,null,{"$f":"+IF(Formulario!BI52=\"\",\"\",IF(Formulario!$BI$52=6,6,\"\"))","v":""},null,null,null,null,{"$f":"+IF(Formulario!$BI$53=\"\",\"\",IF(Formulario!$BI$53=6,6,\"\"))","v":""},null,null,null,null,{"$f":"+IF(Formulario!$BI$54=\"\",\"\",IF(Formulario!$BI$54=6,6,\"\"))","v":""},null,null,null,null,{"$f":"+IF(Formulario!$BI$55=\"\",\"\",IF(Formulario!$BI$55=6,6,\"\"))","v":""}]
[null,null,null,null,null,null,null,null,null,null,null,null,null,null,null,null,null,null,null,null,null,null,null,null,null,null,null,null,null,null,null,null,null,null,null,null,null,null,null,null,null,null,null,null,null,null,null,null,null,null,null,null,null,null,null,null,null,null,null,null,null,null,null,null,null,null,null,null,null,null,null,null,null,null,null,null,null,null,null,null,null,null,null,null,null,null,null,null,null,null,null,null,null,null,null,null,null,null,null,null,null,null,null,null,"6. GENERALES",null,null,null,null,null,null,null,null,null,null,null,null,null,null,null,null,null,null,null,null,null,null,null,null,null,null,null,null,null,null,null,null,null,null,null,null,null,null,null,null,null,null,null,null,null,null,null,null,null,null,null,null,null,null,null,null,null,null,null,null,null,null,null,null,null,null,null,null,null,null,null,null,null,null,null,null,null,null,null,null,null,null,"AÑO DE CONSTRUCCIÓN"]
[]
[null,null,null,null,null,null,null,null,null,null,null,null,null,null,null,null,null,null,null,null,null,null,null,null,null,null,null,null,null,null,null,null,null,null,null,null,null,null,null,null,null,null,null,null,null,null,null,null,null,null,null,null,null,null,null,null,null,null,null,null,null,null,null,null,null,null,null,null,null,null,null,null,null,null,null,null,null,null,null,null,null,null,null,null,null,null,null,null,null,null,null,null,null,null,null,null,null,null,null,null,null,null,null,null,null,null,null,null,null,null,null,null,null,null,null,null,null,null,null,null,null,null,null,null,null,null,null,null,null,null,null,null,null,null,null,null,null,null,null,null,null,null,null,null,null,null,null,null,null,null,null,null,null,null,null,null,null,null,null,null,null,null,"A",null,null,null,null,"B",null,null,null,null,"C",null,null,null,null,"D",null,null,null,null,null,null,null,null,null,{"$f":"Formulario!H53","v":" "}]
[null,null,null,null,null,null,null,null,null,null,null,null,null,null,null,null,null,null,null,null,null,null,null,null,null,null,null,null,null,null,null,null,null,null,null,null,null,null,null,null,null,null,null,null,null,null,null,null,null,null,null,null,null,null,null,null,null,null,null,null,null,null,null,null,null,null,null,null,null,null,null,null,null,null,null,null,null,null,null,null,null,null,null,null,null,null,null,null,null,null,null,null,null,null,null,null,null,null,null,null,null,null,null,null,"NÚMERO",null,null,null,null,null,"TOTAL DE PISOS",null,null,null,null,null,null,null,null,null,null,null,null,null,null,null,null,null,null,null,null,null,null,null,null,null,null,null,null,null,null,null,null,null,null,null,null,null,null,null,null,null,null,null,null,null,null,null,null,null,null,null,{"$f":"Formulario!H49","v":" "},null,null,null,null,{"$f":"Formulario!I49","v":" "},null,null,null,null,{"$f":"Formulario!J49","v":" "},null,null,null,null,{"$f":"Formulario!K49","v":" "}]
[null,null,null,null,null,null,null,null,null,null,null,null,null,null,null,null,null,null,null,null,null,null,null,null,null,null,null,null,null,null,null,null,null,null,null,null,null,null,null,null,null,null,null,null,null,null,null,null,null,null,null,null,null,null,null,null,null,null,null,null,null,null,null,null,null,null,null,null,null,null,null,null,null,null,null,null,null,null,null,null,null,null,null,null,null,null,null,null,null,null,null,null,null,null,null,null,null,null,null,null,null,null,null,null,null,null,null,null,null,null,"DE HABITACIONES",null,null,null,null,null,null,null,null,null,null,null,null,null,null,null,null,null,null,null,null,null,null,null,null,null,null,null,null,null,null,null,null,null,null,null,null,null,null,null,null,null,null,null,null,null,null,null,null,null,null,null,{"$f":"Formulario!H50","v":" "},null,null,null,null,{"$f":"Formulario!I50","v":" "},null,null,null,null,{"$f":"Formulario!J50","v":" "},null,null,null,null,{"$f":"Formulario!K50","v":" "},null,null,null,null,null,null,null,null,null,"TIPOLOGIA"]
[null,null,null,null,null,null,null,null,null,null,null,null,null,null,null,null,null,null,null,null,null,null,null,null,null,null,null,null,null,null,null,null,null,null,null,null,null,null,null,null,null,null,null,null,null,null,null,null,null,null,null,null,null,null,null,null,null,null,null,null,null,null,null,null,null,null,null,null,null,null,null,null,null,null,null,null,null,null,null,null,null,null,null,null,null,null,null,null,null,null,null,null,null,null,null,null,null,null,null,null,null,null,null,null,null,null,null,null,null,null,"DE BAÑOS",null,null,null,null,null,null,null,null,null,null,null,null,null,null,null,null,null,null,null,null,null,null,null,null,null,null,null,null,null,null,null,null,null,null,null,null,null,null,null,null,null,null,null,null,null,null,null,null,null,null,null,{"$f":"Formulario!H51","v":" "},null,null,null,null,{"$f":"Formulario!I51","v":" "},null,null,null,null,{"$f":"Formulario!J51","v":" "},null,null,null,null,{"$f":"Formulario!K51","v":" "},null,null,null,null,null,null,null,null,null,{"$f":"Formulario!H54","v":" "}]
[null,null,null,null,null,null,null,null,null,null,null,null,null,null,null,null,null,null,null,null,null,null,null,null,null,null,null,null,null,null,null,null,null,null,null,null,null,null,null,null,null,null,null,null,null,null,null,null,null,null,null,null,null,null,null,null,null,null,null,null,null,null,null,null,null,null,null,null,null,null,null,null,null,null,null,null,null,null,null,null,null,null,null,null,null,null,null,null,null,null,null,null,null,null,null,null,null,null,null,null,null,null,null,null,null,null,null,null,null,null,"DE LOCALES",null,null,null,null,null,null,null,null,null,null,null,null,null,null,null,null,null,null,null,null,null,null,null,null,null,null,null,null,null,null,null,null,null,null,null,null,null,null,null,null,null,null,null,null,null,null,null,null,null,null,null,{"$f":"Formulario!H52","v":" "},null,null,null,null,{"$f":"Formulario!I52","v":" "},null,null,null,null,{"$f":"Formulario!J52","v":" "},null,null,null,null,{"$f":"Formulario!K52","v":" "}]
["I. DESTINACIÓN ECONÓMICA"]
[{"$f":"Formulario!I24","v":0},null,null,null,null,null,null,null,null,null,null,null,null,null,null,null,null,null,null,null,null,null,null,null,null,null,null,null,null,null,null,null,null,null,null,null,null,null,null,null,null,null,null,null,null,null,null,null,null,null,null,null,null,null,null,null,null,null,null,null,null,null,null,null,null,null,null,null,null,null,null,null,null,null,null,null,null,null,null,null,null,null,null,null,null,null,null,null,null,null,null,null,null,null,null,null,null,null,null,null,null,null,null,null,"-",null,null,null,{"$f":"Formulario!O24","v":""}]
["J. CONTROL DE VISITA"]
["NOMBRE Y APELLIDO FUNCIONARIO RESPONSABLE VISITA: ",null,null,null,null,null,null,null,null,null,null,null,null,null,null,null,null,null,null,null,null,null,null,null,null,null,null,null,null,null,null,null,null,null,null,null,null,null,null,null,null,null,null,null,null,null,null,null,null,null,null,null,null,null,null,null,null,null,null,null,null,null,null,null,null,null,null,null,null,null,null,null,null,null,null,null,null,null,null,null,null,null,null,null,null,null,null,{"$f":"Formulario!C50","v":" "}]
["FIRMA FUNCIONARIO RESPONSABLE VISITA: "]
["NOMBRE Y APELLIDO  FUNCIONARIO QUE APRUEBA: ",null,null,null,null,null,null,null,null,null,null,null,null,null,null,null,null,null,null,null,null,null,null,null,null,null,null,null,null,null,null,null,null,null,null,null,null,null,null,null,null,null,null,null,null,null,null,null,null,null,null,null,null,null,null,null,null,null,null,null,null,null,null,null,null,null,null,null,null,null,null,null,null,null,null,null,null,null,null,null,null,null,null,null,null,null,null,null,null,null,null,{"$f":"Formulario!C51","v":" "}]
["FIRMA FUNCIONARIO QUE APRUEBA: "]
["FECHA APROBACIÓN: ",null,null,null,null,null,null,null,null,null,null,null,null,null,null,null,null,null,null,null,null,null,null,null,null,null,null,null,{"$f":"Formulario!C52","v":" "}]
["OBSERVACIONES"]
[{"$f":"Formulario!C53","v":" "}]
["FECHA DE ENTREGA:"]
[]
["La versión vigente y controlada de este documento, solo podrá ser consultada a través de Intranet en el\nlink Sistema de Gestión de Calidad. La copia o impresión diferente a la publicada, será considerada como\ndocumento no controlado"]

{"sheet":"Formulario","index":1,"n_rows":191,"n_cols":102,"rows_kept":191,"cut":false,"hidden":false,"merged":[[56,76,61,76],[62,76,67,76],[68,76,72,76],[95,76,100,76],[101,76,106,76],[107,76,113,76],[114,76,118,76],[119,75,143,75],[119,76,124,76],[125,76,130,76],[131,76,138,76],[139,76,143,76],[156,75,161,75],[156,76,160,76],[73,75,94,75],[73,76,77,76],[78,76,83,76],[84,76,89,76],[90,76,94,76],[95,75,118,75],[96,74,162,74],[144,75,149,75],[144,76,149,76],[150,75,155,75],[150,76,155,76],[32,83,32,84],[27,76,32,76],[33,76,38,76],[39,83,39,84],[41,2,41,6],[42,2,42,6],[34,3,34,4],[35,2,35,6],[36,2,36,6],[37,2,37,6],[38,2,38,6],[39,2,39,6],[40,2,40,6],[3,74,95,74],[3,75,26,75],[3,76,8,76],[9,76,14,76],[15,76,21,76],[22,76,26,76],[27,75,50,75],[39,76,46,76],[47,76,50,76],[51,75,72,75],[51,76,55,76],[19,18,20,18],[16,1,16,3],[18,1,18,3],[19,1,19,3],[20,1,20,3],[20,36,20,38],[22,8,22,16],[31,1,31,3],[32,1,32,3],[15,1,15,3],[15,7,18,7],[1,1,1,3],[1,7,1,16],[1,18,1,27],[2,1,2,3],[3,1,3,3],[3,7,6,7],[3,18,6,18],[6,1,6,3],[11,18,14,18],[15,18,18,18],[4,1,4,3],[5,1,5,3],[7,1,7,3],[7,7,10,7],[7,18,10,18],[8,1,8,3],[9,1,9,3],[10,1,10,3],[11,1,11,3],[11,7,14,7],[12,1,12,3],[14,1,14,3],[59,2,59,4],[60,2,60,4],[32,8,33,16],[33,1,33,3],[49,2,49,4],[50,2,50,4],[51,2,51,4],[52,7,52,10],[53,7,53,10],[27,1,27,3],[28,1,28,3],[28,8,28,10],[28,13,28,14],[29,8,29,10],[29,13,29,14],[31,8,31,16],[52,2,52,4],[54,1,57,4],[25,12,25,16],[26,12,26,16],[22,1,22,3],[23,1,23,3],[23,8,23,12],[23,14,23,16],[24,1,24,3],[25,8,25,10],[26,1,26,3]]}
[null,null,null,null,null,null,null,null,null,null,null,null,null,null,null,null,null,null,null,null,null,null,null,null,null,null,null,null,null,null,null,null,null,null,{"$f":"+YEAR(AJ1)","v":2022},{"$f":"+TODAY()","v":"2022-02-01"},null,null,null,null,{"$f":"+TODAY()","v":"2022-02-01"},{"$f":"+YEAR(AO1)","v":2022}]
[null,"Fecha de la visita",null,null,null,null,null,"RESIDENCIAL",null,null,null,null,null,null,null,null,null,null,"COMERCIAL",null,null,null,null,null,null,null,null,null,null,null,null,null,null,null,null,{"$f":"+IF(E2=\"\",\"\",E2)","v":""},null,null,null,null,{"$f":"+LEN(DAY(E2))","v":1},{"$f":"+LEN(MONTH(E2))","v":1},null,{"$f":"+IF(E2=\"\",\"\",IF(AO2=1,\"\"&DAY(E2),DAY(E2)))","v":""},{"$f":"+IF(E2=\"\",\"\",IF(AP2=1,\"0\"&MONTH(E2),MONTH(E2)))","v":""},{"$f":"+IF(E2=\"\",\"\",YEAR(E2))","v":""},null,null,null,null,null,null,null,null,null,null,null,null,null,null,null,null,null,null,null,null,null,null,null,null,null,null,null,null,null,null,null,null,null,null,null,null,null,null,"URBANO",null,null,null,null,null,null,null,null,null,null,null,null,null,"A",null,"DESTINACIÓN ECONÓMICA"]
[null,"Grupo",null,null,null,null,{"$f":"+IF(E3=\"\",\"\",MATCH(E3,CO5:CR5,0))","v":""},null,null,{"$f":"+\"R\"&K3","v":"RA"},"A",{"$f":"+\"R\"&M3","v":"RB"},"B",{"$f":"+\"R\"&O3","v":"RC"},"C",{"$f":"+\"R\"&Q3","v":"RD"},"D",null,null,null,{"$f":"+\"C\"&V3","v":"CA"},"A",{"$f":"+\"C\"&X3","v":"CB"},"B",{"$f":"+\"C\"&Z3","v":"CC"},"C",{"$f":"+\"C\"&AB3","v":"CD"},"D",null,null,null,null,null,null,null,"",null,null,null,null,null,null,null,null,null,null,null,null,null,null,null,null,null,null,null,null,null,null,null,null,null,null,null,null,null,null,null,null,null,null,null,null,null,null,null,null,null,null,null,null,"01","(Residencial) Vivienda hasta 3 pisos","Es una casa de tres niveles cuya función arquitectónica y ambiental principal, es dar albergue en forma adecuada a una familia."," ","RURAL",null,null,null,null,null,null,null,null,null,null,null,null,null,"B",null,"HABITACIONAL","A"]
[null,"Trámite",null,null,null,null,null,"ESTRUCTURA","ARMAZÓN",null,{"$f":"IF(J4=\"\",\"\",VLOOKUP(J4,BZ4:CA8,2,0))","v":""},null,{"$f":"IF(L4=\"\",\"\",VLOOKUP(L4,$BZ$4:$CA$8,2,0))","v":""},null,{"$f":"IF(N4=\"\",\"\",VLOOKUP(N4,$BZ$4:$CA$8,2,0))","v":""},null,{"$f":"IF(P4=\"\",\"\",VLOOKUP(P4,$BZ$4:$CA$8,2,0))","v":""},null,"ESTRUCTURA","ARMAZÓN",null,{"$f":"+IF(U4=\"\",\"\",VLOOKUP(U4,$BZ$96:$CA$100,2,0))","v":""},null,{"$f":"+IF(W4=\"\",\"\",VLOOKUP(W4,$BZ$96:$CA$100,2,0))","v":""},null,{"$f":"+IF(Y4=\"\",\"\",VLOOKUP(Y4,$BZ$96:$CA$100,2,0))","v":""},null,{"$f":"+IF(AA4=\"\",\"\",VLOOKUP(AA4,$BZ$96:$CA$100,2,0))","v":""},null,null,null,null,null,null,null,"",null,null,null,null,"largo",null,null,null,null,null,null,null,null,null,null,null,null,null,null,null,null,null,null,null,null,null,null,null,null,null,null,null,null,null,null,null,null,null,"RESIDENCIAL","ESTRUCTURA","Armazón",0,"MADERA",null,"02","(Anexo) Ramadas - Cobertizos - Caneyes","Consiste en un sitio cubierto elaborado con el fin de resguardar de la intemperie; el nombre de enramadas, cobertizos o caney se utiliza según la forma de la cubierta y la región donde se ubique."," ",null,null,"TRÁMITES",null,null,null,null,null,null,null,null,null,null,null,"C",null,"INDUSTRIAL","B"]
[null,"Radicación 1",null,null," ",{"$f":"+IF(#REF!>0,1,0)","v":{"$error":"#REF!"}},null,null,"MUROS",null,{"$f":"IF(J5=\"\",\"\",VLOOKUP(J5,$BZ$10:$CA$14,2,0))","v":""},null,{"$f":"IF(L5=\"\",\"\",VLOOKUP(L5,$BZ$10:$CA$14,2,0))","v":""},null,{"$f":"IF(N5=\"\",\"\",VLOOKUP(N5,$BZ$10:$CA$14,2,0))","v":""},null,{"$f":"IF(P5=\"\",\"\",VLOOKUP(P5,$BZ$10:$CA$14,2,0))","v":""},null,null,"MUROS",null,{"$f":"+IF(U5=\"\",\"\",VLOOKUP(U5,$BZ$102:$CA$106,2,0))","v":""},null,{"$f":"+IF(W5=\"\",\"\",VLOOKUP(W5,$BZ$102:$CA$106,2,0))","v":""},null,{"$f":"+IF(Y5=\"\",\"\",VLOOKUP(Y5,$BZ$102:$CA$106,2,0))","v":""},null,{"$f":"+IF(AA5=\"\",\"\",VLOOKUP(AA5,$BZ$102:$CA$106,2,0))","v":""},null,null,null,null,null,null,null," ",null,null,null,{"$f":"+MID(E5,6,7)","v":""},{"$f":"+LEN(AN5)","v":0},{"$f":"+IF(AO5=1,\"000000\"&AN5,IF(AO5=2,\"00000\"&AN5,IF(AO5=3,\"0000\"&AN5,IF(AO5=4,\"000\"&AN5,IF(AO5=5,\"00\"&AN5,IF(AO5=6,\"0\"&AN5,AN5))))))","v":""},null,{"$f":"+MID($E5,1,1)","v":" "},{"$f":"+MID($E5,2,1)","v":""},{"$f":"+MID($E5,3,1)","v":""},{"$f":"+MID($E5,4,1)","v":""},{"$f":"+MID($E5,5,1)","v":""},{"$f":"+MID($E5,6,1)","v":""},{"$f":"+MID($E5,7,1)","v":""},{"$f":"+MID($E5,8,1)","v":""},{"$f":"+MID($E5,9,1)","v":""},{"$f":"+MID($E5,10,1)","v":""},{"$f":"+MID($E5,11,1)","v":""},{"$f":"+MID($E5,12,1)","v":""},{"$f":"+MID($E5,13,1)","v":""},{"$f":"+MID($E5,14,1)","v":""},{"$f":"+MID($E5,15,1)","v":""},{"$f":"+MID($E5,16,1)","v":""},{"$f":"+MID($E5,17,1)","v":""},{"$f":"+MID($E5,18,1)","v":""},{"$f":"+MID($E5,19,1)","v":""},null,null,null,null,null,null,null,null,null,null,null,null,null,null,null,1,"PREFABRICADO",null,"03","(Anexo) Galpones - Gallineros","Unidad construida con destino a la cría y/o protección de aves principalmente para explotación avícola.  Conformada por estructura cubierta pisos y muros que son parcialmente elaborados en ladrillo y el resto descubierto o con algún material provisional (plásticos, alambres, etc.).","01","Residencial (Vivienda)",null,null,null,null,null,null,"GRUPOS","DIAMICA","CABIDAS_LINDEROS","PH","ENGLOBE_DESENGLOBES","AVALUOS",null,"D",null,"COMERCIAL","C"]
[null,"NPN Anterior",null,null," ",null,null,null,"CUBIERTA",null,{"$f":"IF(J6=\"\",\"\",VLOOKUP(J6,$BZ$16:$CA$21,2,0))","v":""},null,{"$f":"IF(L6=\"\",\"\",VLOOKUP(L6,$BZ$16:$CA$21,2,0))","v":""},null,{"$f":"IF(N6=\"\",\"\",VLOOKUP(N6,$BZ$16:$CA$21,2,0))","v":""},null,{"$f":"IF(P6=\"\",\"\",VLOOKUP(P6,$BZ$16:$CA$21,2,0))","v":""},null,null,"CUBIERTA",null,{"$f":"+IF(U6=\"\",\"\",VLOOKUP(U6,$BZ$108:$CA$113,2,0))","v":""},null,{"$f":"+IF(W6=\"\",\"\",VLOOKUP(W6,$BZ$108:$CA$113,2,0))","v":""},null,{"$f":"+IF(Y6=\"\",\"\",VLOOKUP(Y6,$BZ$108:$CA$113,2,0))","v":""},null,{"$f":"+IF(AA6=\"\",\"\",VLOOKUP(AA6,$BZ$108:$CA$113,2,0))","v":""},null,null,null,null,null,null,null," ",null,null,null,null,null,null,null," ","","","","","","","","","","","","","","","","","",null,null,{"$f":"+MID($E7,21,1)","v":""},null,null,null,null,{"$f":"+MID($E7,26,1)","v":""},null,null,null,null,null,null,null,null,2,"LADRILLO, BLOQUE",null,"04","(Anexo) Establos - Pesebreras - Caballerizas","Lugar cubierto donde se encierra ganado o caballos y/o se realizan actividades propias de su explotación, constituidos por estructura, cubierta, muros y pisos.","03","Industrial",null,"CODIGO_TRAMITE","DESCRIPCION_TRAMITE",null,null,null,"DINAMICA","CAMBIO DE PROPIETARIO","RECTIFICACIÓN DE ÁREAS Y LINDEROS ","MODIFICACIÓN RÉGIMEN DE PROPIEDAD HORIZONTAL","SEGREGACIÓN O RELOTEO (DESENGLOBE)","AUTOESTIMACIÓN DEL AVALÚO",null,"E",null,"AGROPECUARIO","D"]
[null,"NPN Nuevo",null,null," ",null,null,null,"CONSERVACIÓN",null,{"$f":"IF(J7=\"\",\"\",VLOOKUP(J7,$BZ$23:$CA$26,2,0))","v":""},null,{"$f":"IF(L7=\"\",\"\",VLOOKUP(L7,$BZ$23:$CA$26,2,0))","v":""},null,{"$f":"IF(N7=\"\",\"\",VLOOKUP(N7,$BZ$23:$CA$26,2,0))","v":""},null,{"$f":"IF(P7=\"\",\"\",VLOOKUP(P7,$BZ$23:$CA$26,2,0))","v":""},null,null,"CONSERVACIÓN",null,{"$f":"+IF(U7=\"\",\"\",VLOOKUP(U7,$BZ$115:$CA$118,2,0))","v":""},null,{"$f":"+IF(W7=\"\",\"\",VLOOKUP(W7,$BZ$115:$CA$118,2,0))","v":""},null,{"$f":"+IF(Y7=\"\",\"\",VLOOKUP(Y7,$BZ$115:$CA$118,2,0))","v":""},null,{"$f":"+IF(AA7=\"\",\"\",VLOOKUP(AA7,$BZ$115:$CA$118,2,0))","v":""},null,null,null,null,null,null,null," ",null,null,null,null,null,null,null," ","","","","","","","","","","","","","","","","","",{"$f":"+MID($E7,19,1)","v":""},{"$f":"+MID($E7,20,1)","v":""},null,{"$f":"+MID($E7,22,1)","v":""},{"$f":"+MID($E7,23,1)","v":""},{"$f":"+MID($E7,24,1)","v":""},{"$f":"+MID($E7,25,1)","v":""},null,null,null,null,null,null,null,null,null,4,"CONCRETO HASTA TRES PISOS",null,"05","(Anexo) Cocheras - Marraneras - Porquerizas","Construcciòn destinada a la cría y albergue de cerdos. Se utiliza cualesquiera de los tres nombres enunciados según la región donde se ubique; los elementos que la conforman son: estructura, muros y pisos.","04","Dotacional público (antes institucional)",null,1,"CAMBIO DE PROPIETARIO",null,null,null,"CABIDAS_LINDEROS","ELIMINACIÓN DE PREDIO",null,"ELIMINACIÓN RÉGIMEN DE PROPIEDAD HORIZONTAL","ENGLOBE","REVISIÓN DE AVALÚOS",null,"F",null,"MINERO","E"]
[null,"MATRÍCULA INMOBILIARIA",null,null," ",null,null,"ACABADOS","FACHADA",null,{"$f":"IF(J8=\"\",\"\",VLOOKUP(J8,$BZ$28:$CA$32,2,0))","v":""},null,{"$f":"IF(L8=\"\",\"\",VLOOKUP(L8,$BZ$28:$CA$32,2,0))","v":""},null,{"$f":"IF(N8=\"\",\"\",VLOOKUP(N8,$BZ$28:$CA$32,2,0))","v":""},null,{"$f":"IF(P8=\"\",\"\",VLOOKUP(P8,$BZ$28:$CA$32,2,0))","v":""},null,"ACABADOS","FACHADA",null,{"$f":"+IF(U8=\"\",\"\",VLOOKUP(U8,$BZ$120:$CA$124,2,0))","v":""},null,{"$f":"+IF(W8=\"\",\"\",VLOOKUP(W8,$BZ$120:$CA$124,2,0))","v":""},null,{"$f":"+IF(Y8=\"\",\"\",VLOOKUP(Y8,$BZ$120:$CA$124,2,0))","v":""},null,{"$f":"+IF(AA8=\"\",\"\",VLOOKUP(AA8,$BZ$120:$CA$124,2,0))","v":""},null,null,null,null,null,null,null," ",null,null,null,null,null,null,{"$f":"SUM(AR8:BQ8)","v":0}," ","","","","","","","","","","","","","","","","","",null,null,{"$f":"+MID($E9,21,1)","v":""},null,null,null,null,{"$f":"+MID($E9,26,1)","v":""},null,null,null,null,null,null,null,null,6,"CONCRETO CUATRO O MÁS PISOS",null,"06","(Industrial) Bodega Casa Bomba","Infraestructura de bombeo.","06","Dotacional privado",null,23,"ELIMINACIÓN DE PREDIO",null,null,null,"PH","COMPLEMENTACIÓN",null,"INSCRIPCIÓN RÉGIMEN DE PROPIEDAD HORIZONTAL","INSCRIPCIÓN DE NUEVO PREDIO",null,null,"G",null,"CULTURAL","F"]
[null,"DIRECCIÓN",null,null," ",null,{"$f":"+IF(E11=G11,\"OK\",\"VERIFICAR AREA CONST\")","v":"OK"},null,"C/ MUROS",null,{"$f":"IF(J9=\"\",\"\",VLOOKUP(J9,$BZ$34:$CA$38,2,0))","v":""},null,{"$f":"IF(L9=\"\",\"\",VLOOKUP(L9,$BZ$34:$CA$38,2,0))","v":""},null,{"$f":"IF(N9=\"\",\"\",VLOOKUP(N9,$BZ$34:$CA$38,2,0))","v":""},null,{"$f":"IF(P9=\"\",\"\",VLOOKUP(P9,$BZ$34:$CA$38,2,0))","v":""},null,null,"C/ MUROS",null,{"$f":"+IF(U9=\"\",\"\",VLOOKUP(U9,$BZ$126:$CA$130,2,0))","v":""},null,{"$f":"+IF(W9=\"\",\"\",VLOOKUP(W9,$BZ$126:$CA$130,2,0))","v":""},null,{"$f":"+IF(Y9=\"\",\"\",VLOOKUP(Y9,$BZ$126:$CA$130,2,0))","v":""},null,{"$f":"+IF(AA9=\"\",\"\",VLOOKUP(AA9,$BZ$126:$CA$130,2,0))","v":""},null,null,null,null,null,null,null," ",null,"ENTERO","DECIMAL",null,"LARGO DECIMAL",null,null," ","","","","","","","","","","","","","","","","","",{"$f":"+MID($E9,19,1)","v":""},{"$f":"+MID($E9,20,1)","v":""},null,{"$f":"+MID($E9,22,1)","v":""},{"$f":"+MID($E9,23,1)","v":""},{"$f":"+MID($E9,24,1)","v":""},{"$f":"+MID($E9,25,1)","v":""},null,null,null,null,null,null,null,null,null,null,null,null,"07","(Industrial) Industrias","Conjunto de instalaciones dedicadas a esta actividad de transformar las materias primas en productos elaborados","05","Recreacional público (antes parques mayor Ext, club)",null,24,"COMPLEMENTACIÓN",null,null,null,"ENGLOBE_DESENGLOBES","ASIGNACIÓN ESTRATIFICACIÓN",null,null,"MUTACIÓN DE QUINTA",null,null,"H",null,"RECREACIONAL","G"]
[null,"Área total de terreno",null,null,null,null,null,null,"PISOS",null,{"$f":"IF(J10=\"\",\"\",VLOOKUP(J10,$BZ$40:$CA$46,2,0))","v":""},null,{"$f":"IF(L10=\"\",\"\",VLOOKUP(L10,$BZ$40:$CA$46,2,0))","v":""},null,{"$f":"IF(N10=\"\",\"\",VLOOKUP(N10,$BZ$40:$CA$46,2,0))","v":""},null,{"$f":"IF(P10=\"\",\"\",VLOOKUP(P10,$BZ$40:$CA$46,2,0))","v":""},null,null,"PISOS",null,{"$f":"+IF(U10=\"\",\"\",VLOOKUP(U10,$BZ$132:$CA$138,2,0))","v":""},null,{"$f":"+IF(W10=\"\",\"\",VLOOKUP(W10,$BZ$132:$CA$138,2,0))","v":""},null,{"$f":"+IF(Y10=\"\",\"\",VLOOKUP(Y10,$BZ$132:$CA$138,2,0))","v":""},null,{"$f":"+IF(AA10=\"\",\"\",VLOOKUP(AA10,$BZ$132:$CA$138,2,0))","v":""},null,null,null,null,null,null,null,"","Area terreno",{"$f":"+IF(E10=\"\",\"\",INT(E10))","v":""},{"$f":"+IF(E10=\"\",\"\",INT(AN10*100))","v":""},{"$f":"+IF(E10=\"\",\"\",ROUND(E10-AL10,2))","v":""},{"$f":"LEN(AM10)","v":0},{"$f":"LEN(AL10)","v":0},{"$f":"IF(E10=\"\",\"\",IF(AL10=\"\",\"\",IF(AP10=6,\" \"&AL10,IF(AP10=5,\"  \"&AL10,IF(AP10=4,\"   \"&AL10,IF(AP10=3,\"    \"&AL10,IF(AP10=2,\"     \"&AL10,\"      \"&AL10)))))))","v":""},{"$f":"+MID($AQ10,2,1)","v":""},{"$f":"+MID($AQ10,3,1)","v":""},{"$f":"+MID($AQ10,4,1)","v":""},{"$f":"+MID($AQ10,5,1)","v":""},{"$f":"+MID($AQ10,6,1)","v":""},{"$f":"+MID($AQ10,7,1)","v":""},",",{"$f":"IF(E10=\"\",\"\",IF(AO10=2,MID(AM10,1,1),0))","v":""},{"$f":"IF(AO10=1,MID(AM10,1,1),MID(AM10,2,1))","v":""},"","","","","","","","","",null,null,null,null,null,null,null,null,null,null,null,null,null,null,null,"MUROS",0,"MATERIALES DE DESHECHO, ESTERILLA",null,"08","(Anexo) Silos","Construcción de grandes dimensiones que sirve para almacén o depósito, se exceptúan los silos cafeteros","08","Recreacional privado",null,19,"ASIGNACIÓN ESTRATIFICACIÓN",null,null,null,"AVALUOS","REVISIÓN DE ESTRATIFICACIÓN",null,null,null,null,null,"I",null,"SALUBRIDAD","H"]
[null,"Área total construida ",null,null,null,null,{"$f":"+E15+E19+E23+E27","v":0},null,"CONSERVACIÓN",null,{"$f":"IF(J11=\"\",\"\",VLOOKUP(J11,BZ48:CA51,2,0))","v":""},null,{"$f":"IF(L11=\"\",\"\",VLOOKUP(L11,BZ48:CA51,2,0))","v":""},null,{"$f":"IF(N11=\"\",\"\",VLOOKUP(N11,$BZ$48:$CA$51,2,0))","v":""},null,{"$f":"IF(P11=\"\",\"\",VLOOKUP(P11,BZ48:CA51,2,0))","v":""},null,null,"CONSERVACIÓN",null,{"$f":"+IF(U11=\"\",\"\",VLOOKUP(U11,$BZ$140:$CA$143,2,0))","v":""},null,{"$f":"+IF(W11=\"\",\"\",VLOOKUP(W11,$BZ$140:$CA$143,2,0))","v":""},null,{"$f":"+IF(Y11=\"\",\"\",VLOOKUP(Y11,$BZ$140:$CA$143,2,0))","v":""},null,{"$f":"+IF(AA11=\"\",\"\",VLOOKUP(AA11,$BZ$140:$CA$143,2,0))","v":""},null,null,null,null,null,null,null,"","área const","","","",0,0,"","","","","","","",",","","","","","","","","","","","",null,null,null,null,null,null,null,null,null,null,null,null,null,null,null,null,1,"BAHAREQUE ADOBE, TAPIA",null,"09","(Anexo) Piscinas","Estanque artificial con destino al deporte o a la recreación.  Se diferencia por sus acabados y especificaciones técnicas para su mantenimiento y operación; sus dimensiones deben darse en unidades de área (m2).","07","Mineros (Canteras)",null,20,"REVISIÓN DE ESTRATIFICACIÓN",null,null,null,null,"CAMBIO DE CONSTRUCCIÓN A MEJORA",null,null,null,null,null,"J",null,"INSTITUCIONAL","I"]
[null,"Tipo predio",null,null,null,null,null,"BAÑO","TAMAÑO",null,{"$f":"IF(J12=\"\",\"\",VLOOKUP(J12,$BZ$52:$CA$55,2,0))","v":""},null,{"$f":"IF(L12=\"\",\"\",VLOOKUP(L12,$BZ$52:$CA$55,2,0))","v":""},null,{"$f":"IF(N12=\"\",\"\",VLOOKUP(N12,$BZ$52:$CA$55,2,0))","v":""},null,{"$f":"IF(P12=\"\",\"\",VLOOKUP(P12,$BZ$52:$CA$55,2,0))","v":""},null,"BAÑO","TAMAÑO",null,null,null,null,null,null,null,null,null,null,null,null,null,null,null,"",null,null,null,null,null,null,null,{"$f":"+MID(E$12,1,1)","v":""},{"$f":"+MID(E$12,2,1)","v":""},null,{"$f":"+MID(J$10,1,1)","v":""},null,null,null,null,null,null,null,null,null,null,null,null,null,null,null,null,null,null,null,null,null,null,null,null,null,null,null,null,null,null,2,"MADERA",null,10,"(Anexo) Tanques","Depósitos subterráneos o de altura, construidos en zonas con deficiencias en abastecimiento para el consumo de los habitantes o para el uso agrícola.  El elemento a calificar es la estructura relacionada con la capacidad de almacenamiento medida en metros cúbicos.\n\nSe excluyen de este tipo de construcción los tanques de almacenamiento domiciliario","21","Comercio en Corredor Comercial",null,21,"CAMBIO DE CONSTRUCCIÓN A MEJORA",null,null,null,null,"CAMBIO DE MEJORA A CONSTRUCCIÓN",null,null,null,null,null,"K",null,"EDUCATIVO","J"]
[null,"Zona homogenea",null,null,null,null,{"$f":"+IF(E13=\"\",\"\",VLOOKUP(LEFT(E13,1),CF41:CG46,2)&\"/\"&VLOOKUP(RIGHT(E13,2),CF51:CG86,2))","v":""},null,"ENCHAPES",null,{"$f":"IF(J13=\"\",\"\",VLOOKUP(J13,$BZ$57:$CA$62,2,0))","v":""},null,{"$f":"IF(L13=\"\",\"\",VLOOKUP(L13,$BZ$57:$CA$62,2,0))","v":""},null,{"$f":"IF(N13=\"\",\"\",VLOOKUP(N13,$BZ$57:$CA$62,2,0))","v":""},null,{"$f":"IF(P13=\"\",\"\",VLOOKUP(P13,$BZ$57:$CA$62,2,0))","v":""},null,null,"ENCHAPES",null,null,null,null,null,null,null,null,null,null,null,null,null,null,null,"",null,null,0,null,null,null,null,{"$f":"+MID($E13,1,1)","v":""},{"$f":"+MID($E13,2,1)","v":""},{"$f":"+MID($E13,3,1)","v":""},null,null,null,null,null,null,null,null,null,null,null,null,null,null,null,null,null,null,null,null,null,null,null,null,null,null,null,null,null,null,null,3,"CONCRETO PREFABRICADO",null,11,"(Anexo) Beneficiaderos","Nombre dado en zonas cafeteras a aquellas construcciones donde realizan el beneficio del café. Consiste en áreas cubiertas dentro de las cuales se encuentran los elementos destinados a la labor de seleccionar, lavar y despulpar el grano y su posterior empaque","22","Comercio en Centros Comerciales",null,22,"CAMBIO DE MEJORA A CONSTRUCCIÓN",null,null,null,null,"INSCRIPCIÓN DE MEJORA",null,null,null,null,null,"L",null,"RELIGIOSO","K"]
[null,"Uso 1",null,null,null,{"$f":"+C14&D14","v":""},{"$f":"IF(E14<>\"\",VLOOKUP(E14,$CC$3:$CD$86,2,0),\"\")","v":""},null,"MOBILIARIO",null,{"$f":"IF(J14=\"\",\"\",VLOOKUP(J14,BZ63:CA67,2,0))","v":""},null,{"$f":"IF(L14=\"\",\"\",VLOOKUP(L14,$BZ$63:$CA$67,2,0))","v":""},null,{"$f":"IF(N14=\"\",\"\",VLOOKUP(N14,$BZ$63:$CA$67,2,0))","v":""},null,{"$f":"IF(P14=\"\",\"\",VLOOKUP(P14,$BZ$63:$CA$67,2,0))","v":""},null,null,"MOBILIARIO",null,{"$f":"+IF(U14=\"\",\"\",VLOOKUP(U14,$BZ$145:$CA$149,2,0))","v":""},null,{"$f":"+IF(W14=\"\",\"\",VLOOKUP(W14,$BZ$145:$CA$149,2,0))","v":""},null,{"$f":"+IF(Y14=\"\",\"\",VLOOKUP(Y14,$BZ$145:$CA$149,2,0))","v":""},null,{"$f":"+IF(AA14=\"\",\"\",VLOOKUP(AA14,$BZ$145:$CA$149,2,0))","v":""},null,null,null,null,null,null,null,"",null,null,null,null,null,null,null,{"$f":"+IF(C14<>\"\",C14,\"\")","v":""},"",{"$f":"+MID(E14,1,1)","v":""},{"$f":"+MID(E14,2,1)","v":""},null,null,null,null,null,null,null,null,null,null,null,null,null,null,null,null,null,null,null,null,null,null,null,null,null,null,null,null,null,null,4,"BLOQUE LADRILLO",null,12,"(Institucional) Colegios y universidades","Institución edificada destinada a la enseñanza primaria, secundaria y universitaria","23","Comercio puntual (comercio en zonas residenciales)",null,16,"INSCRIPCIÓN DE MEJORA",null,null,null,null,"ELIMINACIÓN DE MEJORA",null,null,null,null,null,"M",null,"AGRÍCOLA","L"]
[null,"Área 1",null,null,null,null,{"$f":"+IF(C14=\"\",\"\",IF(C14&D14=J3,BT48,IF(C14&D14=L3,$BT$49,IF(C14&D14=N3,$BT$50,IF(C14&D14=P3,$BT$51,IF(C14&D14=U3,$BT$52,IF(C14&D14=W3,$BT$53,IF(C14&D14=Y3,$BT$54,IF(C14&D14=AA3,$BT$55,\"\"))))))))&\" PUNTOS\")","v":""},null,"CONSERVACIÓN",null,{"$f":"IF(J15=\"\",\"\",VLOOKUP(J15,$BZ$69:$CA$72,2,0))","v":""},null,{"$f":"IF(L15=\"\",\"\",VLOOKUP(L15,$BZ$69:$CA$72,2,0))","v":""},null,{"$f":"IF(N15=\"\",\"\",VLOOKUP(N15,$BZ$69:$CA$72,2,0))","v":""},null,{"$f":"IF(P15=\"\",\"\",VLOOKUP(P15,$BZ$69:$CA$72,2,0))","v":""},null,null,"CONSERVACIÓN",null,null,null,null,null,null,null,null,null,null,null,null,null,null,null,"",null,{"$f":"+IF(E15=\"\",\"\",INT(E15))","v":""},{"$f":"+IF(E15=\"\",\"\",INT(AN15*100))","v":""},{"$f":"+IF(E15=\"\",\"\",ROUND(E15-AL15,2))","v":""},{"$f":"LEN(AM15)","v":0},{"$f":"LEN(AL15)","v":0},{"$f":"IF(E15=\"\",\"\",IF(AL15=\"\",\"\",IF(AP15=5,\" \"&AL15,IF(AP15=4,\"  \"&AL15,IF(AP15=3,\"   \"&AL15,IF(AP15=2,\"    \"&AL15,\"     \"&AL15))))))","v":""},{"$f":"+MID($AQ15,2,1)","v":""},{"$f":"+MID($AQ15,3,1)","v":""},{"$f":"+MID($AQ15,4,1)","v":""},{"$f":"+MID($AQ15,5,1)","v":""},{"$f":"+MID($AQ15,6,1)","v":""},",",{"$f":"IF(E15>0,IF(AO15=2,MID(AM15,1,1),0),\"\")","v":""},{"$f":"IF(AO15=1,MID(AM15,1,1),MID(AM15,2,1))","v":""},null,null,null,null,null,null,null,null,null,null,null,null,null,null,null,null,null,null,null,null,null,null,null,null,null,null,null,null,null,13,"(Institucional) Biblioteca","Edificación donde podemos encontrar libros o cualquier otro soporte de un texto, como publicaciones, revistas, documentos, catálogo entre otros.","24","Parqueadero (Hay cobro de tarifa x hora)",null,17,"ELIMINACIÓN DE MEJORA",null,null,null,null,"ADICIÓN DE CONSTRUCCIÓN",null,null,null,null,null,"N",null,"PECUARIO","M"]
[null,"Vetustez 1",null,null,null,null,null,"COCINA","TAMAÑO",null,{"$f":"IF(J16=\"\",\"\",VLOOKUP(J16,$BZ$74:$CA$77,2,0))","v":""},null,{"$f":"IF(L16=\"\",\"\",VLOOKUP(L16,$BZ$74:$CA$77,2,0))","v":""},null,{"$f":"IF(N16=\"\",\"\",VLOOKUP(N16,$BZ$74:$CA$77,2,0))","v":""},null,{"$f":"IF(P16=\"\",\"\",VLOOKUP(P16,$BZ$74:$CA$77,2,0))","v":""},null,"COCINA","TAMAÑO",null,null,null,null,null,null,null,null,null,null,null,null,null,null,null,"",null,null,null,null,null,null,null,{"$f":"+IF(G15=\"0 PUNTOS\",0,MID(G15,1,1))","v":""},{"$f":"+IF(G15=\"0 PUNTOS\",0,MID(G15,2,1))","v":""},null,null,null,null,null,null,null,null,null,null,null,null,null,null,null,null,null,null,null,null,null,null,null,null,null,null,null,null,null,null,null,"CUBIERTA",1,"MATERIALES DE DESHECHO TELAS ASFÁLTICAS",null,14,"(Residencial) Garajes Cubiertos","Es el lugar cubierto, destinado al estacionamiento privado de vehículos.","61","Urbanizado no Edificado (con Servicios)",null,10,"ADICIÓN DE CONSTRUCCIÓN",null,null,null,null,"ELIMINACIÓN DE CONSTRUCCIÓN",null,null,null,null,null,"O",null,"AGROINDUSTRIAL","N"]
[null,"Avance 1",null,null,null,null,null,null,"ENCHAPES",null,{"$f":"IF(J17=\"\",\"\",VLOOKUP(J17,$BZ$79:$CA$83,2,0))","v":""},null,{"$f":"IF(L14=\"\",\"\",VLOOKUP(L17,$BZ$79:$CA$83,2,0))","v":""},null,{"$f":"IF(N17=\"\",\"\",VLOOKUP(N17,$BZ$79:$CA$83,2,0))","v":""},null,{"$f":"IF(P14=\"\",\"\",VLOOKUP(P17,$BZ$79:$CA$83,2,0))","v":""},null,null,"ENCHAPES",null,null,null,null,null,null,null,null,null,null,null,null,null,null,null,"",null,null,null,null,null,null,null,{"$f":"+MID($E16,1,1)","v":""},{"$f":"+MID($E16,2,1)","v":""},{"$f":"+MID($E16,3,1)","v":""},{"$f":"+MID($E16,4,1)","v":""},null,null,null,null,null,null,null,null,null,null,null,null,null,null,null,null,null,null,null,null,null,null,null,null,null,null,null,null,null,null,3,"ZINC TEJA DE BARRO ETERNIT RÚSTICO",null,16,"(Comercial) Bodegas Comerciales - Grandes Almacenes","Es el espacio construido para la ejecución la recepción, almacenamiento y movimientos de materiales, materias primas y productos semielaborados, hasta el punto de consumo por un cliente externo o interno","62","Urbanizable no urbanizado ",null,11,"ELIMINACIÓN DE CONSTRUCCIÓN",null,null,null,null,"INSCRIPCIÓN DE NOMENCLATURA",null,null,null,null,null,"P",null,"FORESTAL","O"]
[null,"Uso 2",null,null,null,{"$f":"+C18&D18","v":""},{"$f":"IF(E18<>\"\",VLOOKUP(E18,$CC$3:$CD$86,2,0),\"\")","v":""},null,"MOBILIARIO",null,{"$f":"IF(J18=\"\",\"\",VLOOKUP(J18,$BZ$85:$CA$89,2,0))","v":""},null,{"$f":"IF(L18=\"\",\"\",VLOOKUP(L18,$BZ$85:$CA$89,2,0))","v":""},null,{"$f":"IF(N18=\"\",\"\",VLOOKUP(N18,$BZ$85:$CA$89,2,0))","v":""},null,{"$f":"IF(P18=\"\",\"\",VLOOKUP(P18,$BZ$85:$CA$89,2,0))","v":""},null,null,"MOBILIARIO",null,{"$f":"+IF(U18=\"\",\"\",VLOOKUP(U18,$BZ$151:$CA$155,2,0))","v":""},null,{"$f":"+IF(W18=\"\",\"\",VLOOKUP(W18,$BZ$151:$CA$155,2,0))","v":""},null,{"$f":"+IF(Y18=\"\",\"\",VLOOKUP(Y18,$BZ$151:$CA$155,2,0))","v":""},null,{"$f":"+IF(AA18=\"\",\"\",VLOOKUP(AA18,$BZ$151:$CA$155,2,0))","v":""},null,null,null,null,null,null,null,"",null,null,null,null,null,null,null,"","",null,null,null,null,null,null,null,null,null,null,null,null,null,null,null,null,null,null,null,null,null,null,null,null,null,null,null,null,null,null,null,null,6,"ENTREPISO (CUBIERTA PROVISIONAL)",null,18,"(Anexo) Secaderos","Construcciones elaboradas con el objeto de secar en condiciones naturales el café principalmente, aunque es común su uso en otros productos.  Consta de estructura y pisos para su calificación","63","No Urbanizables y suelo protegido",null,null,"INSCRIPCIÓN DE NOMENCLATURA",null,null,null,null,"CORRECCIÓN DE NOMENCLATURA",null,null,null,null,null,"Q",null,"USO PÚBLICO","P"]
[null,"Área 2",null,null,null,null,{"$f":"+IF(C18=\"\",\"\",IF(C18&D18=J3,BT48,IF(C18&D18=L3,$BT$49,IF(C18&D18=N3,$BT$50,IF(C18&D18=P3,$BT$51,IF(C18&D18=U3,$BT$52,IF(C18&D18=W3,$BT$53,IF(C18&D18=Y3,$BT$54,IF(C18&D18=AA3,$BT$55,\"\"))))))))&\" PUNTOS\")","v":""},null,"CONSERVACIÓN",null,{"$f":"IF(J19=\"\",\"\",VLOOKUP(J19,$BZ$91:$CA$94,2,0))","v":""},null,{"$f":"IF(L19=\"\",\"\",VLOOKUP(L19,$BZ$91:$CA$94,2,0))","v":""},null,{"$f":"IF(N19=\"\",\"\",VLOOKUP(N19,$BZ$91:$CA$94,2,0))","v":""},null,{"$f":"IF(P19=\"\",\"\",VLOOKUP(P19,$BZ$91:$CA$94,2,0))","v":""},null,null,"CONSERVACIÓN",null,null,null,null,null,null,null,null,null,null,null,null,null,null,null,"",null,null,null,null,null,null,null,{"$f":"+IF(C18<>\"\",C18,\"\")","v":""},"",{"$f":"+MID(E18,1,1)","v":""},{"$f":"+MID(E18,2,1)","v":""},null,null,null,null,null,null,null,null,null,null,null,null,null,null,null,null,null,null,null,null,null,null,null,null,null,null,null,null,null,null,9,"ETERNIT O TEJA DE BARRO (CUB. SENCILLA)",null,19,"(Institucional) Clinicas, hospitales, centros médicos","Establecimiento construido y destinado a proporcionar todo tipo de asistencia médica, incluidas operaciones quirúrgicas y estancia durante la recuperación o tratamiento, y en el que también se practican la investigación y la enseñanza médica","64","Lotes del Estado (es el equivalente al destino 61)",null,null,"CORRECCIÓN DE NOMENCLATURA",null,null,null,null,"RECTIFICACIÓN DATOS JURÍDICOS",null,null,null,null,null,"R",null,"LOTE URBANIZABLE NO URBANIZADO","Q"]
[null,"Vetustez 2",null,null,null,null,null,null,null,null,null,null,null,null,null,null,null,null,"C.I.","CERCHA",null,{"$f":"+IF(U20=\"\",\"\",VLOOKUP(U20,$BZ$157:$CA$160,2,0))","v":""},null,{"$f":"+IF(W20=\"\",\"\",VLOOKUP(W20,$BZ$157:$CA$160,2,0))","v":""},null,{"$f":"+IF(Y20=\"\",\"\",VLOOKUP(Y20,$BZ$157:$CA$160,2,0))","v":""},null,{"$f":"+IF(AA20=\"\",\"\",VLOOKUP(AA20,$BZ$157:$CA$160,2,0))","v":""},null,null,null,null,null,null,null,"",null,{"$f":"+IF(E19=\"\",\"\",INT(E19))","v":""},{"$f":"+IF(E19=\"\",\"\",INT(AN20*100))","v":""},{"$f":"+IF(E19=\"\",\"\",ROUND(E19-AL20,2))","v":""},{"$f":"LEN(AM20)","v":0},{"$f":"LEN(AL20)","v":0},{"$f":"IF(E19=\"\",\"\",IF(AL20=\"\",\"\",IF(AP20=5,\" \"&AL20,IF(AP20=4,\"  \"&AL20,IF(AP20=3,\"   \"&AL20,IF(AP20=2,\"    \"&AL20,\"     \"&AL20))))))","v":""},{"$f":"+MID($AQ20,2,1)","v":""},{"$f":"+MID($AQ20,3,1)","v":""},{"$f":"+MID($AQ20,4,1)","v":""},{"$f":"+MID($AQ20,5,1)","v":""},{"$f":"+MID($AQ20,6,1)","v":""},",",{"$f":"IF(E19>0,IF(AO20=2,MID(AM20,1,1),0),\"\")","v":""},{"$f":"IF(AO20=1,MID(AM20,1,1),MID(AM20,2,1))","v":""},null,null,null,null,null,null,null,null,null,null,null,null,null,null,null,null,null,null,null,null,null,null,null,null,null,null,13,"AZOTEA ALUMINIO, PLACA SENCILLA",null,20,"(Anexo) Pozos","Perforaciones profundas  manuales para extraer agua subterránea.  Medida en metros de profundidad.","65","Vías (vehiculares o peatonales)",null,null,"RECTIFICACIÓN DATOS JURÍDICOS",null,null,null,null,"CAMBIO DE DESTINO ECONÓMICO",null,null,null,null,null,"S",null,"LOTE URBANIZADO NO EDIFICADO","R"]
[null,"Avance 2",null,null,null,null,null,null,null,null,null,null,null,null,null,null,null,null,null,"ALTURA",null,{"$f":"+IF(U21=\"\",\"\",VLOOKUP(U21,$BZ$162:$CA$162,2,0))","v":""},null,{"$f":"+IF(W21=\"\",\"\",VLOOKUP(W21,$BZ$162:$CA$162,2,0))","v":""},null,{"$f":"+IF(Y21=\"\",\"\",VLOOKUP(Y21,$BZ$162:$CA$162,2,0))","v":""},null,{"$f":"+IF(AA21=\"\",\"\",VLOOKUP(AA21,$BZ$162:$CA$162,2,0))","v":""},null,null,null,null,null,null,null,"","AREAS",null,null,null,null,null,null,{"$f":"+IF(G19=\"0 PUNTOS\",0,MID($G19,1,1))","v":""},{"$f":"+IF(G19=\"0 PUNTOS\",0,MID($G19,2,1))","v":""},{"$f":"+MID($G19,3,1)","v":""},null,null,null,null,null,null,null,null,null,null,null,null,null,null,null,null,null,null,null,null,null,null,null,null,null,null,null,null,null,null,null,16,"PLACA IMPERMEABILIZADA CUB. LUJOSA",null,21,"(Anexo) Kioscos","Construcción consistente en una cubierta apoyada en columnas de materiales diferentes, elaborados con el fin de guarecer de la intemperie.","66","Espacio público",null,null,"CAMBIO DE DESTINO ECONÓMICO",null,null,null,null,null,null,null,null,null,null,"T",null,"LOTE NO URBANIZABLE","S"]
[null,"Uso 3",null,null,null,{"$f":"+C22&D22","v":""},{"$f":"IF(E22<>\"\",VLOOKUP(E22,$CC$3:$CD$86,2,0),\"\")","v":""},null,null,null,null,null,null,null,null,null,null,null,null,null,null,null,null,null,null,null,null,null,null,null,null,null,null,null,null,"",null,"DESDE","HASTA",null,null,null,null,{"$f":"+MID($E20,1,1)","v":""},{"$f":"+MID($E20,2,1)","v":""},{"$f":"+MID($E20,3,1)","v":""},{"$f":"+MID($E20,4,1)","v":""},null,null,null,null,null,null,null,null,null,null,null,null,null,null,null,null,null,null,null,null,null,null,null,null,null,null,null,null,null,null,null,null,null,23,"(Anexo) Albercas - Banaderas","Depósito de agua construido a nivel del terreno con el propósito de almacenar agua, o en el caso de las bañadera con el fin de hacer limpieza al ganado, estas construcciones son cubiertas para guardar de la intemperie.","67","Predios con mejoras ajenas",null,null,"RECTIFICACIÓN DE ÁREAS Y LINDEROS ",null,null,null,null,null,null,null,null,null,null,"U",null,"SERVICIOS ESPECIALES","T"]
[null,"Área 3",null,null,null,null,{"$f":"+IF(C22=\"\",\"\",IF(C22&D22=J3,BT48,IF(C22&D22=L3,$BT$49,IF(C22&D22=N3,$BT$50,IF(C22&D22=P3,$BT$51,IF(C22&D22=U3,$BT$52,IF(C22&D22=W3,$BT$53,IF(C22&D22=Y3,$BT$54,IF(C22&D22=AA3,$BT$55,\"\"))))))))&\" PUNTOS\")","v":""},null,"DESTINACIÓN ECONÓMICA",null,null,null,null,null,null,null,null,null,null,null,null,null,null,null,null,null,null,null,null,null,null,null,null,null,null,"","TOTALES",0,999999.99,null,null,null,null,"","",null,null,null,null,null,null,null,null,null,null,null,null,null,null,null,null,null,null,null,null,null,null,null,null,null,null,null,null,null,null,null,"CONSERVACIÓN",0,"MALO",null,25,"(Comercial) Hoteles en PH","Establecimiento que ocupa un edificio total o parcialmente que ofrece alojamiento","81","Agropecuarios",null,null,"MODIFICACIÓN RÉGIMEN DE PROPIEDAD HORIZONTAL",null,null,null,null,null,null,null,null,null,null,"V"]
[null,"Vetustez 3",null,null,null,null,null,null,null,null,null,null,null,"-",{"$f":"IF(I24=\"\",\"\",VLOOKUP(I24,CW3:CX22,2,0))","v":""},null,null,null,null,null,null,null,null,null,null,null,null,null,null,null,null,null,null,null,null,"","PARCIALES",0,99999.99,null,null,null,null,{"$f":"+IF(C22<>\"\",C22,\"\")","v":""},"",{"$f":"+MID(E22,1,1)","v":""},{"$f":"+MID(E22,2,1)","v":""},null,null,null,null,null,null,null,null,null,null,null,null,null,null,null,null,null,null,null,null,null,null,null,null,null,null,null,null,null,null,2,"REGULAR",null,26,"(Anexo) Corrales","Sitio cerrado y descubierto que se utiliza par la cría y albergue de ganado generalmente vacuno. consta de los elementos estructura  y pisos.","82","No Clasificados dentro de los Anteriores",null,null,"ELIMINACIÓN RÉGIMEN DE PROPIEDAD HORIZONTAL",null,null,null,null,null,null,null,null,null,null,"W"]
[null,"Avance 3",null,null,null,null,null,null,null,null,null,null,null,null,null,null,null,null,null,null,null,null,null,null,null,null,null,null,null,null,null,null,null,null,null,"",null,{"$f":"+IF(E23=\"\",\"\",INT(E23))","v":""},{"$f":"+IF(E23=\"\",\"\",INT(AN25*100))","v":""},{"$f":"+IF(E23=\"\",\"\",ROUND(E23-AL25,2))","v":""},{"$f":"LEN(AM25)","v":0},{"$f":"LEN(AL25)","v":0},{"$f":"IF(E23=\"\",\"\",IF(AL25=\"\",\"\",IF(AP25=5,\" \"&AL25,IF(AP25=4,\"  \"&AL25,IF(AP25=3,\"   \"&AL25,IF(AP25=2,\"    \"&AL25,\"     \"&AL25))))))","v":""},{"$f":"+MID($AQ25,2,1)","v":""},{"$f":"+MID($AQ25,3,1)","v":""},{"$f":"+MID($AQ25,4,1)","v":""},{"$f":"+MID($AQ25,5,1)","v":""},{"$f":"+MID($AQ25,6,1)","v":""},",",{"$f":"IF(E23>0,IF(AO25=2,MID(AM25,1,1),0),\"\")","v":""},{"$f":"IF(AO25=1,MID(AM25,1,1),MID(AM25,2,1))","v":""},null,null,null,null,null,null,null,null,null,null,null,null,null,null,null,null,null,null,null,null,null,null,null,null,null,null,4,"BUENO",null,27,"(Residencial) Casa Elbas","Típica casa con mampostería de piedra, pizarra y madera. Ha sido rehabilitada respetando escrupulosamente sus características exteriores y decorada con un interior tradicional","83","Agrícola",null,null,"INSCRIPCIÓN RÉGIMEN DE PROPIEDAD HORIZONTAL",null,null,null,null,null,null,null,null,null,null,"X"]
[null,"Uso 4",null,null,null,{"$f":"+C26&D26","v":""},{"$f":"IF(E26<>\"\",VLOOKUP(E26,$CC$3:$CD$86,2,0),\"\")","v":""},null,"MODO DE ADQUISICIÓN",null,null,null,"PROPIETARIOS ANTERIORES",null,null,null,null,null,null,null,null,null,null,null,null,null,null,null,null,null,null,null,null,null,null,"",null,null,null,null,null,null,null,{"$f":"+IF(G23=\"0 PUNTOS\",0,MID($G23,1,1))","v":""},{"$f":"+IF(G23=\"0 PUNTOS\",0,MID($G23,2,1))","v":""},{"$f":"+MID($G23,3,1)","v":""},null,null,null,null,null,null,null,null,null,null,null,null,null,null,null,null,null,null,null,null,null,null,null,null,null,null,null,null,null,null,null,5,"EXCELENTE",null,28,"(Comercial) Comercio","Se denomina a la construcción en la cual se lleva a acabo una actividad socioeconómica que consiste en el intercambio de algunos materiales en el mercado de compra y venta de bienes","84","Pecuario",null,null,"AUTOESTIMACIÓN DEL AVALÚO",null,null,null,null,null,null,null,null,null,null,"Y"]
[null,"Área 4",null,null,null,null,{"$f":"+IF(C26=\"\",\"\",IF(C26&D26=J3,$BT$48,IF(C26&D26=L3,$BT$49,IF(C26&D26=N3,$BT$50,IF(C26&D26=P3,$BT$51,IF(C26&D26=U3,$BT$52,IF(C26&D26=W3,$BT$53,IF(C26&D26=Y3,$BT$54,IF(C26&D26=AA3,$BT$55,\"\"))))))))&\" PUNTOS\")","v":""},null,null,"-",{"$f":"IF(I27=\"\",\"\",VLOOKUP(I27,CJ42:CK46,2,0))","v":""},null," ",null,null,null,null,null,null,null,null,null,null,null,null,null,null,null,null,null,null,null,null,null,null,"",null,null,null,null,null,null,null,{"$f":"+MID($E24,1,1)","v":""},{"$f":"+MID($E24,2,1)","v":""},{"$f":"+MID($E24,3,1)","v":""},{"$f":"+MID($E24,4,1)","v":""},null,null,null,null,null,null,null,null,null,null,null,null,null,null,null,null,null,null,null,null,null,null,null,null,null,null,null,null,null,null,null,null,null,29,"(Institucional) Iglesia","Edificación en la que se reúnen y consagran a los fieles que le rinden culto a un ser superior","85","Forestal (protector-productor)",null,null,"REVISIÓN DE AVALÚOS",null,null,null,null,null,null,null,null,null,null,"Z"]
[null,"Vetustez 4",null,null,null,null,null,null,null,null,null,null,null,null,null,null,null,null,null,null,null,null,null,null,null,null,null,null,null,null,null,null,null,null,null,"",null,null,null,null,null,null,null,"","",null,null,null,null,null,null,null,null,null,null,null,null,null,null,null,null,null,null,null,null,null,null,null,null,null,null,null,null,null,null,"ACABADOS PRINCIPALES","FACHADA",0,"POBRE",null,31,"(Comercial) Hoteles","Establecimiento que ocupa un edificio total o parcialmente con uso exclusivo de sus servicios (entradas, ascensores, escaleras, etc.) y que ofrece alojamiento","86","Agroindustrial"]
[null,"Avance 4",null,null,null,null,null,null,"VALOR DE COMPRA",null,null,null,"ZHF",null,null,null,null,null,null,null,null,null,null,null,null,null,null,null,null,null,null,null,null,null,null,"",null,null,null,null,null,null,null,{"$f":"+IF(C26<>\"\",C26,\"\")","v":""},"",{"$f":"+MID(E26,1,1)","v":""},{"$f":"+MID(E26,2,1)","v":""},null,null,null,null,null,null,null,null,null,null,null,null,null,null,null,null,null,null,null,null,null,null,null,null,null,null,null,null,null,null,2,"SENCILLA",null,33,"(Comercial) Clubes - Casinos","Es la edificación o  Establecimiento que brinda servicios recreativos y tiene capacidad para ciertos juegos de azar","87","Agroforestal"]
[null,"Cantidad  propietarios",null,null,null,null,null,null,null,null,null,null,"ZHE",null,null,null,null,null,null,null,null,null,null,null,null,null,null,null,null,null,null,null,null,null,null,"",null,{"$f":"+IF(E27=\"\",\"\",INT(E27))","v":""},{"$f":"+IF(E27=\"\",\"\",INT(AN30*100))","v":""},{"$f":"+IF(E27=\"\",\"\",ROUND(E27-AL30,2))","v":""},{"$f":"LEN(AM30)","v":0},{"$f":"LEN(AL30)","v":0},{"$f":"IF(E27=\"\",\"\",IF(AL30=\"\",\"\",IF(AP30=5,\" \"&AL30,IF(AP30=4,\"  \"&AL30,IF(AP30=3,\"   \"&AL30,IF(AP30=2,\"    \"&AL30,\"     \"&AL30))))))","v":""},{"$f":"+MID($AQ30,2,1)","v":""},{"$f":"+MID($AQ30,3,1)","v":""},{"$f":"+MID($AQ30,4,1)","v":""},{"$f":"+MID($AQ30,5,1)","v":""},{"$f":"+MID($AQ30,6,1)","v":""},",",{"$f":"IF(E27>0,IF(AO30=2,MID(AM30,1,1),0),\"\")","v":""},{"$f":"IF(AO30=1,MID(AM30,1,1),MID(AM30,2,1))","v":""},null,null,null,null,null,null,null,null,null,null,null,null,null,null,null,null,null,null,null,null,null,null,null,null,null,null,4,"REGULAR",null,34,"(Comercial) Oficinas - Consultorios","Espacio construido en el que se  realiza un trabajo profesional de gestión, administración o atención médica","88","Tierras improductivas"]
[null,"Tipo identifIcación",null,null,null,null,null,null,null,null,null,null,null,null,null,null,null,null,null,null,null,null,null,null,null,null,null,null,null,null,null,null,null,null,null,"",null,null,null,null,null,null,null,{"$f":"+IF(G27=\"0 PUNTOS\",0,MID($G27,1,1))","v":""},{"$f":"+IF(G27=\"0 PUNTOS\",0,MID($G27,2,1))","v":""},{"$f":"+MID($G27,3,1)","v":""},null,null,null,null,null,null,null,null,null,null,null,null,null,null,null,null,null,null,null,null,null,null,null,null,null,null,null,null,null,null,null,6,"BUENA",null,35,"(Residencial) Apartamentos mas de 4 Pisos","Es una vivienda que comprende una o más habitaciones, en un edificio de varios pisos 4 o más pisos"," "]
[null,"No. IdentifIcación",null,null,null,null,null,null,"OBSERVACIONES CARTOGRAFÍA:",null,null,null,null,null,null,null,null,null,null,null,null,null,null,null,null,null,null,null,null,null,null,null,null,null,null,"",null,null,null,null,null,null,null,{"$f":"+MID($E28,1,1)","v":""},{"$f":"+MID($E28,2,1)","v":""},{"$f":"+MID($E28,3,1)","v":""},{"$f":"+MID($E28,4,1)","v":""},null,null,null,null,null,null,null,null,null,null,null,null,null,null,null,null,null,null,null,null,null,null,null,null,null,null,null,null,null,null,8,"LUJOSA",null,36,"(Comercial) Restaurantes","Establecimiento en el que se preparan y sirven comidas."," "]
[null,"Apellidos",null,null,null,null,null,null," ",null,null,null,null,null,null,null,null,null,null,null,null,null,null,null,null,null,null,null,null,null,null,null,null,null,null,"",null,null,null,null,null,null,null,"","",null,null,null,null,null,null,null,null,null,null,null,null,null,null,null,null,null,null,null,null,null,null,null,null,null,null,null,null,null,null,null,null,null,null,null,37,"(Comercial) Pensiones y Residencias","Vivienda que proporciona alojamiento y hospedaje temporal","TIPOS DE IDENTIFICACION"]
[null,"Nombres",null,null,null,null,null,null,null,null,null,null,null,null,null,null,null,null,null,null,null,null,null,null,null,null,null,null,null,null,null,null,null,null,null,"",null,null,null,null,null,null,null,{"$f":"+MID($E31,1,1)","v":""},{"$f":"+MID($E31,2,1)","v":""},{"$f":"+MID($E31,3,1)","v":""},{"$f":"+MID($E31,4,1)","v":""},null,null,null,null,null,null,null,null,null,null,null,null,null,null,null,null,null,null,null,null,null,null,null,null,null,null,null,null,null,"CUBRIMIENTO DE MUROS",0,"SIN CUBRIMIENTO",null,38,"(Institucional) Puestos de salud","Edificio donde se atiende a la población en un primer nivel asistencial sanitario.","C.C.","Cédula de Ciudadanía"]
[null,"Anexa plano ",null,null,null,null,null,null,null,null,null,null,null,null,null,null,null,null,null,null,null,null,null,null,null,null,null,null,null,null,null,null,null,null,null,{"$f":"+IF(C35=\"\",\"\",C35)","v":""},null,null,null,null,null,{"$f":"+LEN(E32)","v":0},{"$f":"+IF(AP35=10,\" \"&E32,IF(AP35=9,\"  \"&E32,IF(AP35=8,\"   \"&E32,IF(AP35=7,\"    \"&E32,IF(AP35=6,\"     \"&E32,IF(AP35=5,\"      \"&E32,IF(AP35=4,\"       \"&AP35,\"\")))))))","v":""},{"$f":"+MID($AQ35,1,1)","v":""},{"$f":"+MID($AQ35,2,1)","v":""},{"$f":"+MID($AQ35,3,1)","v":""},{"$f":"+MID($AQ35,4,1)","v":""},{"$f":"+MID($AQ35,5,1)","v":""},{"$f":"+MID($AQ35,6,1)","v":""},{"$f":"+MID($AQ35,7,1)","v":""},{"$f":"+MID($AQ35,8,1)","v":""},{"$f":"+MID($AQ35,9,1)","v":""},{"$f":"+MID($AQ35,10,1)","v":""},{"$f":"+MID($AQ35,11,1)","v":""},null,null,null,null,null,null,null,null,null,null,null,null,null,null,null,null,null,null,null,null,null,null,null,1,"PAÑETE, LADRILLO PRENSADO",null,39,"(Comercial) Parqueaderos","Es el espacio que con ánimo de lucro se destina a guardar o arrendar espacios para depositar vehículos dentro de una edificación construida para tal fin, o dentro de un predio habilitado con el mismo objeto.","C.E.","Cédula de Extrangería"]
[null,"Observacion1","   ",null,null,null,null,null,{"$f":"+LEN($C$36)","v":3},"de",140,null,null,null,null,null,null,null,null,null,null,null,null,null,null,null,null,null,null,null,null,null,null,null,null,"   ",null,null,null,null,null,null,null,{"$f":"+MID($E33,1,1)","v":""},{"$f":"+MID($E33,2,1)","v":""},{"$f":"+MID($E33,3,1)","v":""},{"$f":"+MID($E33,4,1)","v":""},{"$f":"+MID($E33,5,1)","v":""},{"$f":"+MID($E33,6,1)","v":""},{"$f":"+MID($E33,7,1)","v":""},{"$f":"+MID($E33,8,1)","v":""},{"$f":"+MID($E33,9,1)","v":""},{"$f":"+MID($E33,10,1)","v":""},{"$f":"+MID($E33,11,1)","v":""},{"$f":"+MID($E33,12,1)","v":""},{"$f":"+MID($E33,13,1)","v":""},{"$f":"+MID($E33,14,1)","v":""},{"$f":"+MID($E33,15,1)","v":""},{"$f":"+MID($E33,16,1)","v":""},{"$f":"+MID($E33,17,1)","v":""},{"$f":"+MID($E33,18,1)","v":""},{"$f":"+MID($E33,19,1)","v":""},{"$f":"+MID($E33,20,1)","v":""},{"$f":"+MID($E33,21,1)","v":""},{"$f":"+MID($E33,22,1)","v":""},{"$f":"+MID($E33,23,1)","v":""},{"$f":"+MID($E33,24,1)","v":""},{"$f":"+MID($E33,25,1)","v":""},{"$f":"+MID($E33,26,1)","v":""},{"$f":"+MID($E33,27,1)","v":""},{"$f":"+MID($E33,28,1)","v":""},{"$f":"+MID($E33,29,1)","v":""},{"$f":"+MID($E33,30,1)","v":""},{"$f":"+MID($E33,31,1)","v":""},null,null,null,2,"ESTUCO, CERÁMICA, PAPEL DE COLGADURA",null,40,"(Residencial) Barracas","Dormitorios de las fuerzas armadas y militares","NIT","Número de Identificacion Tributaria"]
[null,"Observacion2",null,null,null,null,null,null,{"$f":"+LEN($C$37)","v":0},"de",140,null,null,null,null,null,null,null,null,null,null,null,null,null,null,null,null,null,null,null,null,null,null,null,null,"",null,null,null,null,null,null,null,"","","","","","","","","","","","","","","","","","","","","","","","","","","","","","",{"$f":"+MID($E34,33,1)","v":""},null,null,null,3,"MADERA, PIEDRA ORNAMENTAL",null,41,"(Institucional) Teatro","Edificio o sala destinados a la representación de obras de teatro o de otro tipo de espectáculos, que dispone de un escenario y gradas o asientos para el público, se caracterizan por sus condiciones arquitectónicas","T.I.","Tarjeta de Identidad"]
[null,"Observacion3",null,null,null,null,null,null,{"$f":"+LEN($C$38)","v":0},"de",140,null,null,null,null,null,null,null,null,null,null,null,null,null,null,null,null,null,null,null,null,null,null,null,null,"",null,null,null,null,null,null,null,null,null,null,null,null,null,null,null,null,null,null,null,null,null,null,null,null,null,null,null,null,null,null,null,null,null,null,null,null,null,null,null,null,null,4,"MARMOL LUJOS Y OTROS",null,42,"(Institucional) Aula de clases","Es un salón de un edificio que se destina a actividades de enseñanza, y es la unidad básica de todo recinto destinado a la educación."," "]
[null,"Observacion4",null,null,null,null,null,null,{"$f":"+LEN($C$39)","v":0},"de",140,null,null,null,null,null,null,null,null,null,null,null,null,null,null,null,null,null,null,null,null,null,null,null,null,"",null,null,null,null,null,null,null,null,null,null,null,null,null,null,null,null,null,null,null,null,null,null,null,null,null,null,null,null,null,null,null,null,null,null,null,null,null,null,null,null,null,null,null,null,43,"(Institucional) Coliseos","Teatro o edificio destinado a espectáculos con capacidad para un gran número de personas."," "]
[null,"Observacion5",null,null,null,null,null,null,{"$f":"+LEN($C$40)","v":0},"de",140,null,null,null,null,null,null,null,null,null,null,null,null,null,null,null,null,null,null,null,null,null,null,null,null,"",null,null,null,null,null,null,null,null,null,null,null,null,null,null,null,null,null,null,null,null,null,null,null,null,null,null,null,null,null,null,null,null,null,null,null,null,null,null,null,null,"PISOS",0,"TIERRA PISADA",null,44,"(Institucional) Casas de culto","Lugar sin altar (diferente a iglesias y capillas) que congrega a un determinado número de personas para actividades de culto asociadas con manifestaciones religiosas.","Posición 1 de la ZHF"]
[null,"Observacion6",null,null,null,null,null,null,{"$f":"+LEN($C$41)","v":0},"de",140,null,null,null,null,null,null,null,null,null,null,null,null,null,null,null,null,null,null,null,null,null,null,null,null,"",null,null,null,null,null,null,null,null,null,null,null,null,null,null,null,null,null,null,null,null,null,null,null,null,null,null,null,null,null,null,null,null,null,null,null,null,null,null,null,null,null,2,"CEMENTO, MADERA BURDA",null,45,"(Industrial) Talleres","Es el espacio construido en el que se realiza un trabajo, manual en su origen, bien de tipo artesanal o fabril.","1","RURAL PROTEGIDO",null,null,"MODO DE ADQUISICIÓN"]
[null,"Observacion7",null,null,null,null,null,null,{"$f":"+LEN($C$42)","v":0},"de",140,null,null,null,null,null,null,null,null,null,null,null,null,null,null,null,null,null,null,null,null,null,null,null,null,"",null,null,null,null,null,null,null,"A","M","C","CE","F","CM","PI","CA","BT","BC","BM","BC","CT","CC","CM","CC","CER","CI",null,null,null,null,null,null,null,null,null,null,null,null,null,null,null,null,3,"BALDOSA COMÚN CEMENTO, TABLÓN LADRILLO",null,46,"(Institucional) Jardín infantil en casa","Construcción con características de una vivienda que se encarga de brindar educación y asistencia integral a los niños","2","RURAL NO PROTEGIDO",null,null,"TRADICIÓN","A"]
[null,"Observacion8",null,null,null,null,null,null,{"$f":"+LEN($C$43)","v":0},"de",140,null,null,null,null,null,null,null,null,null,null,null,null,null,null,null,null,null,null,null,null,null,null,null,null,"",null,null,null,null,null,null,null,null,null,null,null,null,null,null,null,null,null,null,null,null,null,null,null,null,null,null,null,null,null,null,null,null,null,null,null,null,null,null,null,null,null,4,"LISTÓN MACHIEMBRIADO.",null,47,"(Anexo) Torres de Enfriamiento","Son estructuras diseñadas para disminuir la temperatura del agua y otros medios.","3","EXPANCIÓN PROTEGIDO",null,null,"OCUPACIÓN","B"]
[null,"Observacion9",null,null,null,null,null,null,{"$f":"+LEN($C$44)","v":0},"de",140,null,null,null,null,null,null,null,null,null,null,null,null,null,null,null,null,null,null,null,null,null,null,null,null,"",null,null,null,null,null,null,null,null,null,null,null,null,null,null,null,null,null,null,null,null,null,null,null,null,null,null,null,null,null,null,null,null,null,null,null,null,null,null,null,null,null,6,"TABLETA, CAUCHO, ACRÍLICO, GRANITO, BALDOSA FINA",null,48,"(Anexo) Muelles","Deberán diferenciarse de acuerdo a su estructura, longitud, capacidad, usos turísticos o de carga","4","EXPANSIÓN NO PROTEGIDO",null,null,"SUCESIÓN","C"]
[null,"Obs. adicional 1",null,null,null,{"$f":"+LEN(C45)","v":0},"de",45,null,null,null,null,null,null,null,null,null,null,null,null,null,null,null,null,null,null,null,null,null,null,null,null,null,null,null,"",null,null,null,null,null,null,null,null,null,null,null,null,null,null,null,null,null,null,null,null,null,null,null,null,null,null,null,null,null,null,null,null,null,null,null,null,null,null,null,null,null,8,"PARQUET, ALFOMBRA, RELATL DE MARMOL",null,49,"(Anexo) Estacion de Bombeo","Son obras arquitectónicas  que se construyen con el objeto de elevar el nivel del agua de la fuente de riego a los sitios donde se desea utilizar.","5","URBANO PROTEGIDO",null,null,"PRESCRIPCIÓN","D"]
[null,"Obs. adicional 2",null,null,null,0,"de",45,null,null,null,null,null,null,null,null,null,null,null,null,null,null,null,null,null,null,null,null,null,null,null,null,null,null,null,"",null,null,null,null,null,null,null,null,null,null,null,null,null,null,null,null,null,null,null,null,null,null,null,null,null,null,null,null,null,null,null,null,null,null,null,null,null,null,null,null,null,9,"RETAL DE MARMOL, MARMOL, OTROS LUJOS",null,50,"(Institucional) Estadios","Un estadio es una construcción cerrada con graderías para los espectadores, destinado a competiciones deportivas. Puede ser al aire libre o cubierto.","6","URBANO NO PROTEGIDO",null,null,"ACCESIÓN","E"]
[null,"Obs. adicional 3",null,null,null,0,"de",45,null,null,null,null,null,null,null,null,null,null,null,null,null,null,null,null,null,null,null,null,null,null,null,null,null,null,null,"",null,null,null,null,null,null,null,null,null,null,null,null,null,null,null,null,null,null,null,null,null,null,null,null,null,null,null,null,null,null,null,null,null,null,null,null,null,null,null,null,null,null,null,null,50,"(Institucional) Plaza de toros","Son recintos cerrados, generalmente circulares y descubiertos, donde se celebran las corridas de toros."," "]
[null,null,null,null,null,null,null,"A","B","C","D",null,null,null,null,null,null,null,null,null,null,null,null,null,null,null,null,null,null,null,null,null,null,null,null,{"$f":"+IF(C14=\"\",\"\",C14)","v":""},null,null,null,null,null,null,{"$f":"+J3","v":"RA"},{"$f":"+IF(J4=\"\",\"\",J4)","v":""},{"$f":"+IF(J5=\"\",\"\",J5)","v":""},{"$f":"+IF(J6=\"\",\"\",J6)","v":""},{"$f":"+IF(J7=\"\",\"\",J7)","v":""},{"$f":"+IF(J8=\"\",\"\",J8)","v":""},{"$f":"+IF(J9=\"\",\"\",J9)","v":""},{"$f":"+IF(J10=\"\",\"\",J10)","v":""},{"$f":"+IF(J11=\"\",\"\",J11)","v":""},{"$f":"+IF(J12=\"\",\"\",J12)","v":""},{"$f":"+IF(J13=\"\",\"\",J13)","v":""},{"$f":"+IF(J14=\"\",\"\",J14)","v":""},{"$f":"+IF(J15=\"\",\"\",J15)","v":""},{"$f":"+IF(J16=\"\",\"\",J16)","v":""},{"$f":"+IF(J17=\"\",\"\",J17)","v":""},{"$f":"+IF(J18=\"\",\"\",J18)","v":""},{"$f":"+IF(J19=\"\",\"\",J19)","v":""},null,null,null,null,null,null,null,null,null,null,{"$f":"IF(AR48=4,SUM(AR48:BQ48)-1,SUM(AR48:BQ48))","v":0},{"$f":"+LEN(BR48)","v":1},{"$f":"+IF(BS48=1,\"0\"&BR48,BR48)","v":"00"},null,null,null,null,"CONSERVACIÓN",0,"MALO",null,51,"(Institucional) Cárceles","Son instalaciones en las que se encarcela a los prisioneros, se encuentran bajo la autoridad del estado."," "]
[null,null,null,null,null,null,"NÚMERO TOTAL DE PISOS"," "," "," "," ",null,null,null,null,null,null,null,null,null,null,null,null,null,null,null,null,null,null,null,null,null,null,null,null,{"$f":"+IF(D14=\"\",\"\",D14)","v":""},null,null,null,null,null,null,{"$f":"+L3","v":"RB"},{"$f":"IF($L$4=\"\",\"\",L4)","v":""},{"$f":"IF($L$5=\"\",\"\",$L$5)","v":""},{"$f":"IF($L$6=\"\",\"\",$L$6)","v":""},{"$f":"IF($L$7=\"\",\"\",$L$7)","v":""},{"$f":"IF($L$8=\"\",\"\",$L$8)","v":""},{"$f":"IF($L$9=\"\",\"\",$L$9)","v":""},{"$f":"IF($L$10=\"\",\"\",$L$10)","v":""},{"$f":"IF($L$11=\"\",\"\",$L$11)","v":""},{"$f":"IF($L$12=\"\",\"\",$L$12)","v":""},{"$f":"IF($L$13=\"\",\"\",$L$13)","v":""},{"$f":"IF($L$14=\"\",\"\",$L$14)","v":""},{"$f":"IF($L$15=\"\",\"\",$L$15)","v":""},{"$f":"IF($L$16=\"\",\"\",$L$16)","v":""},{"$f":"IF($L$17=\"\",\"\",$L$17)","v":""},{"$f":"IF($L$18=\"\",\"\",$L$18)","v":""},{"$f":"IF($L$19=\"\",\"\",$L$19)","v":""},null,null,null,null,null,null,null,null,null,null,0,1,"00",null,null,null,null,null,2,"REGULAR",null,52,"(Institucional) Parque Cementerio","Es un terreno que está destinado a árboles, jardines y prados donde se depositan los restos mortales o cadáveres."," "]
[null,"funcionario"," ",null,null,null,"NÚMERO DE HABITACIONES"," "," "," "," ",null,null,null,null,null,null,null,null,null,null,null,null,null,null,null,null,null,null,null,null,null,null,null,null,{"$f":"+IF(C18=\"\",\"\",C18)","v":""},null,null,null,null,null,null,{"$f":"+N3","v":"RC"},{"$f":"IF($N$4=\"\",\"\",N4)","v":""},{"$f":"IF($N$5=\"\",\"\",$N$5)","v":""},{"$f":"IF($N$6=\"\",\"\",$N$6)","v":""},{"$f":"IF($N$7=\"\",\"\",$N$7)","v":""},{"$f":"IF($N$8=\"\",\"\",$N$8)","v":""},{"$f":"IF($N$9=\"\",\"\",$N$9)","v":""},{"$f":"IF($N$10=\"\",\"\",$N$10)","v":""},{"$f":"IF($N$11=\"\",\"\",$N$11)","v":""},{"$f":"IF($N$12=\"\",\"\",$N$12)","v":""},{"$f":"IF($N$13=\"\",\"\",$N$13)","v":""},{"$f":"IF($N$14=\"\",\"\",$N$14)","v":""},{"$f":"IF($N$15=\"\",\"\",$N$15)","v":""},{"$f":"IF($N$16=\"\",\"\",$N$16)","v":""},{"$f":"IF($N$17=\"\",\"\",$N$17)","v":""},{"$f":"IF($N$18=\"\",\"\",$N$18)","v":""},{"$f":"IF($N$19=\"\",\"\",$N$19)","v":""},null,null,null,null,null,null,null,null,null,null,0,1,"00",null,null,null,null,null,4,"BUENO",null,53,"(Residencial) Vivienda Colonial","Son las viviendas construidas durante el tiempo de la colonia española, se caracterizan por tener varias habitaciones, con ventanales que dan a uno o dos patios generalmente ubicados en el centro de la vivienda. Los principales materiales de la época era la tapia, bahareque, ladrillo, paja y teja.","Posicion 11 de la ZHF"]
[null,"CALIDAD"," ",null,null,null,"NÚMERO DE BAÑOS"," "," "," "," ",null,null,null,null,null,null,null,null,null,null,null,null,null,null,null,null,null,null,null,null,null,null,null,null,{"$f":"+IF(D18=\"\",\"\",D18)","v":""},null,null,null,null,null,null,{"$f":"+P3","v":"RD"},{"$f":"IF($P$4=\"\",\"\",P4)","v":""},{"$f":"IF($P$5=\"\",\"\",$P$5)","v":""},{"$f":"IF($P$6=\"\",\"\",$P$6)","v":""},{"$f":"IF($P$7=\"\",\"\",$P$7)","v":""},{"$f":"IF($P$8=\"\",\"\",$P$8)","v":""},{"$f":"IF($P$9=\"\",\"\",$P$9)","v":""},{"$f":"IF($P$10=\"\",\"\",$P$10)","v":""},{"$f":"IF($P$11=\"\",\"\",$P$11)","v":""},{"$f":"IF($P$12=\"\",\"\",$P$12)","v":""},{"$f":"IF($P$13=\"\",\"\",$P$13)","v":""},{"$f":"IF($P$14=\"\",\"\",$P$14)","v":""},{"$f":"IF($P$15=\"\",\"\",$P$15)","v":""},{"$f":"IF($P$16=\"\",\"\",$P$16)","v":""},{"$f":"IF($P$17=\"\",\"\",$P$17)","v":""},{"$f":"IF($P$18=\"\",\"\",$P$18)","v":""},{"$f":"IF($P$19=\"\",\"\",$P$19)","v":""},null,null,null,null,null,null,null,null,null,null,0,1,"00",null,null,null,null,null,5,"EXCELENTE",null,54,"(Comercial) Comercio Colonial","Se denomina a la construcción con características arquitectónicas coloniales,  en el cual se lleva a acabo una actividad socioeconómica que consiste en el intercambio de algunos materiales en el mercado de compra y venta de bienes","01","No edificado (Urbanizable no urbanizado)"]
[null,"FECHA REVISIÓN"," ",null,null,null,"NÚMERO DE LOCALES"," "," "," "," ",null,null,null,null,null,null,null,null,null,null,null,null,null,null,null,null,null,null,null,null,null,null,null,null,{"$f":"+IF(C22=\"\",\"\",C22)","v":""},null,null,null,null,null,null,{"$f":"+U3","v":"CA"},{"$f":"IF($U$4=\"\",\"\",U4)","v":""},{"$f":"IF($U$5=\"\",\"\",$U$5)","v":""},{"$f":"IF($U$6=\"\",\"\",$U$6)","v":""},{"$f":"IF($U$7=\"\",\"\",$U$7)","v":""},{"$f":"IF($U$8=\"\",\"\",$U$8)","v":""},{"$f":"IF($U$9=\"\",\"\",$U$9)","v":""},{"$f":"IF($U$10=\"\",\"\",$U$10)","v":""},{"$f":"IF($U$11=\"\",\"\",$U$11)","v":""},null,null,{"$f":"IF($U$14=\"\",\"\",$U$14)","v":""},null,null,null,{"$f":"IF($U$18=\"\",\"\",$U$18)","v":""},null,{"$f":"IF($U$20=\"\",\"\",$U$20)","v":""},{"$f":"IF($U$21=\"\",\"\",$U$21)","v":""},null,null,null,null,null,null,null,null,{"$f":"IF(AR52=23,SUM(AR52:BQ52)-1,SUM(AR52:BQ52))","v":0},1,"00",null,null,null,"BAÑO","TAMAÑO",0,"SIN BAÑO",null,55,"(Comercial) Oficinas - Consultorios Coloniales","Espacio construido con características arquitectónicas coloniales en el que se  realiza un trabajo profesional de gestión, administración o atención médica","02","No edificado (Urbanizado no construido)"]
[null,"ONSERVACIONES"," ",null,null,null,"AÑO DE CONSTRUCCIÓN"," ",null,null,null,null,null,null,null,null,null,null,null,null,null,null,null,null,null,null,null,null,null,null,null,null,null,null,null,{"$f":"+IF(D22=\"\",\"\",D22)","v":""},null,null,null,null,null,null,{"$f":"+W3","v":"CB"},{"$f":"IF($W$4=\"\",\"\",W4)","v":""},{"$f":"IF($W$5=\"\",\"\",$W$5)","v":""},{"$f":"IF($W$6=\"\",\"\",$W$6)","v":""},{"$f":"IF($W$7=\"\",\"\",$W$7)","v":""},{"$f":"IF($W$8=\"\",\"\",$W$8)","v":""},{"$f":"IF($W$9=\"\",\"\",$W$9)","v":""},{"$f":"IF($W$10=\"\",\"\",$W$10)","v":""},{"$f":"IF($W$11=\"\",\"\",$W$11)","v":""},null,null,{"$f":"IF($W$14=\"\",\"\",$W$14)","v":""},null,null,null,{"$f":"IF($W$18=\"\",\"\",$W$18)","v":""},null,{"$f":"IF($W$20=\"\",\"\",$W$20)","v":""},{"$f":"IF($W$21=\"\",\"\",$W$21)","v":""},null,null,null,null,null,null,null,null,0,1,"00",null,null,null,null,null,1,"PEQUEÑO (0-4 M2)",null,58,"(Comercial) Centros Comerciales","es una construcción que consta de uno o varios edificios, por lo general de gran tamaño, que albergan servicios, locales y oficinas comerciales aglutinados en un espacio determinado concentrando mayor cantidad de clientes potenciales dentro del recinto.","03","No edificado (Urbanizado no urbanizable)"]
[null,"OBSERVACIONES SOBRE CALIFICACION CONSTRUCCIÓN",null,null,null,null,"TIPIFICACIÓN"," ",null,null,null,null,null,null,null,null,null,null,null,null,null,null,null,null,null,null,null,null,null,null,null,null,null,null,null,{"$f":"+IF(C26=\"\",\"\",C26)","v":""},null,null,null,null,null,null,{"$f":"+Y3","v":"CC"},{"$f":"IF($Y$4=\"\",\"\",Y4)","v":""},{"$f":"IF($Y$5=\"\",\"\",$Y$5)","v":""},{"$f":"IF($Y$6=\"\",\"\",$Y$6)","v":""},{"$f":"IF($Y$7=\"\",\"\",$Y$7)","v":""},{"$f":"IF($Y$8=\"\",\"\",$Y$8)","v":""},{"$f":"IF($Y$9=\"\",\"\",$Y$9)","v":""},{"$f":"IF($Y$10=\"\",\"\",$Y$10)","v":""},{"$f":"IF($Y$11=\"\",\"\",$Y$11)","v":""},null,null,{"$f":"IF($Y$14=\"\",\"\",$Y$14)","v":""},null,null,null,{"$f":"IF($Y$18=\"\",\"\",$Y$18)","v":""},null,{"$f":"IF($Y$20=\"\",\"\",$Y$20)","v":""},{"$f":"IF($Y$21=\"\",\"\",$Y$21)","v":""},null,null,null,null,null,null,null,null,0,1,"00",null,null,null,null,null,2,"MEDIANO (4-6 M2)",null,60,"(Anexo) Canchas de Tenis","Superficie  terreno rectangular cruzada al medio por una red baja.","11","Residencial (Tipo 1)"]
[null,null,null,null,null,null,null,null,null,null,null,null,null,null,null,null,null,null,null,null,null,null,null,null,null,null,null,null,null,null,null,null,null,null,null,{"$f":"+IF(D26=\"\",\"\",D26)","v":""},null,null,null,null,null,null,{"$f":"+AA3","v":"CD"},{"$f":"IF($AA$4=\"\",\"\",AA4)","v":""},{"$f":"IF($AA$5=\"\",\"\",$AA$5)","v":""},{"$f":"IF($AA$6=\"\",\"\",$AA$6)","v":""},{"$f":"IF($AA$7=\"\",\"\",$AA$7)","v":""},{"$f":"IF($AA$8=\"\",\"\",$AA$8)","v":""},{"$f":"IF($AA$9=\"\",\"\",$AA$9)","v":""},{"$f":"IF($AA$10=\"\",\"\",$AA$10)","v":""},{"$f":"IF($AA$11=\"\",\"\",$AA$11)","v":""},null,null,{"$f":"IF($AA$14=\"\",\"\",$AA$14)","v":""},null,null,null,{"$f":"IF($AA$18=\"\",\"\",$AA$18)","v":""},null,{"$f":"IF($AA$20=\"\",\"\",$AA$20)","v":""},{"$f":"IF($AA$21=\"\",\"\",$AA$21)","v":""},null,null,null,null,null,null,null,null,0,1,"00",null,null,null,null,null,3,"GRANDE >6 M2",null,62,"(Anexo) Toboganes","Deslizadores construidos alrededor de piscinas, medidos en metros lineales.  Se clasifican según su altura y materiales de construcción","12","Residencial (Tipo 2)"]
[null,null,null,null,null,null,null,null,null,null,null,null,null,null,null,null,null,null,null,null,null,null,null,null,null,null,null,null,null,null,null,null,null,null,null,{"$f":"+IF(J4=\"\",\"\",J4)","v":""},null,null,null,null,null,null,null,null,null,null,null,null,null,null,null,null,null,null,null,null,null,null,null,null,null,null,null,null,null,null,null,null,null,null,null,null,null,null,null,null,null,null,null,null,63,"(Residencial) Vivienda Recreacional","Es una vivienda acondicionada para la realización de actividades recreativas libres y el descanso.","13","Residencial (Tipo 3)"]
[null,null,null,null,null,null,null,null,null,null,null,null,null,null,null,null,null,null,null,null,null,null,null,null,null,null,null,null,null,null,null,null,null,null,null,"",null,null,null,null,null,null,null,null,null,null,null,null,null,null,null,null,null,null,null,null,null,null,null,null,null,null,null,null,null,null,null,null,null,null,null,null,null,null,null,null,"ENCHAPES",0,"SIN CUBRIMIENTO",null,64,"(Anexo) Camaroneras","Construcción para el desarrollo de proyectos acuícolas del cultivo de camarones.","14","Residencial (Tipo 4)"]
[null,null,null,null,null,null,null,null,null,null,null,null,null,null,null,null,null,null,null,null,null,null,null,null,null,null,null,null,null,null,null,null,null,null,null,"",null,null,null,null,null,null,null,null,null,null,null,null,null,null,null,null,null,null,null,null,null,null,null,null,null,null,null,null,null,null,null,null,null,null,null,null,null,null,null,null,null,1,"PAÑETE BALDOSA COMÚN CEMENTO",null,65,"(Anexo) Fuertes y Castillos","Lugar construido  fuerte, cercado de murallas, baluartes, fosos y otras fortificaciones.","15","Residencial (Tipo 5)"]
[null,null,null,null,null,null,null,null,null,null,null,null,null,null,null,null,null,null,null,null,null,null,null,null,null,null,null,null,null,null,null,null,null,null,null,"",null,null,null,null,null,null,null,null,null,null,null,null,null,null,null,null,null,null,null,null,null,null,null,null,null,null,null,null,null,null,null,null,null,null,null,null,null,null,null,null,null,2,"BALDOSÍN UNICOLOR, PAPEL COMÚN ",null,66,"(Anexo) Murallas","Se denomina muralla a un muro cerrado destinado a la protección y defensa de determinado sitio.","16","Residencial (Tipo 6)"]
[null,null,null,null,null,null,null,null,null,null,null,null,null,null,null,null,null,null,null,null,null,null,null,null,null,null,null,null,null,null,null,null,null,null,null,"",null,null,null,null,null,null,null,null,null,null,null,null,null,null,null,null,null,null,null,null,null,null,null,null,null,null,null,null,null,null,null,null,null,null,null,null,null,null,null,null,null,3,"BALDOSÍN DECORADO, PAPEL FINO",null,70,"(Residencial) Vivienda hasta 3 pisos en PH","Corresponde a edificaciones residenciales desarrolladas sobre un lote de terreno que comprende más de tres unidades prediales independientes, generalmente en edificios de varios pisos. Este tipo de vivienda prevé? áreas de servicios comunales cuya propiedad y utilización privada se definen en reglamentos de propiedad horizontal","21","Comercial y de servicios (Vecinal)"]
[null,null,null,null,null,null,null,null,null,null,null,null,null,null,null,null,null,null,null,null,null,null,null,null,null,null,null,null,null,null,null,null,null,null,null,"",null,null,null,null,null,null,null,null,null,null,null,null,null,null,null,null,null,null,null,null,null,null,null,null,null,null,null,null,null,null,null,null,null,null,null,null,null,null,null,null,null,4,"CERÁMICA CRISTANAC, GRANITO",null,71,"(Residencial) Apartamentos 4 y más pisos en PH","Es una vivienda que comprende una o más habitaciones, en un edificio de varios pisos 4 o más pisos sometido en régimen de propiedad horizontal.","22","Comercial y de servicios (Zonal)"]
[null,null,null,null,null,null,null,null,null,null,null,null,null,null,null,null,null,null,null,null,null,null,null,null,null,null,null,null,null,null,null,null,null,null,null,"",null,null,null,null,null,null,null,null,null,null,null,null,null,null,null,null,null,null,null,null,null,null,null,null,null,null,null,null,null,null,null,null,null,null,null,null,null,null,null,null,null,5,"MARMOL, ENCHAPE LUJOSO",null,72,"(Residencial) Vivienda Recreacional en PH","Es una casa cuya función arquitectónica y ambiental principal, es brindar descanso y recreación. Este tipo de vivienda  prevé? áreas de servicios comunales cuya propiedad y utilización privada se definen en reglamentos de propiedad horizontal.","23","Comercial y de servicios (Urbano)"]
[null,null,null,null,null,null,null,null,null,null,null,null,null,null,null,null,null,null,null,null,null,null,null,null,null,null,null,null,null,null,null,null,null,null,null,"",null,null,null,null,null,null,null,null,null,null,null,null,null,null,null,null,null,null,null,null,null,null,null,null,null,null,null,null,null,null,null,null,null,null,null,null,null,null,null,null,"MOBILIARIO",0,"POBRE",null,73,"(Industrial) Bodegas Casa Bomba en PH","Infraestructura de bombeo de bodegas sometidas a régimen de propiedad horizontal.","24","Comercial y de servicios (Metropolitano)"]
[null,null,null,null,null,null,null,null,null,null,null,null,null,null,null,null,null,null,null,null,null,null,null,null,null,null,null,null,null,null,null,null,null,null,null,"",null,null,null,null,null,null,null,null,null,null,null,null,null,null,null,null,null,null,null,null,null,null,null,null,null,null,null,null,null,null,null,null,null,null,null,null,null,null,null,null,null,3,"SENCILLO",null,74,"(Comercial) Bodegas Comerciales en PH","Es el espacio construido para la ejecución la recepción, almacenamiento y movimientos de materiales, materias primas y productos semielaborados, hasta el punto de consumo por un cliente externo o interno sometido a régimen de propiedad horizontal.","31","Industrial (Industria estractiva)"]
[null,null,null,null,null,null,null,null,null,null,null,null,null,null,null,null,null,null,null,null,null,null,null,null,null,null,null,null,null,null,null,null,null,null,null,"",null,null,null,null,null,null,null,null,null,null,null,null,null,null,null,null,null,null,null,null,null,null,null,null,null,null,null,null,null,null,null,null,null,null,null,null,null,null,null,null,null,6,"REGULAR",null,75,"(Comercial) Comercio en PH","Se denomina a la construcción en la cual se lleva a acabo una actividad socioeconómica que consiste en el intercambio de algunos materiales en el mercado de compra y venta de bienes sometida a régimen de propiedad horizontal","32","Industrial (Industria transformadora)"]
[null,null,null,null,null,null,null,null,null,null,null,null,null,null,null,null,null,null,null,null,null,null,null,null,null,null,null,null,null,null,null,null,null,null,null,"",null,null,null,null,null,null,null,null,null,null,null,null,null,null,null,null,null,null,null,null,null,null,null,null,null,null,null,null,null,null,null,null,null,null,null,null,null,null,null,null,null,9,"BUENO",null,76,"(Comercial) Centros Comerciales en PH","Es una construcción que consta de uno o varios edificios, por lo general de gran tamaño, que albergan servicios, locales y oficinas comerciales aglutinados en un espacio determinado concentrando mayor cantidad de clientes potenciales dentro del recinto, sometido a régimen de propiedad horizontal.","33","Industrial (talleres)"]
[null,null,null,null,null,null,null,null,null,null,null,null,null,null,null,null,null,null,null,null,null,null,null,null,null,null,null,null,null,null,null,null,null,null,null,"",null,null,null,null,null,null,null,null,null,null,null,null,null,null,null,null,null,null,null,null,null,null,null,null,null,null,null,null,null,null,null,null,null,null,null,null,null,null,null,null,null,11,"LUJOSO",null,77,"(Comercial) Oficinas Consultorios en PH","espacio construido en el que se  realiza un trabajo profesional de gestión, administración o atención médica, sometida a régimen de propiedad horizontal","34","Industrial (Bodegas de almacenamiento)"]
[null,null,null,null,null,null,null,null,null,null,null,null,null,null,null,null,null,null,null,null,null,null,null,null,null,null,null,null,null,null,null,null,null,null,null,"",null,null,null,null,null,null,null,null,null,null,null,null,null,null,null,null,null,null,null,null,null,null,null,null,null,null,null,null,null,null,null,null,null,null,null,null,null,null,null,null,null,null,null,null,78,"(Comercial) Parqueaderos en PH","Es el espacio o se destina a guardar o arrendar espacios para depositar vehículos dentro de una edificación construida privado o comunal bajo régimen de propiedad horizontal","41","Equipamiento Colectivo de educación"]
[null,null,null,null,null,null,null,null,null,null,null,null,null,null,null,null,null,null,null,null,null,null,null,null,null,null,null,null,null,null,null,null,null,null,null,"",null,null,null,null,null,null,null,null,null,null,null,null,null,null,null,null,null,null,null,null,null,null,null,null,null,null,null,null,null,null,null,null,null,null,null,null,null,null,null,null,"CONSERVACIÓN",0,"MALO",null,79,"(Residencial) Garajes en PH","Es el lugar cubierto, destinado al estacionamiento privado o comunal en viviendas sometidas a régimen de propiedad  horizontal.","42","Equipamiento Colectivo de salud"]
[null,null,null,null,null,null,null,null,null,null,null,null,null,null,null,null,null,null,null,null,null,null,null,null,null,null,null,null,null,null,null,null,null,null,null,"",null,null,null,null,null,null,null,null,null,null,null,null,null,null,null,null,null,null,null,null,null,null,null,null,null,null,null,null,null,null,null,null,null,null,null,null,null,null,null,null,null,2,"REGULAR",null,80,"(Industrial) Industrias en PH","Conjunto de instalaciones sometidas a régimen de propiedad horizontal dedicadas a la actividad de transformar las materias primas en productos elaborados","43","Equipamiento Colectivo cultura y bienestar Social"]
[null,null,null,null,null,null,null,null,null,null,null,null,null,null,null,null,null,null,null,null,null,null,null,null,null,null,null,null,null,null,null,null,null,null,null,"",null,null,null,null,null,null,null,null,null,null,null,null,null,null,null,null,null,null,null,null,null,null,null,null,null,null,null,null,null,null,null,null,null,null,null,null,null,null,null,null,null,4,"BUENO",null,82,"(Anexo) Marquesinas - Patios Cubiertos","Cobertizo dentro de una edificación de mayor extensión o patio cubierto, clasificados según su estructura, pisos y el material de la cubierta.","44","Serv. Urbanos básicos de servicios de la administración Pública."]
[null,null,null,null,null,null,null,null,null,null,null,null,null,null,null,null,null,null,null,null,null,null,null,null,null,null,null,null,null,null,null,null,null,null,null,{"$f":"+IF(L4=\"\",\"\",L4)","v":""},null,null,null,null,null,null,null,null,null,null,null,null,null,null,null,null,null,null,null,null,null,null,null,null,null,null,null,null,null,null,null,null,null,null,null,null,null,null,null,null,null,5,"EXCELENTE",null,83,"(Anexo) Lagunas de Oxidación","Son depósitos construidos mediante la excavación y compactación de la tierra que almacenan agua de cualquier calidad por un periodo determinado","45","Colectivo Culto."]
[null,null,null,null,null,null,null,null,null,null,null,null,null,null,null,null,null,null,null,null,null,null,null,null,null,null,null,null,null,null,null,null,null,null,null,"",null,null,null,null,null,null,null,null,null,null,null,null,null,null,null,null,null,null,null,null,null,null,null,null,null,null,null,null,null,null,null,null,null,null,null,null,null,null,null,null,null,null,null,null,84,"(Anexo) Vía Férrea","Parte de la infraestructura ferroviaria que une dos puntos determinados del territorio","46","Serv. Urbanos básicos abastecimiento de alimentos y seguridad alimentaria"]
[null,null,null,null,null,null,null,null,null,null,null,null,null,null,null,null,null,null,null,null,null,null,null,null,null,null,null,null,null,null,null,null,null,null,null,"",null,null,null,null,null,null,null,null,null,null,null,null,null,null,null,null,null,null,null,null,null,null,null,null,null,null,null,null,null,null,null,null,null,null,null,null,null,null,null,"COCINA","TAMAÑO",0,"SIN COCINA",null,85,"(Anexo) Carretera","Es una vía de transporte de dominio y uso público, proyectada y construida fundamentalmente para la circulación de vehículos automóviles","47","Servicios Urbanos básicos recintos feriales"]
[null,null,null,null,null,null,null,null,null,null,null,null,null,null,null,null,null,null,null,null,null,null,null,null,null,null,null,null,null,null,null,null,null,null,null,"",null,null,null,null,null,null,null,null,null,null,null,null,null,null,null,null,null,null,null,null,null,null,null,null,null,null,null,null,null,null,null,null,null,null,null,null,null,null,null,null,null,1,"PEQUEÑO (0-5 M2)",null,86,"(Comercial) Teatro - Cinemas en PH","Establecimiento destinado a la proyección de películas cinematográficas sometida o la presentación de obras artísticas actores o musicales en un predio sometido en régimen de propiedad horizontal","48","Servicios Urbanos básicos cementerios y servicios funerarios"]
[null,null,null,null,null,null,null,null,null,null,null,null,null,null,null,null,null,null,null,null,null,null,null,null,null,null,null,null,null,null,null,null,null,null,null,"",null,null,null,null,null,null,null,null,null,null,null,null,null,null,null,null,null,null,null,null,null,null,null,null,null,null,null,null,null,null,null,null,null,null,null,null,null,null,null,null,null,2,"MEDIANO (4-10 M2)",null,87,"(Institucional) Iglesia en PH","Edificación en la que se reúnen y consagran a los fieles que le rinden culto a un ser superior sometido a régimen de propiedad horizontal","49","Servicios Públicos y de transporte"]
[null,null,null,null,null,null,null,null,null,null,null,null,null,null,null,null,null,null,null,null,null,null,null,null,null,null,null,null,null,null,null,null,null,null,null,"",null,null,null,null,null,null,null,null,null,null,null,null,null,null,null,null,null,null,null,null,null,null,null,null,null,null,null,null,null,null,null,null,null,null,null,null,null,null,null,null,null,3,"GRANDE >10 M2",null,88,"(Comercial) Restaurantes en PH","Establecimiento en el que se preparan y sirven comidas sometido a régimen de propiedad horizontal.","40","Serv. Urbanos básicos seguridad ciudadana, defensa y justicia"]
[null,null,null,null,null,null,null,null,null,null,null,null,null,null,null,null,null,null,null,null,null,null,null,null,null,null,null,null,null,null,null,null,null,null,null,"",null,null,null,null,null,null,null,null,null,null,null,null,null,null,null,null,null,null,null,null,null,null,null,null,null,null,null,null,null,null,null,null,null,null,null,null,null,null,null,null,null,null,null,null,89,"(Comercial) Hotel Colonial","Establecimiento que ocupa un edificio total o parcialmente con uso exclusivo de sus servicios (entradas, ascensores, escaleras, etc.) y que ofrece alojamiento y posee características arquitectónicas coloniales.","51","Espacio publico vial"]
[null,null,null,null,null,null,null,null,null,null,null,null,null,null,null,null,null,null,null,null,null,null,null,null,null,null,null,null,null,null,null,null,null,null,null,"",null,null,null,null,null,null,null,null,null,null,null,null,null,null,null,null,null,null,null,null,null,null,null,null,null,null,null,null,null,null,null,null,null,null,null,null,null,null,null,null,"ENCHAPES",0,"SIN CUBRIMIENTO",null,90,"(Comercial) Restaurante Colonial","Establecimiento con características arquitectónicas coloniales en el que se preparan y sirven comidas.","52","Espacio público de zonas verdes"]
[null,null,null,null,null,null,null,null,null,null,null,null,null,null,null,null,null,null,null,null,null,null,null,null,null,null,null,null,null,null,null,null,null,null,null,"",null,null,null,null,null,null,null,null,null,null,null,null,null,null,null,null,null,null,null,null,null,null,null,null,null,null,null,null,null,null,null,null,null,null,null,null,null,null,null,null,null,1,"PAÑETE BALDOSA COMÚN CEMENTO",null,91,"(Institucional) Entidad educativa colonial colegio colonial","Institución edificada construcción con características arquitectónicas coloniales destinada a la enseñanza primaria","53","Espacio público de parques"]
[null,null,null,null,null,null,null,null,null,null,null,null,null,null,null,null,null,null,null,null,null,null,null,null,null,null,null,null,null,null,null,null,null,null,null,"",null,null,null,null,null,null,null,null,null,null,null,null,null,null,null,null,null,null,null,null,null,null,null,null,null,null,null,null,null,null,null,null,null,null,null,null,null,null,null,null,null,2,"BALDOSÍN UNICOLOR, PAPEL COMÚN ",null,99,"(Anexo) Unidad predial por construir","Se le asigna a las unidades prediales no edificadas o por construir","54","Otros espacios públicos"]
[null,null,null,null,null,null,null,null,null,null,null,null,null,null,null,null,null,null,null,null,null,null,null,null,null,null,null,null,null,null,null,null,null,null,null,"",null,null,null,null,null,null,null,null,null,null,null,null,null,null,null,null,null,null,null,null,null,null,null,null,null,null,null,null,null,null,null,null,null,null,null,null,null,null,null,null,null,3,"BALDOSÍN DECORADO, PAPEL FINO",null,null,null,null,"61","Parques"]
[null,null,null,null,null,null,null,null,null,null,null,null,null,null,null,null,null,null,null,null,null,null,null,null,null,null,null,null,null,null,null,null,null,null,null,"",null,null,null,null,null,null,null,null,null,null,null,null,null,null,null,null,null,null,null,null,null,null,null,null,null,null,null,null,null,null,null,null,null,null,null,null,null,null,null,null,null,4,"CERÁMICA CRISTANAC, GRANITO",null,null,null,null,"62","Clubes y Parques privados"]
[null,null,null,null,null,null,null,null,null,null,null,null,null,null,null,null,null,null,null,null,null,null,null,null,null,null,null,null,null,null,null,null,null,null,null,"",null,null,null,null,null,null,null,null,null,null,null,null,null,null,null,null,null,null,null,null,null,null,null,null,null,null,null,null,null,null,null,null,null,null,null,null,null,null,null,null,null,5,"MARMOL, ENCHAPE LUJOSO",null,null,null,null,"63","Instalaciones deportivas."]
[null,null,null,null,null,null,null,null,null,null,null,null,null,null,null,null,null,null,null,null,null,null,null,null,null,null,null,null,null,null,null,null,null,null,null,"",null,null,null,null,null,null,null,null,null,null,null,null,null,null,null,null,null,null,null,null,null,null,null,null,null,null,null,null,null,null,null,null,null,null,null,null,null,null,null,null,"MOBILIARIO",0,"POBRE",null,null,null,null,"8","Espacio público"]
[null,null,null,null,null,null,null,null,null,null,null,null,null,null,null,null,null,null,null,null,null,null,null,null,null,null,null,null,null,null,null,null,null,null,null,"",null,null,null,null,null,null,null,null,null,null,null,null,null,null,null,null,null,null,null,null,null,null,null,null,null,null,null,null,null,null,null,null,null,null,null,null,null,null,null,null,null,2,"SENCILLO",null,null,null,null,null,"Dotacional Público"]
[null,null,null,null,null,null,null,null,null,null,null,null,null,null,null,null,null,null,null,null,null,null,null,null,null,null,null,null,null,null,null,null,null,null,null,"",null,null,null,null,null,null,null,null,null,null,null,null,null,null,null,null,null,null,null,null,null,null,null,null,null,null,null,null,null,null,null,null,null,null,null,null,null,null,null,null,null,3,"REGULAR"]
[null,null,null,null,null,null,null,null,null,null,null,null,null,null,null,null,null,null,null,null,null,null,null,null,null,null,null,null,null,null,null,null,null,null,null,{"$f":"+IF(N4=\"\",\"\",N4)","v":""},null,null,null,null,null,null,null,null,null,null,null,null,null,null,null,null,null,null,null,null,null,null,null,null,null,null,null,null,null,null,null,null,null,null,null,null,null,null,null,null,null,4,"BUENO"]
[null,null,null,null,null,null,null,null,null,null,null,null,null,null,null,null,null,null,null,null,null,null,null,null,null,null,null,null,null,null,null,null,null,null,null,"",null,null,null,null,null,null,null,null,null,null,null,null,null,null,null,null,null,null,null,null,null,null,null,null,null,null,null,null,null,null,null,null,null,null,null,null,null,null,null,null,null,6,"LUJOSO"]
[null,null,null,null,null,null,null,null,null,null,null,null,null,null,null,null,null,null,null,null,null,null,null,null,null,null,null,null,null,null,null,null,null,null,null,""]
[null,null,null,null,null,null,null,null,null,null,null,null,null,null,null,null,null,null,null,null,null,null,null,null,null,null,null,null,null,null,null,null,null,null,null,"",null,null,null,null,null,null,null,null,null,null,null,null,null,null,null,null,null,null,null,null,null,null,null,null,null,null,null,null,null,null,null,null,null,null,null,null,null,null,null,null,"CONSERVACION",0,"MALO"]
[null,null,null,null,null,null,null,null,null,null,null,null,null,null,null,null,null,null,null,null,null,null,null,null,null,null,null,null,null,null,null,null,null,null,null,"",null,null,null,null,null,null,null,null,null,null,null,null,null,null,null,null,null,null,null,null,null,null,null,null,null,null,null,null,null,null,null,null,null,null,null,null,null,null,null,null,null,2,"REGULAR"]
[null,null,null,null,null,null,null,null,null,null,null,null,null,null,null,null,null,null,null,null,null,null,null,null,null,null,null,null,null,null,null,null,null,null,null,"",null,null,null,null,null,null,null,null,null,null,null,null,null,null,null,null,null,null,null,null,null,null,null,null,null,null,null,null,null,null,null,null,null,null,null,null,null,null,null,null,null,4,"BUENO"]
[null,null,null,null,null,null,null,null,null,null,null,null,null,null,null,null,null,null,null,null,null,null,null,null,null,null,null,null,null,null,null,null,null,null,null,"",null,null,null,null,null,null,null,null,null,null,null,null,null,null,null,null,null,null,null,null,null,null,null,null,null,null,null,null,null,null,null,null,null,null,null,null,null,null,null,null,null,5,"EXCELENTE"]
[null,null,null,null,null,null,null,null,null,null,null,null,null,null,null,null,null,null,null,null,null,null,null,null,null,null,null,null,null,null,null,null,null,null,null,""]
[null,null,null,null,null,null,null,null,null,null,null,null,null,null,null,null,null,null,null,null,null,null,null,null,null,null,null,null,null,null,null,null,null,null,null,"",null,null,null,null,null,null,null,null,null,null,null,null,null,null,null,null,null,null,null,null,null,null,null,null,null,null,null,null,null,null,null,null,null,null,null,null,null,null,null,"ESTRUCTURA","ARMAZON",4,"MADERA"]
[null,null,null,null,null,null,null,null,null,null,null,null,null,null,null,null,null,null,null,null,null,null,null,null,null,null,null,null,null,null,null,null,null,null,null,"",null,null,null,null,null,null,null,null,null,null,null,null,null,null,null,null,null,null,null,null,null,null,null,null,null,null,null,null,null,null,null,null,null,null,null,null,null,null,"COMERCIAL",null,null,8,"PREFABRICADO"]
[null,null,null,null,null,null,null,null,null,null,null,null,null,null,null,null,null,null,null,null,null,null,null,null,null,null,null,null,null,null,null,null,null,null,null,"",null,null,null,null,null,null,null,null,null,null,null,null,null,null,null,null,null,null,null,null,null,null,null,null,null,null,null,null,null,null,null,null,null,null,null,null,null,null,null,null,null,12,"LADRILLO, BLOQUE"]
[null,null,null,null,null,null,null,null,null,null,null,null,null,null,null,null,null,null,null,null,null,null,null,null,null,null,null,null,null,null,null,null,null,null,null,"",null,null,null,null,null,null,null,null,null,null,null,null,null,null,null,null,null,null,null,null,null,null,null,null,null,null,null,null,null,null,null,null,null,null,null,null,null,null,null,null,null,22,"CONCRETO HASTA TRES PISOS"]
[null,null,null,null,null,null,null,null,null,null,null,null,null,null,null,null,null,null,null,null,null,null,null,null,null,null,null,null,null,null,null,null,null,null,null,"",null,null,null,null,null,null,null,null,null,null,null,null,null,null,null,null,null,null,null,null,null,null,null,null,null,null,null,null,null,null,null,null,null,null,null,null,null,null,null,null,null,23,"CONCRETO CUATRO O MÁS PISOS"]
[null,null,null,null,null,null,null,null,null,null,null,null,null,null,null,null,null,null,null,null,null,null,null,null,null,null,null,null,null,null,null,null,null,null,null,""]
[null,null,null,null,null,null,null,null,null,null,null,null,null,null,null,null,null,null,null,null,null,null,null,null,null,null,null,null,null,null,null,null,null,null,null,"",null,null,null,null,null,null,null,null,null,null,null,null,null,null,null,null,null,null,null,null,null,null,null,null,null,null,null,null,null,null,null,null,null,null,null,null,null,null,null,null,"MUROS",0,"MATERIALES DE DESHECHO, ESTERILLA"]
[null,null,null,null,null,null,null,null,null,null,null,null,null,null,null,null,null,null,null,null,null,null,null,null,null,null,null,null,null,null,null,null,null,null,null,"",null,null,null,null,null,null,null,null,null,null,null,null,null,null,null,null,null,null,null,null,null,null,null,null,null,null,null,null,null,null,null,null,null,null,null,null,null,null,null,null,null,1,"BAHAREQUE ADOBE, TAPIA"]
[null,null,null,null,null,null,null,null,null,null,null,null,null,null,null,null,null,null,null,null,null,null,null,null,null,null,null,null,null,null,null,null,null,null,null,{"$f":"+IF(P4=\"\",\"\",P4)","v":""},null,null,null,null,null,null,null,null,null,null,null,null,null,null,null,null,null,null,null,null,null,null,null,null,null,null,null,null,null,null,null,null,null,null,null,null,null,null,null,null,null,2,"MADERA"]
[null,null,null,null,null,null,null,null,null,null,null,null,null,null,null,null,null,null,null,null,null,null,null,null,null,null,null,null,null,null,null,null,null,null,null,"",null,null,null,null,null,null,null,null,null,null,null,null,null,null,null,null,null,null,null,null,null,null,null,null,null,null,null,null,null,null,null,null,null,null,null,null,null,null,null,null,null,3,"CONCRETO PREFABRICADO"]
[null,null,null,null,null,null,null,null,null,null,null,null,null,null,null,null,null,null,null,null,null,null,null,null,null,null,null,null,null,null,null,null,null,null,null,"",null,null,null,null,null,null,null,null,null,null,null,null,null,null,null,null,null,null,null,null,null,null,null,null,null,null,null,null,null,null,null,null,null,null,null,null,null,null,null,null,null,4,"BLOQUE LADRILLO"]
[null,null,null,null,null,null,null,null,null,null,null,null,null,null,null,null,null,null,null,null,null,null,null,null,null,null,null,null,null,null,null,null,null,null,null,""]
[null,null,null,null,null,null,null,null,null,null,null,null,null,null,null,null,null,null,null,null,null,null,null,null,null,null,null,null,null,null,null,null,null,null,null,"",null,null,null,null,null,null,null,null,null,null,null,null,null,null,null,null,null,null,null,null,null,null,null,null,null,null,null,null,null,null,null,null,null,null,null,null,null,null,null,null,"CUBIERTA",1,"MATERIALES DE DESHECHO TELAS ASFÁLTICAS"]
[null,null,null,null,null,null,null,null,null,null,null,null,null,null,null,null,null,null,null,null,null,null,null,null,null,null,null,null,null,null,null,null,null,null,null,"",null,null,null,null,null,null,null,null,null,null,null,null,null,null,null,null,null,null,null,null,null,null,null,null,null,null,null,null,null,null,null,null,null,null,null,null,null,null,null,null,null,3,"ZINC TEJA DE BARRO ETERNIT RÚSTICO"]
[null,null,null,null,null,null,null,null,null,null,null,null,null,null,null,null,null,null,null,null,null,null,null,null,null,null,null,null,null,null,null,null,null,null,null,"",null,null,null,null,null,null,null,null,null,null,null,null,null,null,null,null,null,null,null,null,null,null,null,null,null,null,null,null,null,null,null,null,null,null,null,null,null,null,null,null,null,6,"ENTREPISO (CUBIERTA PROVISIONAL)"]
[null,null,null,null,null,null,null,null,null,null,null,null,null,null,null,null,null,null,null,null,null,null,null,null,null,null,null,null,null,null,null,null,null,null,null,"",null,null,null,null,null,null,null,null,null,null,null,null,null,null,null,null,null,null,null,null,null,null,null,null,null,null,null,null,null,null,null,null,null,null,null,null,null,null,null,null,null,9,"ETERNIT O TEJA DE BARRO (CUB. SENCILLA)"]
[null,null,null,null,null,null,null,null,null,null,null,null,null,null,null,null,null,null,null,null,null,null,null,null,null,null,null,null,null,null,null,null,null,null,null,"",null,null,null,null,null,null,null,null,null,null,null,null,null,null,null,null,null,null,null,null,null,null,null,null,null,null,null,null,null,null,null,null,null,null,null,null,null,null,null,null,null,13,"AZOTEA ALUMINIO, PLACA SENCILLA"]
[null,null,null,null,null,null,null,null,null,null,null,null,null,null,null,null,null,null,null,null,null,null,null,null,null,null,null,null,null,null,null,null,null,null,null,"",null,null,null,null,null,null,null,null,null,null,null,null,null,null,null,null,null,null,null,null,null,null,null,null,null,null,null,null,null,null,null,null,null,null,null,null,null,null,null,null,null,16,"PLACA IMPERMEABILIZADA CUB. LUJOSA"]
[null,null,null,null,null,null,null,null,null,null,null,null,null,null,null,null,null,null,null,null,null,null,null,null,null,null,null,null,null,null,null,null,null,null,null,""]
[null,null,null,null,null,null,null,null,null,null,null,null,null,null,null,null,null,null,null,null,null,null,null,null,null,null,null,null,null,null,null,null,null,null,null,"",null,null,null,null,null,null,null,null,null,null,null,null,null,null,null,null,null,null,null,null,null,null,null,null,null,null,null,null,null,null,null,null,null,null,null,null,null,null,null,null,"CONSERVACION",0,"MALO"]
[null,null,null,null,null,null,null,null,null,null,null,null,null,null,null,null,null,null,null,null,null,null,null,null,null,null,null,null,null,null,null,null,null,null,null,"",null,null,null,null,null,null,null,null,null,null,null,null,null,null,null,null,null,null,null,null,null,null,null,null,null,null,null,null,null,null,null,null,null,null,null,null,null,null,null,null,null,2,"REGULAR"]
[null,null,null,null,null,null,null,null,null,null,null,null,null,null,null,null,null,null,null,null,null,null,null,null,null,null,null,null,null,null,null,null,null,null,null,"",null,null,null,null,null,null,null,null,null,null,null,null,null,null,null,null,null,null,null,null,null,null,null,null,null,null,null,null,null,null,null,null,null,null,null,null,null,null,null,null,null,4,"BUENO"]
[null,null,null,null,null,null,null,null,null,null,null,null,null,null,null,null,null,null,null,null,null,null,null,null,null,null,null,null,null,null,null,null,null,null,null,"",null,null,null,null,null,null,null,null,null,null,null,null,null,null,null,null,null,null,null,null,null,null,null,null,null,null,null,null,null,null,null,null,null,null,null,null,null,null,null,null,null,5,"EXCELENTE"]
[null,null,null,null,null,null,null,null,null,null,null,null,null,null,null,null,null,null,null,null,null,null,null,null,null,null,null,null,null,null,null,null,null,null,null,""]
[null,null,null,null,null,null,null,null,null,null,null,null,null,null,null,null,null,null,null,null,null,null,null,null,null,null,null,null,null,null,null,null,null,null,null,{"$f":"+IF(U4=\"\",\"\",U4)","v":""},null,null,null,null,null,null,null,null,null,null,null,null,null,null,null,null,null,null,null,null,null,null,null,null,null,null,null,null,null,null,null,null,null,null,null,null,null,null,null,"ACABADOS PRINCIPALES","FACHADA",2,"POBRE"]
[null,null,null,null,null,null,null,null,null,null,null,null,null,null,null,null,null,null,null,null,null,null,null,null,null,null,null,null,null,null,null,null,null,null,null,"",null,null,null,null,null,null,null,null,null,null,null,null,null,null,null,null,null,null,null,null,null,null,null,null,null,null,null,null,null,null,null,null,null,null,null,null,null,null,null,null,null,4,"SENCILLA"]
[null,null,null,null,null,null,null,null,null,null,null,null,null,null,null,null,null,null,null,null,null,null,null,null,null,null,null,null,null,null,null,null,null,null,null,"",null,null,null,null,null,null,null,null,null,null,null,null,null,null,null,null,null,null,null,null,null,null,null,null,null,null,null,null,null,null,null,null,null,null,null,null,null,null,null,null,null,6,"REGULAR"]
[null,null,null,null,null,null,null,null,null,null,null,null,null,null,null,null,null,null,null,null,null,null,null,null,null,null,null,null,null,null,null,null,null,null,null,"",null,null,null,null,null,null,null,null,null,null,null,null,null,null,null,null,null,null,null,null,null,null,null,null,null,null,null,null,null,null,null,null,null,null,null,null,null,null,null,null,null,8,"BUENA"]
[null,null,null,null,null,null,null,null,null,null,null,null,null,null,null,null,null,null,null,null,null,null,null,null,null,null,null,null,null,null,null,null,null,null,null,"",null,null,null,null,null,null,null,null,null,null,null,null,null,null,null,null,null,null,null,null,null,null,null,null,null,null,null,null,null,null,null,null,null,null,null,null,null,null,null,null,null,12,"LUJOSA"]
[null,null,null,null,null,null,null,null,null,null,null,null,null,null,null,null,null,null,null,null,null,null,null,null,null,null,null,null,null,null,null,null,null,null,null,""]
[null,null,null,null,null,null,null,null,null,null,null,null,null,null,null,null,null,null,null,null,null,null,null,null,null,null,null,null,null,null,null,null,null,null,null,"",null,null,null,null,null,null,null,null,null,null,null,null,null,null,null,null,null,null,null,null,null,null,null,null,null,null,null,null,null,null,null,null,null,null,null,null,null,null,null,null,"CUBRIMIENTO DE MUROS",0,"SIN CUBRIMIENTO"]
[null,null,null,null,null,null,null,null,null,null,null,null,null,null,null,null,null,null,null,null,null,null,null,null,null,null,null,null,null,null,null,null,null,null,null,"",null,null,null,null,null,null,null,null,null,null,null,null,null,null,null,null,null,null,null,null,null,null,null,null,null,null,null,null,null,null,null,null,null,null,null,null,null,null,null,null,null,2,"PAÑETE, LADRILLO PRENSADO"]
[null,null,null,null,null,null,null,null,null,null,null,null,null,null,null,null,null,null,null,null,null,null,null,null,null,null,null,null,null,null,null,null,null,null,null,"",null,null,null,null,null,null,null,null,null,null,null,null,null,null,null,null,null,null,null,null,null,null,null,null,null,null,null,null,null,null,null,null,null,null,null,null,null,null,null,null,null,3,"ESTUCO, CERÁMICA, PAPEL DE COLGADURA"]
[null,null,null,null,null,null,null,null,null,null,null,null,null,null,null,null,null,null,null,null,null,null,null,null,null,null,null,null,null,null,null,null,null,null,null,"",null,null,null,null,null,null,null,null,null,null,null,null,null,null,null,null,null,null,null,null,null,null,null,null,null,null,null,null,null,null,null,null,null,null,null,null,null,null,null,null,null,5,"MADERA, PIEDRA ORNAMENTAL"]
[null,null,null,null,null,null,null,null,null,null,null,null,null,null,null,null,null,null,null,null,null,null,null,null,null,null,null,null,null,null,null,null,null,null,null,"",null,null,null,null,null,null,null,null,null,null,null,null,null,null,null,null,null,null,null,null,null,null,null,null,null,null,null,null,null,null,null,null,null,null,null,null,null,null,null,null,null,7,"MARMOL LUJOS Y OTROS"]
[null,null,null,null,null,null,null,null,null,null,null,null,null,null,null,null,null,null,null,null,null,null,null,null,null,null,null,null,null,null,null,null,null,null,null,""]
[null,null,null,null,null,null,null,null,null,null,null,null,null,null,null,null,null,null,null,null,null,null,null,null,null,null,null,null,null,null,null,null,null,null,null,"",null,null,null,null,null,null,null,null,null,null,null,null,null,null,null,null,null,null,null,null,null,null,null,null,null,null,null,null,null,null,null,null,null,null,null,null,null,null,null,null,"PISOS",0,"TIERRA PISADA"]
[null,null,null,null,null,null,null,null,null,null,null,null,null,null,null,null,null,null,null,null,null,null,null,null,null,null,null,null,null,null,null,null,null,null,null,"",null,null,null,null,null,null,null,null,null,null,null,null,null,null,null,null,null,null,null,null,null,null,null,null,null,null,null,null,null,null,null,null,null,null,null,null,null,null,null,null,null,3,"CEMENTO, MADERA BURDA"]
[null,null,null,null,null,null,null,null,null,null,null,null,null,null,null,null,null,null,null,null,null,null,null,null,null,null,null,null,null,null,null,null,null,null,null,"",null,null,null,null,null,null,null,null,null,null,null,null,null,null,null,null,null,null,null,null,null,null,null,null,null,null,null,null,null,null,null,null,null,null,null,null,null,null,null,null,null,5,"BALDOSA COMÚN CEMENTO, TABLÓN LAD"]
[null,null,null,null,null,null,null,null,null,null,null,null,null,null,null,null,null,null,null,null,null,null,null,null,null,null,null,null,null,null,null,null,null,null,null,"",null,null,null,null,null,null,null,null,null,null,null,null,null,null,null,null,null,null,null,null,null,null,null,null,null,null,null,null,null,null,null,null,null,null,null,null,null,null,null,null,null,7,"LISTÓN MACHIEMBRIADO."]
[null,null,null,null,null,null,null,null,null,null,null,null,null,null,null,null,null,null,null,null,null,null,null,null,null,null,null,null,null,null,null,null,null,null,null,"",null,null,null,null,null,null,null,null,null,null,null,null,null,null,null,null,null,null,null,null,null,null,null,null,null,null,null,null,null,null,null,null,null,null,null,null,null,null,null,null,null,9,"TABLETA, CAUCHO, ACRÍLICO, GRANITO, BALDOSA FINA"]
[null,null,null,null,null,null,null,null,null,null,null,null,null,null,null,null,null,null,null,null,null,null,null,null,null,null,null,null,null,null,null,null,null,null,null,"",null,null,null,null,null,null,null,null,null,null,null,null,null,null,null,null,null,null,null,null,null,null,null,null,null,null,null,null,null,null,null,null,null,null,null,null,null,null,null,null,null,11,"PARQUET, ALFOMBRA, RELATL DE MARMOL"]
[null,null,null,null,null,null,null,null,null,null,null,null,null,null,null,null,null,null,null,null,null,null,null,null,null,null,null,null,null,null,null,null,null,null,null,{"$f":"+IF(W4=\"\",\"\",W4)","v":""},null,null,null,null,null,null,null,null,null,null,null,null,null,null,null,null,null,null,null,null,null,null,null,null,null,null,null,null,null,null,null,null,null,null,null,null,null,null,null,null,null,13,"RETAL DE MARMOL, MARMOL, OTROS LUJOS"]
[null,null,null,null,null,null,null,null,null,null,null,null,null,null,null,null,null,null,null,null,null,null,null,null,null,null,null,null,null,null,null,null,null,null,null,""]
[null,null,null,null,null,null,null,null,null,null,null,null,null,null,null,null,null,null,null,null,null,null,null,null,null,null,null,null,null,null,null,null,null,null,null,"",null,null,null,null,null,null,null,null,null,null,null,null,null,null,null,null,null,null,null,null,null,null,null,null,null,null,null,null,null,null,null,null,null,null,null,null,null,null,null,null,"CONSERVACIÓN",0,"MALO"]
[null,null,null,null,null,null,null,null,null,null,null,null,null,null,null,null,null,null,null,null,null,null,null,null,null,null,null,null,null,null,null,null,null,null,null,"",null,null,null,null,null,null,null,null,null,null,null,null,null,null,null,null,null,null,null,null,null,null,null,null,null,null,null,null,null,null,null,null,null,null,null,null,null,null,null,null,null,2,"REGULAR"]
[null,null,null,null,null,null,null,null,null,null,null,null,null,null,null,null,null,null,null,null,null,null,null,null,null,null,null,null,null,null,null,null,null,null,null,"",null,null,null,null,null,null,null,null,null,null,null,null,null,null,null,null,null,null,null,null,null,null,null,null,null,null,null,null,null,null,null,null,null,null,null,null,null,null,null,null,null,4,"BUENO"]
[null,null,null,null,null,null,null,null,null,null,null,null,null,null,null,null,null,null,null,null,null,null,null,null,null,null,null,null,null,null,null,null,null,null,null,"",null,null,null,null,null,null,null,null,null,null,null,null,null,null,null,null,null,null,null,null,null,null,null,null,null,null,null,null,null,null,null,null,null,null,null,null,null,null,null,null,null,5,"EXCELENTE"]
[null,null,null,null,null,null,null,null,null,null,null,null,null,null,null,null,null,null,null,null,null,null,null,null,null,null,null,null,null,null,null,null,null,null,null,""]
[null,null,null,null,null,null,null,null,null,null,null,null,null,null,null,null,null,null,null,null,null,null,null,null,null,null,null,null,null,null,null,null,null,null,null,"",null,null,null,null,null,null,null,null,null,null,null,null,null,null,null,null,null,null,null,null,null,null,null,null,null,null,null,null,null,null,null,null,null,null,null,null,null,null,null,"BAÑO","BAÑO",0,"POBRE"]
[null,null,null,null,null,null,null,null,null,null,null,null,null,null,null,null,null,null,null,null,null,null,null,null,null,null,null,null,null,null,null,null,null,null,null,"",null,null,null,null,null,null,null,null,null,null,null,null,null,null,null,null,null,null,null,null,null,null,null,null,null,null,null,null,null,null,null,null,null,null,null,null,null,null,null,null,null,3,"SENCILLO"]
[null,null,null,null,null,null,null,null,null,null,null,null,null,null,null,null,null,null,null,null,null,null,null,null,null,null,null,null,null,null,null,null,null,null,null,"",null,null,null,null,null,null,null,null,null,null,null,null,null,null,null,null,null,null,null,null,null,null,null,null,null,null,null,null,null,null,null,null,null,null,null,null,null,null,null,null,null,6,"REGULAR"]
[null,null,null,null,null,null,null,null,null,null,null,null,null,null,null,null,null,null,null,null,null,null,null,null,null,null,null,null,null,null,null,null,null,null,null,"",null,null,null,null,null,null,null,null,null,null,null,null,null,null,null,null,null,null,null,null,null,null,null,null,null,null,null,null,null,null,null,null,null,null,null,null,null,null,null,null,null,9,"BUENO"]
[null,null,null,null,null,null,null,null,null,null,null,null,null,null,null,null,null,null,null,null,null,null,null,null,null,null,null,null,null,null,null,null,null,null,null,"",null,null,null,null,null,null,null,null,null,null,null,null,null,null,null,null,null,null,null,null,null,null,null,null,null,null,null,null,null,null,null,null,null,null,null,null,null,null,null,null,null,16,"LUJOSO"]
[null,null,null,null,null,null,null,null,null,null,null,null,null,null,null,null,null,null,null,null,null,null,null,null,null,null,null,null,null,null,null,null,null,null,null,""]
[null,null,null,null,null,null,null,null,null,null,null,null,null,null,null,null,null,null,null,null,null,null,null,null,null,null,null,null,null,null,null,null,null,null,null,"",null,null,null,null,null,null,null,null,null,null,null,null,null,null,null,null,null,null,null,null,null,null,null,null,null,null,null,null,null,null,null,null,null,null,null,null,null,null,null,"COCINA","COCINA",0,"POBRE"]
[null,null,null,null,null,null,null,null,null,null,null,null,null,null,null,null,null,null,null,null,null,null,null,null,null,null,null,null,null,null,null,null,null,null,null,"",null,null,null,null,null,null,null,null,null,null,null,null,null,null,null,null,null,null,null,null,null,null,null,null,null,null,null,null,null,null,null,null,null,null,null,null,null,null,null,null,null,3,"SENCILLO"]
[null,null,null,null,null,null,null,null,null,null,null,null,null,null,null,null,null,null,null,null,null,null,null,null,null,null,null,null,null,null,null,null,null,null,null,"",null,null,null,null,null,null,null,null,null,null,null,null,null,null,null,null,null,null,null,null,null,null,null,null,null,null,null,null,null,null,null,null,null,null,null,null,null,null,null,null,null,6,"REGULAR"]
[null,null,null,null,null,null,null,null,null,null,null,null,null,null,null,null,null,null,null,null,null,null,null,null,null,null,null,null,null,null,null,null,null,null,null,"",null,null,null,null,null,null,null,null,null,null,null,null,null,null,null,null,null,null,null,null,null,null,null,null,null,null,null,null,null,null,null,null,null,null,null,null,null,null,null,null,null,9,"BUENO"]
[null,null,null,null,null,null,null,null,null,null,null,null,null,null,null,null,null,null,null,null,null,null,null,null,null,null,null,null,null,null,null,null,null,null,null,"",null,null,null,null,null,null,null,null,null,null,null,null,null,null,null,null,null,null,null,null,null,null,null,null,null,null,null,null,null,null,null,null,null,null,null,null,null,null,null,null,null,13,"LUJOSO"]
[null,null,null,null,null,null,null,null,null,null,null,null,null,null,null,null,null,null,null,null,null,null,null,null,null,null,null,null,null,null,null,null,null,null,null,{"$f":"+IF(Y4=\"\",\"\",Y4)","v":""}]
[null,null,null,null,null,null,null,null,null,null,null,null,null,null,null,null,null,null,null,null,null,null,null,null,null,null,null,null,null,null,null,null,null,null,null,"",null,null,null,null,null,null,null,null,null,null,null,null,null,null,null,null,null,null,null,null,null,null,null,null,null,null,null,null,null,null,null,null,null,null,null,null,null,null,null,"COMP IND","COMP IND",6,"MADERA"]
[null,null,null,null,null,null,null,null,null,null,null,null,null,null,null,null,null,null,null,null,null,null,null,null,null,null,null,null,null,null,null,null,null,null,null,"",null,null,null,null,null,null,null,null,null,null,null,null,null,null,null,null,null,null,null,null,null,null,null,null,null,null,null,null,null,null,null,null,null,null,null,null,null,null,null,null,null,12,"METÁLICA LIVIANA"]
[null,null,null,null,null,null,null,null,null,null,null,null,null,null,null,null,null,null,null,null,null,null,null,null,null,null,null,null,null,null,null,null,null,null,null,"",null,null,null,null,null,null,null,null,null,null,null,null,null,null,null,null,null,null,null,null,null,null,null,null,null,null,null,null,null,null,null,null,null,null,null,null,null,null,null,null,null,22,"METÁLICA MEDIANA"]
[null,null,null,null,null,null,null,null,null,null,null,null,null,null,null,null,null,null,null,null,null,null,null,null,null,null,null,null,null,null,null,null,null,null,null,"",null,null,null,null,null,null,null,null,null,null,null,null,null,null,null,null,null,null,null,null,null,null,null,null,null,null,null,null,null,null,null,null,null,null,null,null,null,null,null,null,null,34,"METÁLICA PESADA"]
[null,null,null,null,null,null,null,null,null,null,null,null,null,null,null,null,null,null,null,null,null,null,null,null,null,null,null,null,null,null,null,null,null,null,null,""]
[null,null,null,null,null,null,null,null,null,null,null,null,null,null,null,null,null,null,null,null,null,null,null,null,null,null,null,null,null,null,null,null,null,null,null,"",null,null,null,null,null,null,null,null,null,null,null,null,null,null,null,null,null,null,null,null,null,null,null,null,null,null,null,null,null,null,null,null,null,null,null,null,null,null,null,null,"ALTURA",6,"ALTURA MAYOR A 7 M EN COLUMNA - PUENT GRÚA"]
[null,null,null,null,null,null,null,null,null,null,null,null,null,null,null,null,null,null,null,null,null,null,null,null,null,null,null,null,null,null,null,null,null,null,null,""]
[null,null,null,null,null,null,null,null,null,null,null,null,null,null,null,null,null,null,null,null,null,null,null,null,null,null,null,null,null,null,null,null,null,null,null,""]
[null,null,null,null,null,null,null,null,null,null,null,null,null,null,null,null,null,null,null,null,null,null,null,null,null,null,null,null,null,null,null,null,null,null,null,""]
[null,null,null,null,null,null,null,null,null,null,null,null,null,null,null,null,null,null,null,null,null,null,null,null,null,null,null,null,null,null,null,null,null,null,null,""]
[null,null,null,null,null,null,null,null,null,null,null,null,null,null,null,null,null,null,null,null,null,null,null,null,null,null,null,null,null,null,null,null,null,null,null,""]
[null,null,null,null,null,null,null,null,null,null,null,null,null,null,null,null,null,null,null,null,null,null,null,null,null,null,null,null,null,null,null,null,null,null,null,""]
[null,null,null,null,null,null,null,null,null,null,null,null,null,null,null,null,null,null,null,null,null,null,null,null,null,null,null,null,null,null,null,null,null,null,null,""]
[null,null,null,null,null,null,null,null,null,null,null,null,null,null,null,null,null,null,null,null,null,null,null,null,null,null,null,null,null,null,null,null,null,null,null,""]
[null,null,null,null,null,null,null,null,null,null,null,null,null,null,null,null,null,null,null,null,null,null,null,null,null,null,null,null,null,null,null,null,null,null,null,""]
[null,null,null,null,null,null,null,null,null,null,null,null,null,null,null,null,null,null,null,null,null,null,null,null,null,null,null,null,null,null,null,null,null,null,null,""]
[null,null,null,null,null,null,null,null,null,null,null,null,null,null,null,null,null,null,null,null,null,null,null,null,null,null,null,null,null,null,null,null,null,null,null,""]
[null,null,null,null,null,null,null,null,null,null,null,null,null,null,null,null,null,null,null,null,null,null,null,null,null,null,null,null,null,null,null,null,null,null,null,{"$f":"+IF(AA4=\"\",\"\",AA4)","v":""}]
[null,null,null,null,null,null,null,null,null,null,null,null,null,null,null,null,null,null,null,null,null,null,null,null,null,null,null,null,null,null,null,null,null,null,null,""]
[null,null,null,null,null,null,null,null,null,null,null,null,null,null,null,null,null,null,null,null,null,null,null,null,null,null,null,null,null,null,null,null,null,null,null,""]
[null,null,null,null,null,null,null,null,null,null,null,null,null,null,null,null,null,null,null,null,null,null,null,null,null,null,null,null,null,null,null,null,null,null,null,""]
[null,null,null,null,null,null,null,null,null,null,null,null,null,null,null,null,null,null,null,null,null,null,null,null,null,null,null,null,null,null,null,null,null,null,null,""]
[null,null,null,null,null,null,null,null,null,null,null,null,null,null,null,null,null,null,null,null,null,null,null,null,null,null,null,null,null,null,null,null,null,null,null,""]
[null,null,null,null,null,null,null,null,null,null,null,null,null,null,null,null,null,null,null,null,null,null,null,null,null,null,null,null,null,null,null,null,null,null,null,""]
[null,null,null,null,null,null,null,null,null,null,null,null,null,null,null,null,null,null,null,null,null,null,null,null,null,null,null,null,null,null,null,null,null,null,null,""]
[null,null,null,null,null,null,null,null,null,null,null,null,null,null,null,null,null,null,null,null,null,null,null,null,null,null,null,null,null,null,null,null,null,null,null,""]
[null,null,null,null,null,null,null,null,null,null,null,null,null,null,null,null,null,null,null,null,null,null,null,null,null,null,null,null,null,null,null,null,null,null,null,""]
[null,null,null,null,null,null,null,null,null,null,null,null,null,null,null,null,null,null,null,null,null,null,null,null,null,null,null,null,null,null,null,null,null,null,null,""]
[null,null,null,null,null,null,null,null,null,null,null,null,null,null,null,null,null,null,null,null,null,null,null,null,null,null,null,null,null,null,null,null,null,null,null,""]
[null,null,null,null,null,null,null,null,null,null,null,null,null,null,null,null,null,null,null,null,null,null,null,null,null,null,null,null,null,null,null,null,null,null,null,""]
[null,null,null,null,null,null,null,null,null,null,null,null,null,null,null,null,null,null,null,null,null,null,null,null,null,null,null,null,null,null,null,null,null,null,null,""]
[null,null,null,null,null,null,null,null,null,null,null,null,null,null,null,null,null,null,null,null,null,null,null,null,null,null,null,null,null,null,null,null,null,null,null,""]
[null,null,null,null,null,null,null,null,null,null,null,null,null,null,null,null,null,null,null,null,null,null,null,null,null,null,null,null,null,null,null,null,null,null,null,""]
[null,null,null,null,null,null,null,null,null,null,null,null,null,null,null,null,null,null,null,null,null,null,null,null,null,null,null,null,null,null,null,null,null,null,null,""]
[null,null,null,null,null,null,null,null,null,null,null,null,null,null,null,null,null,null,null,null,null,null,null,null,null,null,null,null,null,null,null,null,null,null,null,""]